Workbook

Sheet User-INFO

Sheet Stammblatt
A1: Projekttitel
A2: =IF(L5=1,K7,L7) -> STAMMDATENBLATT
F4: Version 17.1
K5: Deutsch | L5: 1
B6: SPRACHE | K6: Englisch
F7: (Zutreffendes bitte ankreuzen) | K7: STAMMDATENBLATT | L7: MASTER DATA SHEET
A8: =IF($L$5=1,K8,L8) -> Produktionsfirma | K8: Produktionsfirma | L8: Production company
B9: =IF($L$5=1,K9,L9) -> Ein-Personen-Unternehmen | H9: EPU | I9: FALSE | K9: Ein-Personen-Unternehmen | L9: Single-Person-Company
A11: =IF($L$5=1,K11,L11) -> Regie | H11: K0/0 | I11: --> Regie | K11: Regie | L11: Director
B12: =IF($L$5=1,K12,L12) -> Debutfilm (1. abendfüllender Kinofilm) | H12: DEBUT | I12: FALSE | K12: Debutfilm (1. abendfüllender Kinofilm) | L12: Debut-film
A13: Drehbuch | H13: K0/1 | I13: --> Drehbuch | K13: Drehbuch | L13: Scriptwriter
A14: Herstellungsleitung | K14: Herstellungsleitung | L14: Executive producer
A15: Produktionsleitung | K15: Produktionsleitung | L15: Production manager
A16: Filmgeschäftsführung | K16: Filmgeschäftsführung | L16: Production accountant
A18: Kalkulation vom (Datum) | D18: =IF($L$5=1,K19,L19) -> Erstellt von | K18: Kalkulation vom (Datum) | L18: Budget of (date)
K19: Erstellt von | L19: prepared by
A20: Darsteller | K20: Darsteller | L20: Main cast
I21: 16mm
I22: Super 16mm
A23: =IF($L$5=1,K23,L23) -> Laufzeit (in Minuten) | D23: =IF($L$5=1,K25,L25) -> Aufnahmeformat | H23: 5 | I23: 35mm | K23: Laufzeit (in Minuten) | L23: Running time
A24: =IF($L$5=1,K24,L24) -> Seitenverhältnis | D24: =IF($L$5=1,K26,L26) -> Kopienformat | H24: 5 | I24: Super 35mm | K24: Seitenverhältnis | L24: Aspect ratio
I25: Digital Video | K25: Aufnahmeformat | L25: Format
I26: Digital Video und Film | K26: Kopienformat | L26: Print
E27: =IF($L$5=1,K27,L27) -> Österreichische Produktion | K27: Österreichische Produktion | L27: Austrian production
E28: =IF($L$5=1,K28,L28) -> Koproduktion / Kofinanzierung | H28: K1 | I28: 1 | K28: Koproduktion / Kofinanzierung | L28: Co-production /Co-financing
A31: =IF($L$5=1,K31,L31) -> Ko-Partner 1 | B31: A | K31: Ko-Partner 1 | L31: Co-partner 1
A32: =IF($L$5=1,K32,L32) -> Ko-Partner 2 | B32: B | K32: Ko-Partner 2 | L32: Co-partner 2
A33: =IF($L$5=1,K33,L33) -> Ko-Partner 3 | B33: C | K33: Ko-Partner 3 | L33: Co-partner 3
B36: K I N O - | E36: =IF($L$5=1,K38,L38) -> Spielfilm | K36: Kinofilm | L36: Cinema
E37: =IF($L$5=1,K39,L39) -> Dokumentarfilm | H37: K2 | I37: 1 | K37: Fernsehfilm | L37: TV-movie
K38: Spielfilm | L38: Feature
K39: Dokumentarfilm | L39: Documentary
H40: K3/1 | I40: FALSE | K40: Kinderfilm | L40: Kid's movie
B41: =IF($L$5=1,K40,L40) -> Kinderfilm | E41: =IF($L$5=1,K41,L41) -> Werkstattprojekt | H41: K3/2 | I41: FALSE | K41: Werkstattprojekt | L41: Young talent film
K43: TERMINPLAN | L43: SCHEDULE
B44: =IF($L$5=1,K43,L43) -> TERMINPLAN | E44: =IF(L5=1,K52,L52) -> Drehorte | F44: =IF($L$5=1,K53,L53) -> Drehtage
A45: =IF($L$5=1,K45,L45) -> Produktionsbeginn | K45: Produktionsbeginn | L45: Pre-production
A46: Drehbeginn | K46: Drehbeginn | L46: Start of shooting
A47: Drehmitte | K47: Drehmitte | L47: Middle of shooting
A48: Drehende | K48: Drehende | L48: End of shooting
A49: Rohschnittvorführung | K49: Rohschnittvorführung | L49: Rough cut
A50: Fertigstellung | K50: Fertigstellung | L50: Completion
E51: =IF(L5=1,K54,L54) -> Σ-Drehtage | F51: =SUM(F45:F50) -> 0
K52: Drehorte | L52: Location
K53: Drehtage | L53: Days of shooting
K54: Σ-Drehtage | L54: Total days

Sheet Zusammenfassung
A1: =Stammblatt!A1 -> Projekttitel
I2: =IF(Stammblatt!$L$5=1,"Kostenstand Österreich per","Cost report Austria of") -> Kostenstand Österreich per | N2: ='Kalkulation Herstellungskosten'!V1 -> Datum
A3: =IF(Stammblatt!$L$5=1,Zusammenfassung!W3,Zusammenfassung!X3) -> Kostenzusammenstellung (Beträge in €) | D3: =IF(Stammblatt!I28=1,"",Stammblatt!B8) ->  | E3: GENDER-BUDGETING | G3: WFBE | H3: FISA | I3: =IF(Stammblatt!$L$5=1,"IST-Kosten","Costs incurred") -> IST-Kosten | J3: =IF(Stammblatt!$L$5=1,"noch zu erwarten","Costs to be expected") -> noch zu erwarten | K3: =IF(Stammblatt!$L$5=1,"Endkosten","Final costs") -> Endkosten | L3: +/- | M3: WFBE-IST | N3: FISA-IST | P3: =Stammblatt!B31 -> A | Q3: =Stammblatt!B32 -> B | R3: =Stammblatt!B33 -> C | S3: TOTAL | W3: Kostenzusammenstellung (Beträge in €) | X3: Production budget summary (amounts in €)
E4: M | F4: W
A5: 1. | B5: =IF(Stammblatt!$L$5=1,W5,X5) -> Vorkosten | D5: =ZS_1_Vorkosten -> 0 | E5: ='Kalkulation Herstellungskosten'!L6 -> 0 | F5: ='Kalkulation Herstellungskosten'!M6 -> 0 | G5: ='Kalkulation Herstellungskosten'!O6 -> 0 | H5: ='Kalkulation Herstellungskosten'!P6 -> 0 | I5: ='Kalkulation Herstellungskosten'!Q6 -> 0 | J5: ='Kalkulation Herstellungskosten'!R6 -> 0 | K5: ='Kalkulation Herstellungskosten'!S6 -> 0 | L5: =D5-K5 -> 0 | M5: ='Kalkulation Herstellungskosten'!U6 -> 0 | N5: ='Kalkulation Herstellungskosten'!V6 -> 0 | P5: ='Kalkulation Herstellungskosten'!X6 -> 0 | Q5: ='Kalkulation Herstellungskosten'!Y6 -> 0 | R5: ='Kalkulation Herstellungskosten'!Z6 -> 0 | S5: =SUM(D5,P5:R5) -> 0 | W5: Vorkosten | X5: Initial costs
A6: 2. | B6: =IF(Stammblatt!$L$5=1,W6,X6) -> Nutzungsrechte | D6: =ZS_2_Nutzungsrechte -> 0 | E6: ='Kalkulation Herstellungskosten'!L22 -> 0 | F6: ='Kalkulation Herstellungskosten'!M22 -> 0 | G6: ='Kalkulation Herstellungskosten'!O22 -> 0 | H6: ='Kalkulation Herstellungskosten'!P22 -> 0 | I6: ='Kalkulation Herstellungskosten'!Q22 -> 0 | J6: ='Kalkulation Herstellungskosten'!R22 -> 0 | K6: ='Kalkulation Herstellungskosten'!S22 -> 0 | L6: 0 | M6: ='Kalkulation Herstellungskosten'!U22 -> 0 | N6: ='Kalkulation Herstellungskosten'!V22 -> 0 | P6: ='Kalkulation Herstellungskosten'!X22 -> 0 | Q6: ='Kalkulation Herstellungskosten'!Y22 -> 0 | R6: ='Kalkulation Herstellungskosten'!Z22 -> 0 | S6: 0 | W6: Nutzungsrechte | X6: Rights
A7: 3. | B7: =IF(Stammblatt!$L$5=1,W7,X7) -> Gagen, Löhne, Honorare | D7: =ZS_3_Gagen -> 0 | E7: ='Kalkulation Herstellungskosten'!L211 -> 0 | F7: ='Kalkulation Herstellungskosten'!M211 -> 0 | G7: ='Kalkulation Herstellungskosten'!O211 -> 0 | H7: ='Kalkulation Herstellungskosten'!P211 -> 0 | I7: ='Kalkulation Herstellungskosten'!Q211 -> 0 | J7: ='Kalkulation Herstellungskosten'!R211 -> 0 | K7: ='Kalkulation Herstellungskosten'!S211 -> 0 | L7: 0 | M7: ='Kalkulation Herstellungskosten'!U211 -> 0 | N7: ='Kalkulation Herstellungskosten'!V211 -> 0 | P7: ='Kalkulation Herstellungskosten'!X211 -> 0 | Q7: ='Kalkulation Herstellungskosten'!Y211 -> 0 | R7: ='Kalkulation Herstellungskosten'!Z211 -> 0 | S7: 0 | W7: Gagen, Löhne, Honorare | X7: Fees & salaries
A8: 4. | B8: =IF(Stammblatt!$L$5=1,W8,X8) -> Bild- und Tonaufnahme | D8: =ZS_4_Bild_Ton -> 0 | E8: ='Kalkulation Herstellungskosten'!L235 -> 0 | F8: ='Kalkulation Herstellungskosten'!M235 -> 0 | G8: ='Kalkulation Herstellungskosten'!O235 -> 0 | H8: ='Kalkulation Herstellungskosten'!P235 -> 0 | I8: ='Kalkulation Herstellungskosten'!Q235 -> 0 | J8: ='Kalkulation Herstellungskosten'!R235 -> 0 | K8: ='Kalkulation Herstellungskosten'!S235 -> 0 | L8: 0 | M8: ='Kalkulation Herstellungskosten'!U235 -> 0 | N8: ='Kalkulation Herstellungskosten'!V235 -> 0 | P8: ='Kalkulation Herstellungskosten'!X235 -> 0 | Q8: ='Kalkulation Herstellungskosten'!Y235 -> 0 | R8: ='Kalkulation Herstellungskosten'!Z235 -> 0 | S8: 0 | W8: Bild- und Tonaufnahme | X8: Camera, lighting, sound
A9: 5. | B9: =IF(Stammblatt!$L$5=1,W9,X9) -> Atelier, Ausleuchtung, Außenaufnahmen | D9: =ZS_5_Atelier_Ausleuchtung_Außenaufnahmen -> 0 | E9: ='Kalkulation Herstellungskosten'!L258 -> 0 | F9: ='Kalkulation Herstellungskosten'!M258 -> 0 | G9: ='Kalkulation Herstellungskosten'!O258 -> 0 | H9: ='Kalkulation Herstellungskosten'!P258 -> 0 | I9: ='Kalkulation Herstellungskosten'!Q258 -> 0 | J9: ='Kalkulation Herstellungskosten'!R258 -> 0 | K9: ='Kalkulation Herstellungskosten'!S258 -> 0 | L9: 0 | M9: ='Kalkulation Herstellungskosten'!U258 -> 0 | N9: ='Kalkulation Herstellungskosten'!V258 -> 0 | P9: ='Kalkulation Herstellungskosten'!X258 -> 0 | Q9: ='Kalkulation Herstellungskosten'!Y258 -> 0 | R9: ='Kalkulation Herstellungskosten'!Z258 -> 0 | S9: 0 | W9: Atelier, Ausleuchtung, Außenaufnahmen | X9: Studios, construction, exterior sets
A10: 6. | B10: =IF(Stammblatt!$L$5=1,W10,X10) -> Ausstattung | D10: =ZS_6_Austattung -> 0 | E10: ='Kalkulation Herstellungskosten'!L275 -> 0 | F10: ='Kalkulation Herstellungskosten'!M275 -> 0 | G10: ='Kalkulation Herstellungskosten'!O275 -> 0 | H10: ='Kalkulation Herstellungskosten'!P275 -> 0 | I10: ='Kalkulation Herstellungskosten'!Q275 -> 0 | J10: ='Kalkulation Herstellungskosten'!R275 -> 0 | K10: ='Kalkulation Herstellungskosten'!S275 -> 0 | L10: 0 | M10: ='Kalkulation Herstellungskosten'!U275 -> 0 | N10: ='Kalkulation Herstellungskosten'!V275 -> 0 | P10: ='Kalkulation Herstellungskosten'!X275 -> 0 | Q10: ='Kalkulation Herstellungskosten'!Y275 -> 0 | R10: ='Kalkulation Herstellungskosten'!Z275 -> 0 | S10: 0 | W10: Ausstattung | X10: Set decoration & costume design
A11: 7. | B11: =IF(Stammblatt!$L$5=1,W11,X11) -> Schnitt, Synchronisation, Mischung | D11: =ZS_7_Schnitt_Sync_Mischung -> 0 | E11: ='Kalkulation Herstellungskosten'!L294 -> 0 | F11: ='Kalkulation Herstellungskosten'!M294 -> 0 | G11: ='Kalkulation Herstellungskosten'!O294 -> 0 | H11: ='Kalkulation Herstellungskosten'!P294 -> 0 | I11: ='Kalkulation Herstellungskosten'!Q294 -> 0 | J11: ='Kalkulation Herstellungskosten'!R294 -> 0 | K11: ='Kalkulation Herstellungskosten'!S294 -> 0 | L11: 0 | M11: ='Kalkulation Herstellungskosten'!U294 -> 0 | N11: ='Kalkulation Herstellungskosten'!V294 -> 0 | P11: ='Kalkulation Herstellungskosten'!X294 -> 0 | Q11: ='Kalkulation Herstellungskosten'!Y294 -> 0 | R11: ='Kalkulation Herstellungskosten'!Z294 -> 0 | S11: 0 | W11: Schnitt, Synchronisation, Mischung | X11: Editing, dubbing , sound mix
A12: 8. | B12: =IF(Stammblatt!$L$5=1,W12,X12) -> Bild, Ton, Bearbeitung | D12: =ZS_8_Bild_Ton_Bearbeitung -> 0 | E12: ='Kalkulation Herstellungskosten'!L324 -> 0 | F12: ='Kalkulation Herstellungskosten'!M324 -> 0 | G12: ='Kalkulation Herstellungskosten'!O324 -> 0 | H12: ='Kalkulation Herstellungskosten'!P324 -> 0 | I12: ='Kalkulation Herstellungskosten'!Q324 -> 0 | J12: ='Kalkulation Herstellungskosten'!R324 -> 0 | K12: ='Kalkulation Herstellungskosten'!S324 -> 0 | L12: 0 | M12: ='Kalkulation Herstellungskosten'!U324 -> 0 | N12: ='Kalkulation Herstellungskosten'!V324 -> 0 | P12: ='Kalkulation Herstellungskosten'!X324 -> 0 | Q12: ='Kalkulation Herstellungskosten'!Y324 -> 0 | R12: ='Kalkulation Herstellungskosten'!Z324 -> 0 | S12: 0 | W12: Bild, Ton, Bearbeitung | X12: Film stock, sound material and laboratory
A13: 9. | B13: =IF(Stammblatt!$L$5=1,W13,X13) -> Versicherungen | D13: =ZS_9_Versicherungen -> 0 | E13: ='Kalkulation Herstellungskosten'!L337 -> 0 | F13: ='Kalkulation Herstellungskosten'!M337 -> 0 | G13: ='Kalkulation Herstellungskosten'!O337 -> 0 | H13: ='Kalkulation Herstellungskosten'!P337 -> 0 | I13: ='Kalkulation Herstellungskosten'!Q337 -> 0 | J13: ='Kalkulation Herstellungskosten'!R337 -> 0 | K13: ='Kalkulation Herstellungskosten'!S337 -> 0 | L13: 0 | M13: ='Kalkulation Herstellungskosten'!U337 -> 0 | N13: ='Kalkulation Herstellungskosten'!V337 -> 0 | P13: ='Kalkulation Herstellungskosten'!X337 -> 0 | Q13: ='Kalkulation Herstellungskosten'!Y337 -> 0 | R13: ='Kalkulation Herstellungskosten'!Z337 -> 0 | S13: 0 | W13: Versicherungen | X13: Insurance
A14: 10. | B14: =IF(Stammblatt!$L$5=1,W14,X14) -> Reise-, Beförderungs- und Transportkosten | D14: =ZS_10_Reisekosten -> 0 | E14: ='Kalkulation Herstellungskosten'!L345 -> 0 | F14: ='Kalkulation Herstellungskosten'!M345 -> 0 | G14: ='Kalkulation Herstellungskosten'!O345 -> 0 | H14: ='Kalkulation Herstellungskosten'!P345 -> 0 | I14: ='Kalkulation Herstellungskosten'!Q345 -> 0 | J14: ='Kalkulation Herstellungskosten'!R345 -> 0 | K14: ='Kalkulation Herstellungskosten'!S345 -> 0 | L14: 0 | M14: ='Kalkulation Herstellungskosten'!U345 -> 0 | N14: ='Kalkulation Herstellungskosten'!V345 -> 0 | P14: ='Kalkulation Herstellungskosten'!X345 -> 0 | Q14: ='Kalkulation Herstellungskosten'!Y345 -> 0 | R14: ='Kalkulation Herstellungskosten'!Z345 -> 0 | S14: 0 | W14: Reise-, Beförderungs- und Transportkosten | X14: Travel expenses and transportation costs
A15: 11. | B15: =IF(Stammblatt!$L$5=1,W15,X15) -> Allgemeine Kosten | D15: =ZS_11_Allgemeine_Kosten -> 0 | E15: ='Kalkulation Herstellungskosten'!L365 -> 0 | F15: ='Kalkulation Herstellungskosten'!M365 -> 0 | G15: ='Kalkulation Herstellungskosten'!O365 -> 0 | H15: ='Kalkulation Herstellungskosten'!P365 -> 0 | I15: ='Kalkulation Herstellungskosten'!Q365 -> 0 | J15: ='Kalkulation Herstellungskosten'!R365 -> 0 | K15: ='Kalkulation Herstellungskosten'!S365 -> 0 | L15: 0 | M15: ='Kalkulation Herstellungskosten'!U365 -> 0 | N15: ='Kalkulation Herstellungskosten'!V365 -> 0 | P15: ='Kalkulation Herstellungskosten'!X365 -> 0 | Q15: ='Kalkulation Herstellungskosten'!Y365 -> 0 | R15: ='Kalkulation Herstellungskosten'!Z365 -> 0 | S15: 0 | W15: Allgemeine Kosten | X15: General expenses
A16: 12. | B16: =IF(Stammblatt!$L$5=1,W16,X16) -> Kostenmindernde Erträge | D16: =ZS_12_Kostenmindernde_Erträge -> 0 | E16: ='Kalkulation Herstellungskosten'!L375 -> 0 | F16: ='Kalkulation Herstellungskosten'!M375 -> 0 | G16: ='Kalkulation Herstellungskosten'!O375 -> 0 | H16: ='Kalkulation Herstellungskosten'!P375 -> 0 | I16: ='Kalkulation Herstellungskosten'!Q375 -> 0 | J16: ='Kalkulation Herstellungskosten'!R375 -> 0 | K16: ='Kalkulation Herstellungskosten'!S375 -> 0 | L16: 0 | M16: ='Kalkulation Herstellungskosten'!U375 -> 0 | N16: ='Kalkulation Herstellungskosten'!V375 -> 0 | P16: ='Kalkulation Herstellungskosten'!X375 -> 0 | Q16: ='Kalkulation Herstellungskosten'!Y375 -> 0 | R16: ='Kalkulation Herstellungskosten'!Z375 -> 0 | S16: 0 | W16: Kostenmindernde Erträge | X16: Cost-cutting revenues
A17: 13. | B17: =IF(Stammblatt!$L$5=1,W17,X17) -> Fertigungskosten | D17: =SUM(D5:D16) -> 0 | E17: =SUM(E5:E16) -> 0 | F17: =SUM(F5:F16) -> 0 | G17: =SUM(G5:G16) -> 0 | H17: 0 | I17: 0 | J17: 0 | K17: 0 | L17: =NFK-K17 -> 0 | M17: =SUM(M5:M16) -> 0 | N17: =SUM(N5:N16) -> 0 | P17: =SUM(P5:P16) -> 0 | Q17: =SUM(Q5:Q16) -> 0 | R17: =SUM(R5:R16) -> 0 | S17: 0 | W17: Fertigungskosten | X17: Subtotal of production
A18: 14. | B18: =IF(Stammblatt!$L$5=1,W18,X18) -> Fertigungsgemeinkosten | D18: =FGK -> 0 | G18: =D18 -> 0 | H18: =IF(D18=0,0,IF(D18/NFK>=7.5%,NFK*7.5%,D18)) -> 0 | I18: 0 | J18: 0 | K18: =SUM(I18:J18) -> 0 | L18: =D18-K18 -> 0 | M18: 0 | N18: 0 | P18: 0 | Q18: 0 | R18: 0 | S18: 0 | W18: Fertigungsgemeinkosten | X18: Overheads
A19: 15. | B19: =IF(Stammblatt!$L$5=1,W19,X19) -> Fertigstellungsversicherung (Completion Bond) | D19: 0 | G19: =D19 -> 0 | H19: =Bond -> 0 | I19: 0 | J19: 0 | K19: =SUM(I19:J19) -> 0 | L19: =Bond-K19 -> 0 | M19: 0 | N19: 0 | P19: 0 | Q19: 0 | R19: 0 | S19: 0 | W19: Fertigstellungsversicherung (Completion Bond) | X19: Completion Bond
A20: 16. | B20: =IF(Stammblatt!$L$5=1,W20,X20) -> Kosten der Finanzierung *) | D20: 0 | I20: 0 | J20: 0 | K20: 0 | L20: =FinKosten-K20 -> 0 | M20: 0 | N20: 0 | P20: 0 | Q20: 0 | R20: 0 | S20: 0 | W20: Kosten der Finanzierung *) | X20: Financing costs *)
A21: 17. | B21: =IF(Stammblatt!$L$5=1,W21,X21) -> Überschreitungsreserve | C21: 0.05 | D21: =NFK*ÜR -> 0 | G21: =D21 -> 0 | H21: =D21 -> 0 | P21: =ÜR*P17 -> 0 | Q21: =ÜR*Q17 -> 0 | R21: =ÜR*R17 -> 0 | S21: 0 | W21: Überschreitungsreserve | X21: Contingency
A22: 18. | B22: =IF(Stammblatt!$L$5=1,W22,X22) -> Herstellungskosten | D22: =SUM(D17:D21) -> 0 | G22: 0 | H22: =SUM(H17:H21) -> 0 | I22: =SUM(I17:I21) -> 0 | J22: =SUM(J17:J21) -> 0 | K22: =SUM(K17:K21) -> 0 | L22: =GHSTK-K22 -> 0 | M22: =SUM(M17:M21) -> 0 | N22: =SUM(N17:N21) -> 0 | P22: 0 | Q22: 0 | R22: 0 | S22: 0 | W22: Herstellungskosten | X22: Total production costs
D23: =IF(NFK=0,0,Zusammenfassung!D22/Zusammenfassung!S22) -> 0 | P23: =IF(P17=0,0,Zusammenfassung!P22/Zusammenfassung!S22) -> 0 | Q23: =IF(Q17=0,0,Zusammenfassung!Q22/Zusammenfassung!S22) -> 0 | R23: =IF(R17=0,0,Zusammenfassung!R22/Zusammenfassung!S22) -> 0 | S23: =IF(NFK=0,0,SUM(D23:R23)) -> 0
E24: =IF(E17=0,"",E17/(E17+F17)) ->  | F24: =IF(F17=0,"",F17/(E17+F17)) -> 
E25: =IF(OR(E17=0,F17=0),"",(E17+F17)/NFK) -> 
I26: Stand der Finanzierung
J28: PLAN | K28: IST | L28: noch offen
I30: Eigenanteil | J30: =Finanzierungsplan!D5 -> 0 | L30: =J30-K30 -> 0
I31: Filminstitut | J31: =Finanzierungsplan!D12 -> 0 | L31: 0
I32: Filmfonds Wien | J32: =Finanzierungsplan!D17 -> 0 | L32: 0
I33: Sonstige | J33: =Finanzierungsplan!D22 -> 0 | L33: 0
I34: EURIMAGES | J34: =Finanzierungsplan!D23 -> 0 | L34: 0
I35: ORF | J35: =Finanzierungsplan!D24 -> 0 | L35: 0
I37: SUMME | J37: =SUM(J30:J36) -> 0 | K37: =SUM(K30:K36) -> 0 | L37: =SUM(L30:L36) -> 0
C39: =IF(S19>0,0.1,0.08) -> 0.08

Sheet Kalkulation Herstellungskosten
A1: =Stammblatt!A1 -> Projekttitel | Q1: =IF(Stammblatt!$L$5=1,"Kostenstand Österreich per","Cost report Austria of") -> Kostenstand Österreich per | V1: Datum
E2: =IF(D2=1,1,"") ->  | G2: =IF(Stammblatt!I28=1,"",Stammblatt!B8) ->  | J2: GENDER-BUDGETING | O2: WFBE | P2: FISA | Q2: =IF(Stammblatt!$L$5=1,"IST-Kosten","Costs incurred") -> IST-Kosten | R2: =IF(Stammblatt!$L$5=1,"noch zu erwarten","Costs to be expected") -> noch zu erwarten | S2: =IF(Stammblatt!$L$5=1,"Endkosten","Final costs") -> Endkosten | T2: +/- | U2: WFBE-IST | V2: FISA-IST | X2: =Stammblatt!B31 -> A | Y2: =Stammblatt!B32 -> B | Z2: =Stammblatt!B33 -> C | AA2: GESAMT
B3: =IF(Stammblatt!$L$5=1,'Kalkulation Herstellungskosten'!AK3,'Kalkulation Herstellungskosten'!AL3) -> 1. Vorkosten | AK3: 1. Vorkosten | AL3: 1. Initial costs
A4: 1 | B4: =IF(Stammblatt!$L$5=1,'Kalkulation Herstellungskosten'!AK4,'Kalkulation Herstellungskosten'!AL4) -> Vorarbeiten, Motivsuche udgl. *) | S4: =SUM(Q4:R4) -> 0 | T4: =G4-S4 -> 0 | AA4: =SUM(G4,X4:Z4) -> 0 | AK4: Vorarbeiten, Motivsuche udgl. *) | AL4: Development, preparation (i.e. location scouting, casting etc.)
B6: =IF(Stammblatt!$L$5=1,'Kalkulation Herstellungskosten'!AK6,'Kalkulation Herstellungskosten'!AL6) -> Σ-Vorkosten | G6: =SUM(G4:G5) -> 0 | L6: =SUM(L4) -> 0 | M6: =SUM(M4) -> 0 | O6: =SUM(O4:O5) -> 0 | P6: =SUM(P4:P5) -> 0 | Q6: =SUM(Q4:Q5) -> 0 | R6: =SUM(R4:R5) -> 0 | S6: =SUM(S4:S5) -> 0 | T6: =ZS_1_Vorkosten-S6 -> 0 | U6: =SUM(U4:U5) -> 0 | V6: =SUM(V4:V5) -> 0 | X6: =SUM(X4) -> 0 | Y6: =SUM(Y4) -> 0 | Z6: =SUM(Z4) -> 0 | AA6: =SUM(G6,X6:Z6) -> 0 | AK6: Σ-Vorkosten | AL6: TOTAL Initial costs
B9: =IF(Stammblatt!$L$5=1,'Kalkulation Herstellungskosten'!AK9,'Kalkulation Herstellungskosten'!AL9) -> 2. Nutzungsrechte | D9: ILV | H9: Richtsatz | J9: M | K9: W | L9: männl. | M9: weibl. | AB9: M | AC9: W | AD9: ILV (-20%) | AE9: ILV | AK9: 2. Nutzungsrechte | AL9: 2. Rights
A10: 2 | B10: =IF(Stammblatt!$L$5=1,'Kalkulation Herstellungskosten'!AK10,'Kalkulation Herstellungskosten'!AL10) -> Verfilmungsrechte | S10: =SUM(Q10:R10) -> 0 | T10: =G10-S10 -> 0 | AA10: =SUM(G10,X10:Z10) -> 0 | AK10: Verfilmungsrechte | AL10: Screenrights
A11: 3 | B11: =IF(Stammblatt!$L$5=1,'Kalkulation Herstellungskosten'!AK11,'Kalkulation Herstellungskosten'!AL11) -> Treatment | S11: 0 | T11: 0 | AA11: 0 | AK11: Treatment | AL11: Treatment
A12: 4 | B12: =IF(Stammblatt!$L$5=1,'Kalkulation Herstellungskosten'!AK12,'Kalkulation Herstellungskosten'!AL12) -> Drehbuch | F12: =G12 -> 0 | H12: =IF(AND(Stammblatt!I12=TRUE,NFK_ges>1500000),40069,IF(Stammblatt!I12=TRUE,AD12*0.85,AD12)) -> 14000 | L12: =IF(AB12=TRUE,G12,0) -> 0 | M12: =IF(AC12=TRUE,G12,0) -> 0 | N12: =IF((L12+M12)>G12,"?","") ->  | S12: 0 | T12: 0 | AA12: 0 | AB12: FALSE | AC12: FALSE | AD12: =IF(AE12=TRUE,Drehbuch_Richtsatz*0.8,Drehbuch_Richtsatz) -> 14000 | AE12: FALSE | AK12: Drehbuch | AL12: Script
A13: 5 | B13: =IF(Stammblatt!$L$5=1,'Kalkulation Herstellungskosten'!AK13,'Kalkulation Herstellungskosten'!AL13) -> Synchronbuch | S13: 0 | T13: 0 | AA13: 0 | AK13: Synchronbuch | AL13: Dubbing script
A14: 6 | B14: =IF(Stammblatt!$L$5=1,'Kalkulation Herstellungskosten'!AK14,'Kalkulation Herstellungskosten'!AL14) -> Archivrechte | S14: 0 | T14: 0 | AA14: 0 | AK14: Archivrechte | AL14: Archive rights
A15: 7 | B15: =IF(Stammblatt!$L$5=1,'Kalkulation Herstellungskosten'!AK15,'Kalkulation Herstellungskosten'!AL15) -> Musikrechte | S15: 0 | T15: 0 | AA15: 0 | AK15: Musikrechte | AL15: Music rights
A16: 8 | B16: =IF(Stammblatt!$L$5=1,'Kalkulation Herstellungskosten'!AK16,'Kalkulation Herstellungskosten'!AL16) -> Textrechte | S16: 0 | T16: 0 | AA16: 0 | AK16: Textrechte | AL16: Lyric, text rights
A17: 9 | B17: =IF(Stammblatt!$L$5=1,'Kalkulation Herstellungskosten'!AK17,'Kalkulation Herstellungskosten'!AL17) -> KomponistIn | L17: =IF(AB17=TRUE,G17,0) -> 0 | M17: =IF(AC17=TRUE,G17,0) -> 0 | S17: 0 | T17: 0 | AA17: 0 | AB17: FALSE | AC17: FALSE | AK17: KomponistIn | AL17: Composer
A18: 10 | B18: =IF(Stammblatt!$L$5=1,'Kalkulation Herstellungskosten'!AK18,'Kalkulation Herstellungskosten'!AL18) -> DramaturgIn | L18: =IF(AB18=TRUE,G18,0) -> 0 | M18: =IF(AC18=TRUE,G18,0) -> 0 | S18: 0 | T18: 0 | AA18: 0 | AB18: FALSE | AC18: FALSE | AK18: DramaturgIn | AL18: Script editor
A19: 11 | B19: =IF(Stammblatt!$L$5=1,'Kalkulation Herstellungskosten'!AK19,'Kalkulation Herstellungskosten'!AL19) -> Dolby-Lizenz | S19: 0 | T19: 0 | AA19: 0 | AK19: Dolby-Lizenz | AL19: Dolby-licence
A20: 12 | B20: =IF(Stammblatt!$L$5=1,'Kalkulation Herstellungskosten'!AK20,'Kalkulation Herstellungskosten'!AL20) -> Sonstige Nutzungsrechte *) | S20: 0 | T20: 0 | AA20: 0 | AK20: Sonstige Nutzungsrechte *) | AL20: Other rights
B22: =IF(Stammblatt!$L$5=1,'Kalkulation Herstellungskosten'!AK22,'Kalkulation Herstellungskosten'!AL22) -> Σ-Nutzungsrechte | G22: =SUM(G10:G21) -> 0 | L22: =SUM(L10:L21) -> 0 | M22: =SUM(M10:M21) -> 0 | O22: =SUM(O10:O21) -> 0 | P22: =SUM(P10:P21) -> 0 | Q22: =SUM(Q10:Q21) -> 0 | R22: =SUM(R10:R21) -> 0 | S22: =SUM(S10:S21) -> 0 | T22: =ZS_2_Nutzungsrechte-S22 -> 0 | U22: =SUM(U10:U21) -> 0 | V22: =SUM(V10:V21) -> 0 | X22: =SUM(X10:X20) -> 0 | Y22: =SUM(Y10:Y20) -> 0 | Z22: =SUM(Z10:Z20) -> 0 | AA22: =SUM(G22,X22:Z22) -> 0 | AK22: Σ-Nutzungsrechte | AL22: TOTAL Rights
B25: =IF(Stammblatt!$L$5=1,'Kalkulation Herstellungskosten'!AK25,'Kalkulation Herstellungskosten'!AL25) -> 3. Gagen, Löhne, Honorare | E25: =IF(Stammblatt!$L$5=1,"Wochengage","weekly rate") -> Wochengage | G25: =IF(Stammblatt!$L$5=1,"Brutto","TOTAL") -> Brutto | H25: Kollektiv- | AK25: 3. Gagen, Löhne, Honorare | AL25: 3. Salaries, fees
C26: =IF(Stammblatt!$L$5=1,"Wochen","weeks") -> Wochen | D26: ILV | E26: =IF(Stammblatt!$L$5=1,"inkl. SZ, UEL","") -> inkl. SZ, UEL | G26: =IF(Stammblatt!$L$5=1,"inkl. SZ, UEL","") -> inkl. SZ, UEL | H26: vertrag | J26: M | K26: W | L26: männl. | M26: weibl. | AF26: KV +20% | AG26: KV +30% | AH26: Dok/SPF | AJ26: AZG | AK26: Bewertete Eigenleistungen (ILV) | AL26: Production company's contribution
A27: 13 | B27: =IF(Stammblatt!$L$5=1,'Kalkulation Herstellungskosten'!AK27,'Kalkulation Herstellungskosten'!AL27) -> Herstellungsleitung | C27: 0 | F27: =E27 -> 0 | G27: =C27*E27+C28*E28 -> 0 | H27: =IF(AND(Stammblatt!$I$41=TRUE,GHSTK<=1200000),Kollektivvertrag!$D$58,IF(AND(Stammblatt!$I$41=TRUE,GHSTK>1200000),AH27/2,AH27)) -> 2161.099094 | S27: =SUM(Q27:R28) -> 0 | T27: =G27-S27 -> 0 | AA27: =SUM(G27,X27:Z28) -> 0 | AD27: =IF(AE28=TRUE,H27*0.8,H27) -> 2161.099094 | AF27: =AH27*1.2 -> 2593.318913 | AG27: =AH27*1.3 -> 2809.428822 | AH27: =IF(Stammblatt!$I$37=1,Kollektivvertrag!D13,Kollektivvertrag!D14) -> 2161.099094 | AK27: Herstellungsleitung | AL27: Line producer
B28: =IF(Stammblatt!$L$5=1,'Kalkulation Herstellungskosten'!AK28,'Kalkulation Herstellungskosten'!AL28) -> Wochenpauschale (§ 7 KV) | C28: 0 | F28: 0 | H28: =IF(AND(Stammblatt!$I$41=TRUE,GHSTK<=1200000),Kollektivvertrag!$F$58,IF(AND(Stammblatt!$I$41=TRUE,GHSTK>1200000),AH28/2,AH28)) -> 2993.119411 | L28: =IF(AB28=TRUE,G27,0) -> 0 | M28: =IF(AC28=TRUE,G27,0) -> 0 | N28: =IF((L28+M28)>G27,"?","") ->  | AB28: FALSE | AC28: FALSE | AD28: =IF(AE28=TRUE,H28*0.8,H28) -> 2993.119411 | AE28: FALSE | AF28: =AH28*1.2 -> 3591.743294 | AG28: =AH28*1.3 -> 3891.055235 | AH28: =IF(Stammblatt!$I$37=1,Kollektivvertrag!F13,Kollektivvertrag!F14) -> 2993.119411 | AJ28: =IF((C27+C28)<17,(C27*40+C28*60)/17,(C27*40+C28*60)/(C27+C28)) -> 0 | AK28: Wochenpauschale (§ 7 KV) | AL28: weekly allowance (§7 KV)
A29: 14 | B29: =IF(Stammblatt!$L$5=1,'Kalkulation Herstellungskosten'!AK29,'Kalkulation Herstellungskosten'!AL29) -> Produktionsleitung | C29: 0 | F29: 0 | G29: =C29*E29+C30*E30 -> 0 | H29: =IF(AND(Stammblatt!$I$41=TRUE,GHSTK<=1200000),Kollektivvertrag!$D$58,IF(AND(Stammblatt!$I$41=TRUE,GHSTK>1200000),AH29/2,AH29)) -> 2055.473527 | S29: =SUM(Q29:R30) -> 0 | T29: =G29-S29 -> 0 | AA29: =SUM(G29,X29:Z30) -> 0 | AD29: =IF(AE30=TRUE,H29*0.8,H29) -> 2055.473527 | AF29: 2466.568233 | AG29: 2672.115586 | AH29: =IF(Stammblatt!$I$37=1,Kollektivvertrag!D15,Kollektivvertrag!D16) -> 2055.473527 | AK29: Produktionsleitung | AL29: Production manager
B30: =IF(Stammblatt!$L$5=1,'Kalkulation Herstellungskosten'!AK30,'Kalkulation Herstellungskosten'!AL30) -> Wochenpauschale (§ 7 KV) | C30: 0 | F30: 0 | H30: =IF(AND(Stammblatt!$I$41=TRUE,GHSTK<=1200000),Kollektivvertrag!$F$58,IF(AND(Stammblatt!$I$41=TRUE,GHSTK>1200000),AH30/2,AH30)) -> 2846.828002 | L30: =IF(AB30=TRUE,G29,0) -> 0 | M30: =IF(AC30=TRUE,G29,0) -> 0 | N30: =IF((L30+M30)>G29,"?","") ->  | AB30: FALSE | AC30: FALSE | AD30: =IF(AE30=TRUE,H30*0.8,H30) -> 2846.828002 | AE30: FALSE | AF30: 3416.193602 | AG30: 3700.876402 | AH30: =IF(Stammblatt!$I$37=1,Kollektivvertrag!F15,Kollektivvertrag!F16) -> 2846.828002 | AJ30: =IF((C29+C30)<17,(C29*40+C30*60)/17,(C29*40+C30*60)/(C29+C30)) -> 0 | AK30: Wochenpauschale (§ 7 KV) | AL30: weekly allowance (§7 KV)
A31: 15 | B31: =IF(Stammblatt!$L$5=1,'Kalkulation Herstellungskosten'!AK31,'Kalkulation Herstellungskosten'!AL31) -> 1. Aufnahmeleitung | C31: 0 | F31: 0 | G31: =C31*E31+C32*E32 -> 0 | H31: =IF(AND(Stammblatt!$I$41=TRUE,GHSTK<=1200000),Kollektivvertrag!$D$58,IF(AND(Stammblatt!$I$41=TRUE,GHSTK>1200000),AH31/2,AH31)) -> 1212.092021 | S31: =SUM(Q31:R32) -> 0 | T31: =G31-S31 -> 0 | AA31: =SUM(G31,X31:Z32) -> 0 | AD31: =IF(AE32=TRUE,H31*0.8,H31) -> 1212.092021 | AF31: 1454.510425 | AG31: 1575.719627 | AH31: =IF(Stammblatt!$I$37=1,Kollektivvertrag!D17,Kollektivvertrag!D18) -> 1212.092021 | AK31: 1. Aufnahmeleitung | AL31: Unit manager
B32: =IF(Stammblatt!$L$5=1,'Kalkulation Herstellungskosten'!AK32,'Kalkulation Herstellungskosten'!AL32) -> Wochenpauschale (§ 7 KV) | C32: 0 | F32: 0 | H32: =IF(AND(Stammblatt!$I$41=TRUE,GHSTK<=1200000),Kollektivvertrag!$F$58,IF(AND(Stammblatt!$I$41=TRUE,GHSTK>1200000),AH32/2,AH32)) -> 1678.750927 | L32: =IF(AB32=TRUE,G31,0) -> 0 | M32: =IF(AC32=TRUE,G31,0) -> 0 | N32: =IF((L32+M32)>G31,"?","") ->  | AB32: FALSE | AC32: FALSE | AD32: =IF(AE32=TRUE,H32*0.8,H32) -> 1678.750927 | AE32: FALSE | AF32: 2014.501112 | AG32: 2182.376205 | AH32: =IF(Stammblatt!$I$37=1,Kollektivvertrag!F17,Kollektivvertrag!F18) -> 1678.750927 | AJ32: =IF((C31+C32)<17,(C31*40+C32*60)/17,(C31*40+C32*60)/(C31+C32)) -> 0 | AK32: Wochenpauschale (§ 7 KV) | AL32: weekly allowance (§7 KV)
A33: 16 | B33: =IF(Stammblatt!$L$5=1,'Kalkulation Herstellungskosten'!AK33,'Kalkulation Herstellungskosten'!AL33) -> 2. Aufnahmeleitung | C33: 0 | F33: 0 | G33: =C33*E33+C34*E34 -> 0 | H33: =IF(Stammblatt!$I$41=TRUE,Kollektivvertrag!$D$58,Kollektivvertrag!D19) -> 979.7415367 | S33: =SUM(Q33:R34) -> 0 | T33: =G33-S33 -> 0 | AA33: =SUM(G33,X33:Z34) -> 0 | AD33: =IF(AE34=TRUE,H33*0.8,H33) -> 979.7415367 | AF33: =H33*1.2 -> 1175.689844 | AG33: =H33*1.3 -> 1273.663998 | AK33: 2. Aufnahmeleitung | AL33: Set manager
B34: =IF(Stammblatt!$L$5=1,'Kalkulation Herstellungskosten'!AK34,'Kalkulation Herstellungskosten'!AL34) -> Wochenpauschale (§ 7 KV) | C34: 0 | F34: 0 | H34: =IF(Stammblatt!$I$41=TRUE,Kollektivvertrag!$F$58,Kollektivvertrag!F19) -> 1356.9343 | L34: =IF(AB34=TRUE,G33,0) -> 0 | M34: =IF(AC34=TRUE,G33,0) -> 0 | N34: =IF((L34+M34)>G33,"?","") ->  | AB34: FALSE | AC34: FALSE | AD34: =IF(AE34=TRUE,H34*0.8,H34) -> 1356.9343 | AE34: FALSE | AF34: 1628.32116 | AG34: 1764.014589 | AJ34: =IF((C33+C34)<17,(C33*40+C34*60)/17,(C33*40+C34*60)/(C33+C34)) -> 0 | AK34: Wochenpauschale (§ 7 KV) | AL34: weekly allowance (§7 KV)
A35: 17 | B35: =IF(Stammblatt!$L$5=1,'Kalkulation Herstellungskosten'!AK35,'Kalkulation Herstellungskosten'!AL35) -> Produktionskoordination | C35: 0 | F35: 0 | G35: =C35*E35+C36*E36 -> 0 | H35: =IF(Stammblatt!$I$41=TRUE,Kollektivvertrag!$D$58,Kollektivvertrag!D34) -> 900.9989648 | S35: =SUM(Q35:R36) -> 0 | T35: =G35-S35 -> 0 | AA35: =SUM(G35,X35:Z36) -> 0 | AD35: =IF(AE36=TRUE,H35*0.8,H35) -> 900.9989648 | AF35: 1081.198758 | AG35: 1171.298654 | AK35: Produktionskoordination | AL35: Production coordinator
B36: =IF(Stammblatt!$L$5=1,'Kalkulation Herstellungskosten'!AK36,'Kalkulation Herstellungskosten'!AL36) -> Wochenpauschale (§ 7 KV) | C36: 0 | F36: 0 | H36: =IF(Stammblatt!$I$41=TRUE,Kollektivvertrag!$F$58,Kollektivvertrag!F34) -> 1247.888783 | L36: =IF(AB36=TRUE,G35,0) -> 0 | M36: =IF(AC36=TRUE,G35,0) -> 0 | N36: =IF((L36+M36)>G35,"?","") ->  | AB36: FALSE | AC36: FALSE | AD36: =IF(AE36=TRUE,H36*0.8,H36) -> 1247.888783 | AE36: FALSE | AF36: 1497.46654 | AG36: 1622.255418 | AJ36: =IF((C35+C36)<17,(C35*40+C36*60)/17,(C35*40+C36*60)/(C35+C36)) -> 0 | AK36: Wochenpauschale (§ 7 KV) | AL36: weekly allowance (§7 KV)
A37: 18 | B37: =IF(Stammblatt!$L$5=1,'Kalkulation Herstellungskosten'!AK37,'Kalkulation Herstellungskosten'!AL37) -> Postproduktionskoordination | C37: 0 | F37: 0 | G37: =C37*E37+C38*E38 -> 0 | H37: =IF(Stammblatt!$I$41=TRUE,Kollektivvertrag!$D$58,Kollektivvertrag!D35) -> 1081.815766 | S37: =SUM(Q37:R38) -> 0 | T37: =G37-S37 -> 0 | AA37: =SUM(G37,X37:Z38) -> 0 | AD37: =IF(AE38=TRUE,H37*0.8,H37) -> 1081.815766 | AF37: 1298.178919 | AG37: 1406.360495 | AK37: Postproduktionskoordination | AL37: Postproduction coordinator
B38: =IF(Stammblatt!$L$5=1,'Kalkulation Herstellungskosten'!AK38,'Kalkulation Herstellungskosten'!AL38) -> Wochenpauschale (§ 7 KV) | C38: 0 | F38: 0 | H38: =IF(Stammblatt!$I$41=TRUE,Kollektivvertrag!$F$58,Kollektivvertrag!F35) -> 1498.315409 | L38: =IF(AB38=TRUE,G37,0) -> 0 | M38: =IF(AC38=TRUE,G37,0) -> 0 | N38: =IF((L38+M38)>G37,"?","") ->  | AB38: FALSE | AC38: FALSE | AD38: =IF(AE38=TRUE,H38*0.8,H38) -> 1498.315409 | AE38: FALSE | AF38: 1797.97849 | AG38: 1947.810031 | AJ38: =IF((C37+C38)<17,(C37*40+C38*60)/17,(C37*40+C38*60)/(C37+C38)) -> 0 | AK38: Wochenpauschale (§ 7 KV) | AL38: weekly allowance (§7 KV)
A39: =A37+1 -> 19 | B39: =IF(Stammblatt!$L$5=1,'Kalkulation Herstellungskosten'!AK39,'Kalkulation Herstellungskosten'!AL39) -> Produktionsassistenz | C39: 0 | F39: 0 | G39: =C39*E39+C40*E40 -> 0 | H39: =IF(Stammblatt!$I$41=TRUE,Kollektivvertrag!$D$58,Kollektivvertrag!D23) -> 766.6612777 | S39: =SUM(Q39:R40) -> 0 | T39: =G39-S39 -> 0 | AA39: =SUM(G39,X39:Z40) -> 0 | AD39: =IF(AE40=TRUE,H39*0.8,H39) -> 766.6612777 | AF39: 919.9935332 | AG39: 996.659661 | AK39: Produktionsassistenz | AL39: Production assistant
B40: =IF(Stammblatt!$L$5=1,'Kalkulation Herstellungskosten'!AK40,'Kalkulation Herstellungskosten'!AL40) -> Wochenpauschale (§ 7 KV) | C40: 0 | F40: 0 | H40: =IF(Stammblatt!$I$41=TRUE,Kollektivvertrag!$F$58,Kollektivvertrag!F23) -> 1061.833212 | L40: =IF(AB40=TRUE,G39,0) -> 0 | M40: =IF(AC40=TRUE,G39,0) -> 0 | N40: =IF((L40+M40)>G39,"?","") ->  | AB40: FALSE | AC40: FALSE | AD40: =IF(AE40=TRUE,H40*0.8,H40) -> 1061.833212 | AE40: FALSE | AF40: 1274.199854 | AG40: 1380.383175 | AJ40: =IF((C39+C40)<17,(C39*40+C40*60)/17,(C39*40+C40*60)/(C39+C40)) -> 0 | AK40: Wochenpauschale (§ 7 KV) | AL40: weekly allowance (§7 KV)
A41: =A39+1 -> 20 | B41: =IF(Stammblatt!$L$5=1,'Kalkulation Herstellungskosten'!AK41,'Kalkulation Herstellungskosten'!AL41) -> Filmgeschäftsführung | C41: 0 | F41: 0 | G41: =C41*E41+C42*E42 -> 0 | H41: =IF(AND(Stammblatt!$I$41=TRUE,GHSTK<=1200000),Kollektivvertrag!$D$58,IF(AND(Stammblatt!$I$41=TRUE,GHSTK>1200000),Kollektivvertrag!D22/2,Kollektivvertrag!D22)) -> 1265.96106 | S41: =SUM(Q41:R42) -> 0 | T41: =G41-S41 -> 0 | AA41: =SUM(G41,X41:Z42) -> 0 | AD41: =IF(AE42=TRUE,H41*0.8,H41) -> 1265.96106 | AF41: 1519.153272 | AG41: 1645.749378 | AK41: Filmgeschäftsführung | AL41: Production accountant
B42: =IF(Stammblatt!$L$5=1,'Kalkulation Herstellungskosten'!AK42,'Kalkulation Herstellungskosten'!AL42) -> Wochenpauschale (§ 7 KV) | C42: 0 | F42: 0 | H42: =IF(AND(Stammblatt!$I$41=TRUE,GHSTK<=1200000),Kollektivvertrag!$F$58,IF(AND(Stammblatt!$I$41=TRUE,GHSTK>1200000),Kollektivvertrag!F22/2,Kollektivvertrag!F22)) -> 1753.358644 | L42: =IF(AB42=TRUE,G41,0) -> 0 | M42: =IF(AC42=TRUE,G41,0) -> 0 | N42: =IF((L42+M42)>G41,"?","") ->  | AB42: FALSE | AC42: FALSE | AD42: =IF(AE42=TRUE,H42*0.8,H42) -> 1753.358644 | AE42: FALSE | AF42: 2104.030373 | AG42: 2279.366238 | AJ42: =IF((C41+C42)<17,(C41*40+C42*60)/17,(C41*40+C42*60)/(C41+C42)) -> 0 | AK42: Wochenpauschale (§ 7 KV) | AL42: weekly allowance (§7 KV)
A43: =A41+1 -> 21 | B43: =IF(Stammblatt!$L$5=1,'Kalkulation Herstellungskosten'!AK43,'Kalkulation Herstellungskosten'!AL43) -> Regie | C43: 0 | F43: =G43 -> 0 | G43: =C43*E43 -> 0 | H43: =IF(AND(Stammblatt!I12=TRUE,NFK_ges>1500000),56600,IF(Stammblatt!I12=TRUE,AD43*0.85,AD43)) -> 26250 | L43: =IF(AB43=TRUE,G43,0) -> 0 | M43: =IF(AC43=TRUE,G43,0) -> 0 | S43: =SUM(Q43:R43) -> 0 | T43: =G43-S43 -> 0 | AA43: =SUM(G43,X43:Z43) -> 0 | AB43: FALSE | AC43: FALSE | AD43: =IF(AE43=TRUE,Regie_Richtsatz*0.8,Regie_Richtsatz) -> 26250 | AE43: FALSE | AF43: 31500 | AG43: 34125 | AK43: Regie | AL43: Director
A44: =A43+1 -> 22 | B44: =IF(Stammblatt!$L$5=1,'Kalkulation Herstellungskosten'!AK44,'Kalkulation Herstellungskosten'!AL44) -> Regieassistenz | C44: 0 | F44: =E44 -> 0 | G44: =C44*E44+C45*E45 -> 0 | H44: =IF(AND(Stammblatt!$I$41=TRUE,GHSTK<=1200000),Kollektivvertrag!$D$58,IF(AND(Stammblatt!$I$41=TRUE,GHSTK>1200000),Kollektivvertrag!D12/2,Kollektivvertrag!D12)) -> 1241.595045 | S44: =SUM(Q44:R45) -> 0 | T44: =G44-S44 -> 0 | AA44: =SUM(G44,X44:Z45) -> 0 | AD44: =IF(AE45=TRUE,H44*0.8,H44) -> 1241.595045 | AF44: 1489.914054 | AG44: 1614.073559 | AK44: Regieassistenz | AL44: 1. Assistant director (AD)
B45: =IF(Stammblatt!$L$5=1,'Kalkulation Herstellungskosten'!AK45,'Kalkulation Herstellungskosten'!AL45) -> Wochenpauschale (§ 7 KV) | C45: 0 | F45: =E45 -> 0 | H45: =IF(AND(Stammblatt!$I$41=TRUE,GHSTK<=1200000),Kollektivvertrag!$F$58,IF(AND(Stammblatt!$I$41=TRUE,GHSTK>1200000),Kollektivvertrag!F12/2,Kollektivvertrag!F12)) -> 1719.609988 | L45: =IF(AB45=TRUE,G44,0) -> 0 | M45: =IF(AC45=TRUE,G44,0) -> 0 | N45: =IF((L45+M45)>G44,"?","") ->  | AB45: FALSE | AC45: FALSE | AD45: =IF(AE45=TRUE,H45*0.8,H45) -> 1719.609988 | AE45: FALSE | AF45: 2063.531985 | AG45: 2235.492984 | AJ45: =IF((C44+C45)<17,(C44*40+C45*60)/17,(C44*40+C45*60)/(C44+C45)) -> 0 | AK45: Wochenpauschale (§ 7 KV) | AL45: weekly allowance (§7 KV)
A46: =A44+1 -> 23 | B46: =IF(Stammblatt!$L$5=1,'Kalkulation Herstellungskosten'!AK46,'Kalkulation Herstellungskosten'!AL46) -> Continuity/Skript | C46: 0 | F46: =E46 -> 0 | G46: =C46*E46+C47*E47 -> 0 | H46: =IF(Stammblatt!$I$41=TRUE,Kollektivvertrag!$D$58,Kollektivvertrag!D24) -> 875.5715418 | S46: =SUM(Q46:R47) -> 0 | T46: =G46-S46 -> 0 | AA46: =SUM(G46,X46:Z47) -> 0 | AD46: =IF(AE47=TRUE,H46*0.8,H46) -> 875.5715418 | AF46: 1050.68585 | AG46: 1138.243004 | AK46: Continuity/Skript | AL46: Continuity
B47: =IF(Stammblatt!$L$5=1,'Kalkulation Herstellungskosten'!AK47,'Kalkulation Herstellungskosten'!AL47) -> Wochenpauschale (§ 7 KV) | C47: 0 | F47: 0 | H47: =IF(Stammblatt!$I$41=TRUE,Kollektivvertrag!$F$58,Kollektivvertrag!F24) -> 1212.658792 | L47: =IF(AB47=TRUE,G46,0) -> 0 | M47: =IF(AC47=TRUE,G46,0) -> 0 | N47: =IF((L47+M47)>G46,"?","") ->  | AB47: FALSE | AC47: FALSE | AD47: =IF(AE47=TRUE,H47*0.8,H47) -> 1212.658792 | AE47: FALSE | AF47: 1455.190551 | AG47: 1576.45643 | AJ47: =IF((C46+C47)<17,(C46*40+C47*60)/17,(C46*40+C47*60)/(C46+C47)) -> 0 | AK47: Wochenpauschale (§ 7 KV) | AL47: weekly allowance (§7 KV)
A48: =A46+1 -> 24 | B48: =IF(Stammblatt!$L$5=1,'Kalkulation Herstellungskosten'!AK48,'Kalkulation Herstellungskosten'!AL48) -> Kamera | C48: 0 | F48: 0 | G48: =C48*E48+C49*E49 -> 0 | H48: =IF(AND(Stammblatt!$I$41=TRUE,GHSTK<=1200000),Kollektivvertrag!$D$58,IF(AND(Stammblatt!$I$41=TRUE,GHSTK>1200000),AH48/2,AH48)) -> 3014.347574 | S48: =SUM(Q48:R49) -> 0 | T48: =G48-S48 -> 0 | AA48: =SUM(G48,X48:Z49) -> 0 | AD48: =IF(AE49=TRUE,H48*0.8,H48) -> 3014.347574 | AF48: 3617.217089 | AG48: 3918.651846 | AH48: =IF(Stammblatt!$I$37=1,Kollektivvertrag!D26,Kollektivvertrag!D27) -> 3014.347574 | AK48: Kamera | AL48: Director of Photography
B49: =IF(Stammblatt!$L$5=1,'Kalkulation Herstellungskosten'!AK49,'Kalkulation Herstellungskosten'!AL49) -> Wochenpauschale (§ 7 KV) | C49: 0 | F49: 0 | H49: =IF(AND(Stammblatt!$I$41=TRUE,GHSTK<=1200000),Kollektivvertrag!$F$58,IF(AND(Stammblatt!$I$41=TRUE,GHSTK>1200000),AH49/2,AH49)) -> 4174.87242 | L49: =IF(AB49=TRUE,G48,0) -> 0 | M49: =IF(AC49=TRUE,G48,0) -> 0 | N49: =IF((L49+M49)>G48,"?","") ->  | AB49: FALSE | AC49: FALSE | AD49: =IF(AE49=TRUE,H49*0.8,H49) -> 4174.87242 | AE49: FALSE | AF49: 5009.846905 | AG49: 5427.334147 | AH49: =IF(Stammblatt!$I$37=1,Kollektivvertrag!F26,Kollektivvertrag!F27) -> 4174.87242 | AJ49: =IF((C48+C49)<17,(C48*40+C49*60)/17,(C48*40+C49*60)/(C48+C49)) -> 0 | AK49: Wochenpauschale (§ 7 KV) | AL49: weekly allowance (§7 KV)
A50: =A48+1 -> 25 | B50: =IF(Stammblatt!$L$5=1,'Kalkulation Herstellungskosten'!AK50,'Kalkulation Herstellungskosten'!AL50) -> 1. Kameraassistenz | C50: 0 | F50: 0 | G50: =C50*E50+C51*E51 -> 0 | H50: =IF(AND(Stammblatt!$I$41=TRUE,GHSTK<=1200000),Kollektivvertrag!$D$58,IF(AND(Stammblatt!$I$41=TRUE,GHSTK>1200000),Kollektivvertrag!D28/2,Kollektivvertrag!D28)) -> 1184.835472 | S50: =SUM(Q50:R51) -> 0 | T50: =G50-S50 -> 0 | AA50: =SUM(G50,X50:Z51) -> 0 | AD50: =IF(AE51=TRUE,H50*0.8,H50) -> 1184.835472 | AF50: 1421.802567 | AG50: 1540.286114 | AK50: 1. Kameraassistenz | AL50: 1. Assistant camera
B51: =IF(Stammblatt!$L$5=1,'Kalkulation Herstellungskosten'!AK51,'Kalkulation Herstellungskosten'!AL51) -> Wochenpauschale (§ 7 KV) | C51: 0 | F51: 0 | H51: =IF(AND(Stammblatt!$I$41=TRUE,GHSTK<=1200000),Kollektivvertrag!$F$58,IF(AND(Stammblatt!$I$41=TRUE,GHSTK>1200000),Kollektivvertrag!F28/2,Kollektivvertrag!F28)) -> 1678.750927 | L51: =IF(AB51=TRUE,G50,0) -> 0 | M51: =IF(AC51=TRUE,G50,0) -> 0 | N51: =IF((L51+M51)>G50,"?","") ->  | AB51: FALSE | AC51: FALSE | AD51: =IF(AE51=TRUE,H51*0.8,H51) -> 1678.750927 | AE51: FALSE | AF51: 2014.501112 | AG51: 2182.376205 | AJ51: =IF((C50+C51)<17,(C50*40+C51*60)/17,(C50*40+C51*60)/(C50+C51)) -> 0 | AK51: Wochenpauschale (§ 7 KV) | AL51: weekly allowance (§7 KV)
A52: =A50+1 -> 26 | B52: =IF(Stammblatt!$L$5=1,'Kalkulation Herstellungskosten'!AK52,'Kalkulation Herstellungskosten'!AL52) -> 2. Kameraassistenz | C52: 0 | F52: 0 | G52: =C52*E52+C53*E53 -> 0 | H52: =IF(Stammblatt!$I$41=TRUE,Kollektivvertrag!$D$58,Kollektivvertrag!D29) -> 902.1969133 | S52: =SUM(Q52:R53) -> 0 | T52: =G52-S52 -> 0 | AA52: =SUM(G52,X52:Z53) -> 0 | AD52: =IF(AE53=TRUE,H52*0.8,H52) -> 902.1969133 | AF52: 1082.636296 | AG52: 1172.855987 | AK52: 2. Kameraassistenz | AL52: 2. Assistant camera
B53: =IF(Stammblatt!$L$5=1,'Kalkulation Herstellungskosten'!AK53,'Kalkulation Herstellungskosten'!AL53) -> Wochenpauschale (§ 7 KV) | C53: 0 | F53: 0 | H53: =IF(Stammblatt!$I$41=TRUE,Kollektivvertrag!$F$58,Kollektivvertrag!F29) -> 1278.275455 | L53: =IF(AB53=TRUE,G52,0) -> 0 | M53: =IF(AC53=TRUE,G52,0) -> 0 | N53: =IF((L53+M53)>G52,"?","") ->  | AB53: FALSE | AC53: FALSE | AD53: =IF(AE53=TRUE,H53*0.8,H53) -> 1278.275455 | AE53: FALSE | AF53: 1533.930546 | AG53: 1661.758092 | AJ53: =IF((C52+C53)<17,(C52*40+C53*60)/17,(C52*40+C53*60)/(C52+C53)) -> 0 | AK53: Wochenpauschale (§ 7 KV) | AL53: weekly allowance (§7 KV)
A54: =A52+1 -> 27 | B54: =IF(Stammblatt!$L$5=1,'Kalkulation Herstellungskosten'!AK54,'Kalkulation Herstellungskosten'!AL54) -> Kamera im Verbund, Schwenker | C54: 0 | F54: 0 | G54: =C54*E54+C55*E55 -> 0 | H54: =IF(AND(Stammblatt!$I$41=TRUE,GHSTK<=1200000),Kollektivvertrag!$D$58,IF(AND(Stammblatt!$I$41=TRUE,GHSTK>1200000),Kollektivvertrag!D30/2,Kollektivvertrag!D30)) -> 1241.595045 | S54: =SUM(Q54:R55) -> 0 | T54: =G54-S54 -> 0 | AA54: =SUM(G54,X54:Z55) -> 0 | AD54: =IF(AE55=TRUE,H54*0.8,H54) -> 1241.595045 | AF54: 1489.914054 | AG54: 1614.073559 | AK54: Kamera im Verbund, Schwenker | AL54: Camera operator
B55: =IF(Stammblatt!$L$5=1,'Kalkulation Herstellungskosten'!AK55,'Kalkulation Herstellungskosten'!AL55) -> Wochenpauschale (§ 7 KV) | C55: 0 | F55: 0 | H55: =IF(AND(Stammblatt!$I$41=TRUE,GHSTK<=1200000),Kollektivvertrag!$F$58,IF(AND(Stammblatt!$I$41=TRUE,GHSTK>1200000),Kollektivvertrag!F30/2,Kollektivvertrag!F30)) -> 1719.609988 | L55: =IF(AB55=TRUE,G54,0) -> 0 | M55: =IF(AC55=TRUE,G54,0) -> 0 | N55: =IF((L55+M55)>G54,"?","") ->  | AB55: FALSE | AC55: FALSE | AD55: =IF(AE55=TRUE,H55*0.8,H55) -> 1719.609988 | AE55: FALSE | AF55: 2063.531985 | AG55: 2235.492984 | AJ55: =IF((C54+C55)<17,(C54*40+C55*60)/17,(C54*40+C55*60)/(C54+C55)) -> 0 | AK55: Wochenpauschale (§ 7 KV) | AL55: weekly allowance (§7 KV)
A56: =A54+1 -> 28 | B56: =IF(Stammblatt!$L$5=1,'Kalkulation Herstellungskosten'!AK56,'Kalkulation Herstellungskosten'!AL56) -> Videotechnik | C56: 0 | F56: 0 | G56: =C56*E56+C57*E57 -> 0 | H56: =IF(Stammblatt!$I$41=TRUE,Kollektivvertrag!$D$58,Kollektivvertrag!D51) -> 1159.498218 | S56: =SUM(Q56:R57) -> 0 | T56: =G56-S56 -> 0 | AA56: =SUM(G56,X56:Z57) -> 0 | AD56: =IF(AE57=TRUE,H56*0.8,H56) -> 1159.498218 | AF56: 1391.397861 | AG56: 1507.347683 | AK56: Videotechnik | AL56: Video technician
B57: =IF(Stammblatt!$L$5=1,'Kalkulation Herstellungskosten'!AK57,'Kalkulation Herstellungskosten'!AL57) -> Wochenpauschale (§ 7 KV) | C57: 0 | F57: 0 | H57: =IF(Stammblatt!$I$41=TRUE,Kollektivvertrag!$F$58,Kollektivvertrag!F51) -> 1605.90793 | L57: =IF(AB57=TRUE,G56,0) -> 0 | M57: =IF(AC57=TRUE,G56,0) -> 0 | N57: =IF((L57+M57)>G56,"?","") ->  | AB57: FALSE | AC57: FALSE | AD57: =IF(AE57=TRUE,H57*0.8,H57) -> 1605.90793 | AE57: FALSE | AF57: 1927.089515 | AG57: 2087.680308 | AJ57: =IF((C56+C57)<17,(C56*40+C57*60)/17,(C56*40+C57*60)/(C56+C57)) -> 0 | AK57: Wochenpauschale (§ 7 KV) | AL57: weekly allowance (§7 KV)
A58: =A56+1 -> 29 | B58: Digital Image Technican (DIT) | C58: 0 | F58: 0 | G58: =C58*E58+C59*E59 -> 0 | H58: =IF(Stammblatt!$I$41=TRUE,Kollektivvertrag!$D$58,Kollektivvertrag!D36) -> 1081.815766 | S58: =SUM(Q58:R59) -> 0 | T58: =G58-S58 -> 0 | AA58: =SUM(G58,X58:Z59) -> 0 | AD58: =IF(AE59=TRUE,H58*0.8,H58) -> 1081.815766 | AF58: 1298.178919 | AG58: 1406.360495
B59: Wochenpauschale (§ 7 KV) | C59: 0 | F59: 0 | H59: =IF(Stammblatt!$I$41=TRUE,Kollektivvertrag!$F$58,Kollektivvertrag!F36) -> 1498.315409 | L59: =IF(AB59=TRUE,G58,0) -> 0 | M59: =IF(AC59=TRUE,G58,0) -> 0 | N59: =IF((L59+M59)>G58,"?","") ->  | AB59: FALSE | AC59: FALSE | AD59: =IF(AE59=TRUE,H59*0.8,H59) -> 1498.315409 | AE59: FALSE | AF59: =H59*1.2 -> 1797.97849 | AG59: =H59*1.3 -> 1947.810031 | AJ59: =IF((C58+C59)<17,(C58*40+C59*60)/17,(C58*40+C59*60)/(C58+C59)) -> 0
A60: =A58+1 -> 30 | B60: Data Wrangler | C60: 0 | F60: 0 | G60: =C60*E60+C61*E61 -> 0 | H60: =IF(Stammblatt!$I$41=TRUE,Kollektivvertrag!$D$58,Kollektivvertrag!D37) -> 757.2709072 | S60: =SUM(Q60:R61) -> 0 | T60: =G60-S60 -> 0 | AA60: =SUM(G60,X60:Z61) -> 0 | AD60: =IF(AE61=TRUE,H60*0.8,H60) -> 757.2709072 | AF60: 908.7250886 | AG60: 984.4521793
B61: Wochenpauschale (§ 7 KV) | C61: 0 | F61: 0 | H61: =IF(Stammblatt!$I$41=TRUE,Kollektivvertrag!$F$58,Kollektivvertrag!F37) -> 1048.823234 | L61: =IF(AB61=TRUE,G60,0) -> 0 | M61: =IF(AC61=TRUE,G60,0) -> 0 | N61: =IF((L61+M61)>G60,"?","") ->  | AB61: FALSE | AC61: FALSE | AD61: =IF(AE61=TRUE,H61*0.8,H61) -> 1048.823234 | AE61: FALSE | AF61: 1258.58788 | AG61: 1363.470204 | AJ61: =IF((C60+C61)<17,(C60*40+C61*60)/17,(C60*40+C61*60)/(C60+C61)) -> 0
A62: =A60+1 -> 31 | B62: =IF(Stammblatt!$L$5=1,'Kalkulation Herstellungskosten'!AK62,'Kalkulation Herstellungskosten'!AL62) -> Ton I Ton II | C62: 0 | F62: 0 | G62: =C62*E62+C63*E63 -> 0 | H62: =IF(AND(Stammblatt!$I$41=TRUE,GHSTK<=1200000),Kollektivvertrag!$D$58,IF(AND(Stammblatt!$I$41=TRUE,GHSTK>1200000),AI62/2,AI62)) -> 1843.810197 | S62: =SUM(Q62:R63) -> 0 | T62: =G62-S62 -> 0 | AA62: =SUM(G62,X62:Z63) -> 0 | AD62: =IF(AE63=TRUE,H62*0.8,H62) -> 1843.810197 | AF62: 2212.572236 | AG62: 2396.953256 | AH62: FALSE | AI62: =IF(AH62=FALSE,Kollektivvertrag!D49,Kollektivvertrag!D50) -> 1843.810197 | AK62: Ton I Ton II | AL62: Sound engineer
B63: =IF(Stammblatt!$L$5=1,'Kalkulation Herstellungskosten'!AK63,'Kalkulation Herstellungskosten'!AL63) -> Wochenpauschale (§ 7 KV) | C63: 0 | F63: 0 | H63: =IF(AND(Stammblatt!$I$41=TRUE,GHSTK<=1200000),Kollektivvertrag!$F$58,IF(AND(Stammblatt!$I$41=TRUE,GHSTK>1200000),AI63/2,AI63)) -> 2553.678411 | L63: =IF(AB63=TRUE,G62,0) -> 0 | M63: =IF(AC63=TRUE,G62,0) -> 0 | N63: =IF((L63+M63)>G62,"?","") ->  | AB63: FALSE | AC63: FALSE | AD63: =IF(AE63=TRUE,H63*0.8,H63) -> 2553.678411 | AE63: FALSE | AF63: 3064.414093 | AG63: 3319.781934 | AI63: =IF(AH62=FALSE,Kollektivvertrag!F49,Kollektivvertrag!F50) -> 2553.678411 | AJ63: =IF((C62+C63)<17,(C62*40+C63*60)/17,(C62*40+C63*60)/(C62+C63)) -> 0 | AK63: Wochenpauschale (§ 7 KV) | AL63: weekly allowance (§7 KV)
A64: =A62+1 -> 32 | B64: =IF(Stammblatt!$L$5=1,'Kalkulation Herstellungskosten'!AK64,'Kalkulation Herstellungskosten'!AL64) -> Tonassistenz | C64: 0 | F64: 0 | G64: =C64*E64+C65*E65 -> 0 | H64: =IF(Stammblatt!$I$41=TRUE,Kollektivvertrag!$D$58,Kollektivvertrag!D51) -> 1159.498218 | S64: =SUM(Q64:R65) -> 0 | T64: =G64-S64 -> 0 | AA64: =SUM(G64,X64:Z65) -> 0 | AD64: =IF(AE65=TRUE,H64*0.8,H64) -> 1159.498218 | AF64: 1391.397861 | AG64: 1507.347683 | AK64: Tonassistenz | AL64: Boom operator
B65: =IF(Stammblatt!$L$5=1,'Kalkulation Herstellungskosten'!AK65,'Kalkulation Herstellungskosten'!AL65) -> Wochenpauschale (§ 7 KV) | C65: 0 | F65: 0 | H65: =IF(Stammblatt!$I$41=TRUE,Kollektivvertrag!$F$58,Kollektivvertrag!F51) -> 1605.90793 | L65: =IF(AB65=TRUE,G64,0) -> 0 | M65: =IF(AC65=TRUE,G64,0) -> 0 | N65: =IF((L65+M65)>G64,"?","") ->  | AB65: FALSE | AC65: FALSE | AD65: =IF(AE65=TRUE,H65*0.8,H65) -> 1605.90793 | AE65: FALSE | AF65: 1927.089515 | AG65: 2087.680308 | AJ65: =IF((C64+C65)<17,(C64*40+C65*60)/17,(C64*40+C65*60)/(C64+C65)) -> 0 | AK65: Wochenpauschale (§ 7 KV) | AL65: weekly allowance (§7 KV)
A66: =A64+1 -> 33 | B66: =IF(Stammblatt!$L$5=1,'Kalkulation Herstellungskosten'!AK66,'Kalkulation Herstellungskosten'!AL66) -> Primärtontechnik | C66: 0 | F66: 0 | G66: =C66*E66+C67*E67 -> 0 | H66: =IF(Stammblatt!$I$41=TRUE,Kollektivvertrag!$D$58,Kollektivvertrag!D51) -> 1159.498218 | S66: =SUM(Q66:R67) -> 0 | T66: =G66-S66 -> 0 | AA66: =SUM(G66,X66:Z67) -> 0 | AD66: =IF(AE67=TRUE,H66*0.8,H66) -> 1159.498218 | AF66: 1391.397861 | AG66: 1507.347683 | AK66: Primärtontechnik | AL66: Direct sound engineer
B67: =IF(Stammblatt!$L$5=1,'Kalkulation Herstellungskosten'!AK67,'Kalkulation Herstellungskosten'!AL67) -> Wochenpauschale (§ 7 KV) | C67: 0 | F67: 0 | H67: =IF(Stammblatt!$I$41=TRUE,Kollektivvertrag!$F$58,Kollektivvertrag!F51) -> 1605.90793 | L67: =IF(AB67=TRUE,G66,0) -> 0 | M67: =IF(AC67=TRUE,G66,0) -> 0 | N67: =IF((L67+M67)>G66,"?","") ->  | AB67: FALSE | AC67: FALSE | AD67: =IF(AE67=TRUE,H67*0.8,H67) -> 1605.90793 | AE67: FALSE | AF67: 1927.089515 | AG67: 2087.680308 | AJ67: =IF((C66+C67)<17,(C66*40+C67*60)/17,(C66*40+C67*60)/(C66+C67)) -> 0 | AK67: Wochenpauschale (§ 7 KV) | AL67: weekly allowance (§7 KV)
A68: =A66+1 -> 34 | B68: =IF(Stammblatt!$L$5=1,'Kalkulation Herstellungskosten'!AK68,'Kalkulation Herstellungskosten'!AL68) -> Schnitt | C68: 0 | F68: 0 | G68: =C68*E68+C69*E69 -> 0 | H68: =IF(AND(Stammblatt!$I$41=TRUE,GHSTK<=1200000),Kollektivvertrag!$D$58,IF(AND(Stammblatt!$I$41=TRUE,GHSTK>1200000),Kollektivvertrag!D38/2,Kollektivvertrag!D38)) -> 1321.118216 | S68: =SUM(Q68:R69) -> 0 | T68: =G68-S68 -> 0 | AA68: =SUM(G68,X68:Z69) -> 0 | AD68: =IF(AE69=TRUE,H68*0.8,H68) -> 1321.118216 | AF68: 1585.341859 | AG68: 1717.45368 | AK68: Schnitt | AL68: Editor
B69: =IF(Stammblatt!$L$5=1,'Kalkulation Herstellungskosten'!AK69,'Kalkulation Herstellungskosten'!AL69) -> Wochenpauschale (§ 7 KV) | C69: 0 | F69: 0 | H69: =IF(AND(Stammblatt!$I$41=TRUE,GHSTK<=1200000),Kollektivvertrag!$F$58,IF(AND(Stammblatt!$I$41=TRUE,GHSTK>1200000),Kollektivvertrag!F38/2,Kollektivvertrag!F38)) -> 1829.747827 | L69: =IF(AB69=TRUE,G68,0) -> 0 | M69: =IF(AC69=TRUE,G68,0) -> 0 | N69: =IF((L69+M69)>G68,"?","") ->  | AB69: FALSE | AC69: FALSE | AD69: =IF(AE69=TRUE,H69*0.8,H69) -> 1829.747827 | AE69: FALSE | AF69: 2195.697392 | AG69: 2378.672175 | AJ69: =IF((C68+C69)<17,(C68*40+C69*60)/17,(C68*40+C69*60)/(C68+C69)) -> 0 | AK69: Wochenpauschale (§ 7 KV) | AL69: weekly allowance (§7 KV)
A70: =A68+1 -> 35 | B70: =IF(Stammblatt!$L$5=1,'Kalkulation Herstellungskosten'!AK70,'Kalkulation Herstellungskosten'!AL70) -> Schnittassistenz | C70: 0 | F70: 0 | G70: =C70*E70+C71*E71 -> 0 | H70: =IF(Stammblatt!$I$41=TRUE,Kollektivvertrag!$D$58,Kollektivvertrag!D39) -> 862.3078045 | S70: =SUM(Q70:R71) -> 0 | T70: =G70-S70 -> 0 | AA70: =SUM(G70,X70:Z71) -> 0 | AD70: =IF(AE71=TRUE,H70*0.8,H70) -> 862.3078045 | AF70: 1034.769365 | AG70: 1121.000146 | AK70: Schnittassistenz | AL70: Assistant Editor
B71: =IF(Stammblatt!$L$5=1,'Kalkulation Herstellungskosten'!AK71,'Kalkulation Herstellungskosten'!AL71) -> Wochenpauschale (§ 7 KV) | C71: 0 | F71: 0 | H71: =IF(Stammblatt!$I$41=TRUE,Kollektivvertrag!$F$58,Kollektivvertrag!F39) -> 1194.30313 | L71: =IF(AB71=TRUE,G70,0) -> 0 | M71: =IF(AC71=TRUE,G70,0) -> 0 | N71: =IF((L71+M71)>G70,"?","") ->  | AB71: FALSE | AC71: FALSE | AD71: =IF(AE71=TRUE,H71*0.8,H71) -> 1194.30313 | AE71: FALSE | AF71: 1433.163756 | AG71: 1552.594069 | AJ71: =IF((C70+C71)<17,(C70*40+C71*60)/17,(C70*40+C71*60)/(C70+C71)) -> 0 | AK71: Wochenpauschale (§ 7 KV) | AL71: weekly allowance (§7 KV)
A72: =A70+1 -> 36 | B72: Sound Design | C72: 0 | F72: 0 | G72: =C72*E72+C73*E73 -> 0 | H72: =IF(AND(Stammblatt!$I$41=TRUE,GHSTK<=1200000),Kollektivvertrag!$D$58,IF(AND(Stammblatt!$I$41=TRUE,GHSTK>1200000),Kollektivvertrag!D41/2,Kollektivvertrag!D41)) -> 1321.118216 | S72: =SUM(Q72:R73) -> 0 | T72: =G72-S72 -> 0 | AA72: =SUM(G72,X72:Z73) -> 0 | AD72: =IF(AE73=TRUE,H72*0.8,H72) -> 1321.118216 | AF72: 1585.341859 | AG72: 1717.45368
B73: =IF(Stammblatt!$L$5=1,'Kalkulation Herstellungskosten'!AK73,'Kalkulation Herstellungskosten'!AL73) -> Wochenpauschale (§ 7 KV) | C73: 0 | F73: 0 | H73: =IF(AND(Stammblatt!$I$41=TRUE,GHSTK<=1200000),Kollektivvertrag!$F$58,IF(AND(Stammblatt!$I$41=TRUE,GHSTK>1200000),Kollektivvertrag!F41/2,Kollektivvertrag!F41)) -> 1829.747827 | L73: =IF(AB73=TRUE,G72,0) -> 0 | M73: =IF(AC73=TRUE,G72,0) -> 0 | N73: =IF((L73+M73)>G72,"?","") ->  | AB73: FALSE | AC73: FALSE | AD73: =IF(AE73=TRUE,H73*0.8,H73) -> 1829.747827 | AE73: FALSE | AF73: 2195.697392 | AG73: 2378.672175 | AJ73: =IF((C72+C73)<17,(C72*40+C73*60)/17,(C72*40+C73*60)/(C72+C73)) -> 0 | AK73: Wochenpauschale (§ 7 KV) | AL73: weekly allowance (§7 KV)
A74: =A72+1 -> 37 | B74: =IF(Stammblatt!$L$5=1,'Kalkulation Herstellungskosten'!AK74,'Kalkulation Herstellungskosten'!AL74) -> Tonschnitt | C74: 0 | F74: 0 | G74: =C74*E74+C75*E75 -> 0 | H74: =IF(Stammblatt!$I$41=TRUE,Kollektivvertrag!$D$58,Kollektivvertrag!D40) -> 990.8360855 | S74: =SUM(Q74:R75) -> 0 | T74: =G74-S74 -> 0 | AA74: =SUM(G74,X74:Z75) -> 0 | AD74: =IF(AE75=TRUE,H74*0.8,H74) -> 990.8360855 | AF74: 1189.003303 | AG74: 1288.086911 | AK74: Tonschnitt | AL74: Sound Editor
B75: =IF(Stammblatt!$L$5=1,'Kalkulation Herstellungskosten'!AK75,'Kalkulation Herstellungskosten'!AL75) -> Wochenpauschale (§ 7 KV) | C75: 0 | F75: 0 | H75: =IF(Stammblatt!$I$41=TRUE,Kollektivvertrag!$F$58,Kollektivvertrag!F40) -> 1372.307972 | L75: =IF(AB75=TRUE,G74,0) -> 0 | M75: =IF(AC75=TRUE,G74,0) -> 0 | N75: =IF((L75+M75)>G74,"?","") ->  | AB75: FALSE | AC75: FALSE | AD75: =IF(AE75=TRUE,H75*0.8,H75) -> 1372.307972 | AE75: FALSE | AF75: 1646.769566 | AG75: 1784.000364 | AJ75: =IF((C74+C75)<17,(C74*40+C75*60)/17,(C74*40+C75*60)/(C74+C75)) -> 0 | AK75: Wochenpauschale (§ 7 KV) | AL75: weekly allowance (§7 KV)
A76: =A74+1 -> 38 | B76: =IF(Stammblatt!$L$5=1,'Kalkulation Herstellungskosten'!AK76,'Kalkulation Herstellungskosten'!AL76) -> Kostümbild | C76: 0 | F76: 0 | G76: =C76*E76+C77*E77 -> 0 | H76: =IF(AND(Stammblatt!$I$41=TRUE,GHSTK<=1200000),Kollektivvertrag!$D$58,IF(AND(Stammblatt!$I$41=TRUE,GHSTK>1200000),Kollektivvertrag!D44/2,Kollektivvertrag!D44)) -> 1424.292496 | S76: =SUM(Q76:R77) -> 0 | T76: =G76-S76 -> 0 | AA76: =SUM(G76,X76:Z77) -> 0 | AD76: =IF(AE77=TRUE,H76*0.8,H76) -> 1424.292496 | AF76: 1709.150996 | AG76: 1851.580245 | AK76: Kostümbild | AL76: Costume designer
B77: =IF(Stammblatt!$L$5=1,'Kalkulation Herstellungskosten'!AK77,'Kalkulation Herstellungskosten'!AL77) -> Wochenpauschale (§ 7 KV) | C77: 0 | F77: 0 | H77: =IF(AND(Stammblatt!$I$41=TRUE,GHSTK<=1200000),Kollektivvertrag!$F$58,IF(AND(Stammblatt!$I$41=TRUE,GHSTK>1200000),Kollektivvertrag!F44/2,Kollektivvertrag!F44)) -> 1972.647626 | L77: =IF(AB77=TRUE,G76,0) -> 0 | M77: =IF(AC77=TRUE,G76,0) -> 0 | N77: =IF((L77+M77)>G76,"?","") ->  | AB77: FALSE | AC77: FALSE | AD77: =IF(AE77=TRUE,H77*0.8,H77) -> 1972.647626 | AE77: FALSE | AF77: 2367.177151 | AG77: 2564.441913 | AJ77: =IF((C76+C77)<17,(C76*40+C77*60)/17,(C76*40+C77*60)/(C76+C77)) -> 0 | AK77: Wochenpauschale (§ 7 KV) | AL77: weekly allowance (§7 KV)
A78: =A76+1 -> 39 | B78: =IF(Stammblatt!$L$5=1,'Kalkulation Herstellungskosten'!AK78,'Kalkulation Herstellungskosten'!AL78) -> Kostümbildassistenz | C78: 0 | F78: =E78 -> 0 | G78: =C78*E78+C79*E79 -> 0 | H78: =IF(Stammblatt!$I$41=TRUE,Kollektivvertrag!$D$58,Kollektivvertrag!D45) -> 997.0074525 | S78: =SUM(Q78:R79) -> 0 | T78: =G78-S78 -> 0 | AA78: =SUM(G78,X78:Z79) -> 0 | AD78: =IF(AE79=TRUE,H78*0.8,H78) -> 997.0074525 | AF78: 1196.408943 | AG78: 1296.109688 | AK78: Kostümbildassistenz | AL78: Costume adviser
B79: =IF(Stammblatt!$L$5=1,'Kalkulation Herstellungskosten'!AK79,'Kalkulation Herstellungskosten'!AL79) -> Wochenpauschale (§ 7 KV) | C79: 0 | F79: 0 | H79: =IF(Stammblatt!$I$41=TRUE,Kollektivvertrag!$F$58,Kollektivvertrag!F45) -> 1380.848185 | L79: =IF(AB79=TRUE,G78,0) -> 0 | M79: =IF(AC79=TRUE,G78,0) -> 0 | N79: =IF((L79+M79)>G78,"?","") ->  | AB79: FALSE | AC79: FALSE | AD79: =IF(AE79=TRUE,H79*0.8,H79) -> 1380.848185 | AE79: FALSE | AF79: 1657.017823 | AG79: 1795.102641 | AJ79: =IF((C78+C79)<17,(C78*40+C79*60)/17,(C78*40+C79*60)/(C78+C79)) -> 0 | AK79: Wochenpauschale (§ 7 KV) | AL79: weekly allowance (§7 KV)
A80: =A78+1 -> 40 | B80: =IF(Stammblatt!$L$5=1,'Kalkulation Herstellungskosten'!AK80,'Kalkulation Herstellungskosten'!AL80) -> Garderobe | C80: 0 | F80: 0 | G80: =C80*E80+C81*E81 -> 0 | H80: =IF(Stammblatt!$I$41=TRUE,Kollektivvertrag!$D$58,Kollektivvertrag!D46) -> 849.1780313 | S80: =SUM(Q80:R81) -> 0 | T80: =G80-S80 -> 0 | AA80: =SUM(G80,X80:Z81) -> 0 | AD80: =IF(AE81=TRUE,H80*0.8,H80) -> 849.1780313 | AF80: 1019.013638 | AG80: 1103.931441 | AK80: Garderobe | AL80: Wardrobe
B81: =IF(Stammblatt!$L$5=1,'Kalkulation Herstellungskosten'!AK81,'Kalkulation Herstellungskosten'!AL81) -> Wochenpauschale (§ 7 KV) | C81: 0 | F81: 0 | H81: =IF(Stammblatt!$I$41=TRUE,Kollektivvertrag!$F$58,Kollektivvertrag!F46) -> 1176.118787 | L81: =IF(AB81=TRUE,G80,0) -> 0 | M81: =IF(AC81=TRUE,G80,0) -> 0 | N81: =IF((L81+M81)>G80,"?","") ->  | AB81: FALSE | AC81: FALSE | AD81: =IF(AE81=TRUE,H81*0.8,H81) -> 1176.118787 | AE81: FALSE | AF81: 1411.342544 | AG81: 1528.954423 | AJ81: =IF((C80+C81)<17,(C80*40+C81*60)/17,(C80*40+C81*60)/(C80+C81)) -> 0 | AK81: Wochenpauschale (§ 7 KV) | AL81: weekly allowance (§7 KV)
A82: =A80+1 -> 41 | B82: =IF(Stammblatt!$L$5=1,'Kalkulation Herstellungskosten'!AK82,'Kalkulation Herstellungskosten'!AL82) -> Garderobe | C82: 0 | F82: 0 | G82: =C82*E82+C83*E83 -> 0 | H82: =IF(Stammblatt!$I$41=TRUE,Kollektivvertrag!$D$58,Kollektivvertrag!D46) -> 849.1780313 | S82: =SUM(Q82:R83) -> 0 | T82: =G82-S82 -> 0 | AA82: =SUM(G82,X82:Z83) -> 0 | AD82: =IF(AE83=TRUE,H82*0.8,H82) -> 849.1780313 | AF82: 1019.013638 | AG82: 1103.931441 | AK82: Garderobe | AL82: Wardrobe
B83: =IF(Stammblatt!$L$5=1,'Kalkulation Herstellungskosten'!AK83,'Kalkulation Herstellungskosten'!AL83) -> Wochenpauschale (§ 7 KV) | C83: 0 | F83: 0 | H83: =IF(Stammblatt!$I$41=TRUE,Kollektivvertrag!$F$58,Kollektivvertrag!F46) -> 1176.118787 | L83: =IF(AB83=TRUE,G82,0) -> 0 | M83: =IF(AC83=TRUE,G82,0) -> 0 | N83: =IF((L83+M83)>G82,"?","") ->  | AB83: FALSE | AC83: FALSE | AD83: =IF(AE83=TRUE,H83*0.8,H83) -> 1176.118787 | AE83: FALSE | AF83: 1411.342544 | AG83: 1528.954423 | AJ83: =IF((C82+C83)<17,(C82*40+C83*60)/17,(C82*40+C83*60)/(C82+C83)) -> 0 | AK83: Wochenpauschale (§ 7 KV) | AL83: weekly allowance (§7 KV)
A84: =A82+1 -> 42 | B84: =IF(Stammblatt!$L$5=1,'Kalkulation Herstellungskosten'!AK84,'Kalkulation Herstellungskosten'!AL84) -> Garderobenhilfe | C84: 0 | F84: 0 | G84: =C84*E84+C85*E85 -> 0 | H84: =IF(Stammblatt!$I$41=TRUE,Kollektivvertrag!$D$58,Kollektivvertrag!D48) -> 663.6248255 | S84: =SUM(Q84:R85) -> 0 | T84: =G84-S84 -> 0 | AA84: =SUM(G84,X84:Z85) -> 0 | AD84: =IF(AE85=TRUE,H84*0.8,H84) -> 663.6248255 | AF84: 796.3497906 | AG84: 862.7122732 | AK84: Garderobenhilfe | AL84: Assistant wardrobe
B85: =IF(Stammblatt!$L$5=1,'Kalkulation Herstellungskosten'!AK85,'Kalkulation Herstellungskosten'!AL85) -> Wochenpauschale (§ 7 KV) | C85: 0 | F85: 0 | H85: =IF(Stammblatt!$I$41=TRUE,Kollektivvertrag!$F$58,Kollektivvertrag!F48) -> 919.1227663 | L85: =IF(AB85=TRUE,G84,0) -> 0 | M85: =IF(AC85=TRUE,G84,0) -> 0 | N85: =IF((L85+M85)>G84,"?","") ->  | AB85: FALSE | AC85: FALSE | AD85: =IF(AE85=TRUE,H85*0.8,H85) -> 919.1227663 | AE85: FALSE | AF85: 1102.94732 | AG85: 1194.859596 | AJ85: =IF((C84+C85)<17,(C84*40+C85*60)/17,(C84*40+C85*60)/(C84+C85)) -> 0 | AK85: Wochenpauschale (§ 7 KV) | AL85: weekly allowance (§7 KV)
A86: =A84+1 -> 43 | B86: =IF(Stammblatt!$L$5=1,'Kalkulation Herstellungskosten'!AK86,'Kalkulation Herstellungskosten'!AL86) -> Außenrequisite | C86: 0 | F86: 0 | G86: =C86*E86+C87*E87 -> 0 | H86: =IF(Stammblatt!$I$41=TRUE,Kollektivvertrag!$D$58,Kollektivvertrag!D42) -> 1088.171333 | S86: =SUM(Q86:R87) -> 0 | T86: =G86-S86 -> 0 | AA86: =SUM(G86,X86:Z87) -> 0 | AD86: =IF(AE87=TRUE,H86*0.8,H86) -> 1088.171333 | AF86: 1305.8056 | AG86: 1414.622733 | AK86: Außenrequisite | AL86: Prop buyer
B87: =IF(Stammblatt!$L$5=1,'Kalkulation Herstellungskosten'!AK87,'Kalkulation Herstellungskosten'!AL87) -> Wochenpauschale (§ 7 KV) | C87: 0 | F87: 0 | H87: =IF(Stammblatt!$I$41=TRUE,Kollektivvertrag!$F$58,Kollektivvertrag!F42) -> 1507.122262 | L87: =IF(AB87=TRUE,G86,0) -> 0 | M87: =IF(AC87=TRUE,G86,0) -> 0 | N87: =IF((L87+M87)>G86,"?","") ->  | AB87: FALSE | AC87: FALSE | AD87: =IF(AE87=TRUE,H87*0.8,H87) -> 1507.122262 | AE87: FALSE | AF87: 1808.546715 | AG87: 1959.258941 | AJ87: =IF((C86+C87)<17,(C86*40+C87*60)/17,(C86*40+C87*60)/(C86+C87)) -> 0 | AK87: Wochenpauschale (§ 7 KV) | AL87: weekly allowance (§7 KV)
A88: =A86+1 -> 44 | B88: =IF(Stammblatt!$L$5=1,'Kalkulation Herstellungskosten'!AK88,'Kalkulation Herstellungskosten'!AL88) -> Innenrequisite | C88: 0 | F88: 0 | G88: =C88*E88+C89*E89 -> 0 | H88: =IF(Stammblatt!$I$41=TRUE,Kollektivvertrag!$D$58,Kollektivvertrag!D43) -> 1006.848664 | S88: =SUM(Q88:R89) -> 0 | T88: =G88-S88 -> 0 | AA88: =SUM(G88,X88:Z89) -> 0 | AD88: =IF(AE89=TRUE,H88*0.8,H88) -> 1006.848664 | AF88: 1208.218397 | AG88: 1308.903263 | AK88: Innenrequisite | AL88: Set decorator
B89: =IF(Stammblatt!$L$5=1,'Kalkulation Herstellungskosten'!AK89,'Kalkulation Herstellungskosten'!AL89) -> Wochenpauschale (§ 7 KV) | C89: 0 | F89: 0 | H89: =IF(Stammblatt!$I$41=TRUE,Kollektivvertrag!$F$58,Kollektivvertrag!F43) -> 1394.489341 | L89: =IF(AB89=TRUE,G88,0) -> 0 | M89: =IF(AC89=TRUE,G88,0) -> 0 | N89: =IF((L89+M89)>G88,"?","") ->  | AB89: FALSE | AC89: FALSE | AD89: =IF(AE89=TRUE,H89*0.8,H89) -> 1394.489341 | AE89: FALSE | AF89: 1673.387209 | AG89: 1812.836143 | AJ89: =IF((C88+C89)<17,(C88*40+C89*60)/17,(C88*40+C89*60)/(C88+C89)) -> 0 | AK89: Wochenpauschale (§ 7 KV) | AL89: weekly allowance (§7 KV)
A90: =A88+1 -> 45 | B90: =IF(Stammblatt!$L$5=1,'Kalkulation Herstellungskosten'!AK90,'Kalkulation Herstellungskosten'!AL90) -> Requisitenhilfe | C90: 0 | F90: =E90 -> 0 | G90: =C90*E90+C91*E91 -> 0 | H90: =IF(Stammblatt!$I$41=TRUE,Kollektivvertrag!$D$58,Kollektivvertrag!D48) -> 663.6248255 | S90: =SUM(Q90:R91) -> 0 | T90: =G90-S90 -> 0 | AA90: =SUM(G90,X90:Z91) -> 0 | AD90: =IF(AE91=TRUE,H90*0.8,H90) -> 663.6248255 | AF90: 796.3497906 | AG90: 862.7122732 | AK90: Requisitenhilfe | AL90: Prop driver
B91: =IF(Stammblatt!$L$5=1,'Kalkulation Herstellungskosten'!AK91,'Kalkulation Herstellungskosten'!AL91) -> Wochenpauschale (§ 7 KV) | C91: 0 | F91: 0 | H91: =IF(Stammblatt!$I$41=TRUE,Kollektivvertrag!$F$58,Kollektivvertrag!F48) -> 919.1227663 | L91: =IF(AB91=TRUE,G90,0) -> 0 | M91: =IF(AC91=TRUE,G90,0) -> 0 | N91: =IF((L91+M91)>G90,"?","") ->  | AB91: FALSE | AC91: FALSE | AD91: =IF(AE91=TRUE,H91*0.8,H91) -> 919.1227663 | AE91: FALSE | AF91: =H91*1.2 -> 1102.94732 | AG91: =H91*1.3 -> 1194.859596 | AJ91: =IF((C90+C91)<17,(C90*40+C91*60)/17,(C90*40+C91*60)/(C90+C91)) -> 0 | AK91: Wochenpauschale (§ 7 KV) | AL91: weekly allowance (§7 KV)
A92: =A90+1 -> 46 | B92: =IF(Stammblatt!$L$5=1,'Kalkulation Herstellungskosten'!AK92,'Kalkulation Herstellungskosten'!AL92) -> Szenenbild (Filmarchitektur) | C92: 0 | F92: 0 | G92: =C92*E92+C93*E93 -> 0 | H92: =IF(AND(Stammblatt!$I$41=TRUE,GHSTK<=1200000),Kollektivvertrag!$D$58,IF(AND(Stammblatt!$I$41=TRUE,GHSTK>1200000),Kollektivvertrag!D52/2,Kollektivvertrag!D52)) -> 1485.757559 | S92: =SUM(Q92:R93) -> 0 | T92: =G92-S92 -> 0 | AA92: =SUM(G92,X92:Z93) -> 0 | AD92: =IF(AE93=TRUE,H92*0.8,H92) -> 1485.757559 | AF92: 1782.909071 | AG92: 1931.484827 | AK92: Szenenbild (Filmarchitektur)
B93: =IF(Stammblatt!$L$5=1,'Kalkulation Herstellungskosten'!AK93,'Kalkulation Herstellungskosten'!AL93) -> Wochenpauschale (§ 7 KV) | C93: 0 | F93: 0 | H93: =IF(AND(Stammblatt!$I$41=TRUE,GHSTK<=1200000),Kollektivvertrag!$F$58,IF(AND(Stammblatt!$I$41=TRUE,GHSTK>1200000),Kollektivvertrag!F52/2,Kollektivvertrag!F52)) -> 2057.766375 | L93: =IF(AB93=TRUE,G92,0) -> 0 | M93: =IF(AC93=TRUE,G92,0) -> 0 | N93: =IF((L93+M93)>G92,"?","") ->  | AB93: FALSE | AC93: FALSE | AD93: =IF(AE93=TRUE,H93*0.8,H93) -> 2057.766375 | AE93: FALSE | AF93: 2469.31965 | AG93: 2675.096288 | AJ93: =IF((C92+C93)<17,(C92*40+C93*60)/17,(C92*40+C93*60)/(C92+C93)) -> 0 | AK93: Wochenpauschale (§ 7 KV)
A94: =A92+1 -> 47 | B94: =IF(Stammblatt!$L$5=1,'Kalkulation Herstellungskosten'!AK94,'Kalkulation Herstellungskosten'!AL94) -> Szenenbildassistenz | C94: 0 | F94: 0 | G94: =C94*E94+C95*E95 -> 0 | H94: =IF(Stammblatt!$I$41=TRUE,Kollektivvertrag!$D$58,Kollektivvertrag!D53) -> 1115.273308 | S94: =SUM(Q94:R95) -> 0 | T94: =G94-S94 -> 0 | AA94: =SUM(G94,X94:Z95) -> 0 | AD94: =IF(AE95=TRUE,H94*0.8,H94) -> 1115.273308 | AF94: 1338.32797 | AG94: 1449.8553 | AK94: Szenenbildassistenz | AL94: Art department assistant
B95: =IF(Stammblatt!$L$5=1,'Kalkulation Herstellungskosten'!AK95,'Kalkulation Herstellungskosten'!AL95) -> Wochenpauschale (§ 7 KV) | C95: 0 | F95: 0 | H95: =IF(Stammblatt!$I$41=TRUE,Kollektivvertrag!$F$58,Kollektivvertrag!F53) -> 1544.654118 | L95: =IF(AB95=TRUE,G94,0) -> 0 | M95: =IF(AC95=TRUE,G94,0) -> 0 | N95: =IF((L95+M95)>G94,"?","") ->  | AB95: FALSE | AC95: FALSE | AD95: =IF(AE95=TRUE,H95*0.8,H95) -> 1544.654118 | AE95: FALSE | AF95: 1853.584941 | AG95: 2008.050353 | AJ95: =IF((C94+C95)<17,(C94*40+C95*60)/17,(C94*40+C95*60)/(C94+C95)) -> 0 | AK95: Wochenpauschale (§ 7 KV) | AL95: weekly allowance (§7 KV)
A96: =A94+1 -> 48 | B96: =IF(Stammblatt!$L$5=1,'Kalkulation Herstellungskosten'!AK96,'Kalkulation Herstellungskosten'!AL96) -> Maskenbild | C96: 0 | F96: 0 | G96: =C96*E96+C97*E97 -> 0 | H96: =IF(AND(Stammblatt!$I$41=TRUE,GHSTK<=1200000),Kollektivvertrag!$D$58,IF(AND(Stammblatt!$I$41=TRUE,GHSTK>1200000),Kollektivvertrag!D47/2,Kollektivvertrag!D47)) -> 1321.118216 | S96: =SUM(Q96:R97) -> 0 | T96: =G96-S96 -> 0 | AA96: =SUM(G96,X96:Z97) -> 0 | AD96: =IF(AE97=TRUE,H96*0.8,H96) -> 1321.118216 | AF96: 1585.341859 | AG96: 1717.45368 | AK96: Maskenbild | AL96: Make-up artist
B97: =IF(Stammblatt!$L$5=1,'Kalkulation Herstellungskosten'!AK97,'Kalkulation Herstellungskosten'!AL97) -> Wochenpauschale (§ 7 KV) | C97: 0 | F97: 0 | H97: =IF(AND(Stammblatt!$I$41=TRUE,GHSTK<=1200000),Kollektivvertrag!$F$58,IF(AND(Stammblatt!$I$41=TRUE,GHSTK>1200000),Kollektivvertrag!F47/2,Kollektivvertrag!F47)) -> 1829.747827 | L97: =IF(AB97=TRUE,G96,0) -> 0 | M97: =IF(AC97=TRUE,G96,0) -> 0 | N97: =IF((L97+M97)>G96,"?","") ->  | AB97: FALSE | AC97: FALSE | AD97: =IF(AE97=TRUE,H97*0.8,H97) -> 1829.747827 | AE97: FALSE | AF97: 2195.697392 | AG97: 2378.672175 | AJ97: =IF((C96+C97)<17,(C96*40+C97*60)/17,(C96*40+C97*60)/(C96+C97)) -> 0 | AK97: Wochenpauschale (§ 7 KV) | AL97: weekly allowance (§7 KV)
A98: =A96+1 -> 49 | B98: =IF(Stammblatt!$L$5=1,'Kalkulation Herstellungskosten'!AK98,'Kalkulation Herstellungskosten'!AL98) -> Maskenbild | C98: 0 | F98: 0 | G98: =C98*E98+C99*E99 -> 0 | H98: =IF(AND(Stammblatt!$I$41=TRUE,GHSTK<=1200000),Kollektivvertrag!$D$58,IF(AND(Stammblatt!$I$41=TRUE,GHSTK>1200000),Kollektivvertrag!D47/2,Kollektivvertrag!D47)) -> 1321.118216 | S98: =SUM(Q98:R99) -> 0 | T98: =G98-S98 -> 0 | AA98: =SUM(G98,X98:Z99) -> 0 | AD98: =IF(AE99=TRUE,H98*0.8,H98) -> 1321.118216 | AF98: 1585.341859 | AG98: 1717.45368 | AK98: Maskenbild | AL98: Make-up artist
B99: =IF(Stammblatt!$L$5=1,'Kalkulation Herstellungskosten'!AK99,'Kalkulation Herstellungskosten'!AL99) -> Wochenpauschale (§ 7 KV) | C99: 0 | F99: 0 | H99: =IF(AND(Stammblatt!$I$41=TRUE,GHSTK<=1200000),Kollektivvertrag!$F$58,IF(AND(Stammblatt!$I$41=TRUE,GHSTK>1200000),Kollektivvertrag!F47/2,Kollektivvertrag!F47)) -> 1829.747827 | L99: =IF(AB99=TRUE,G98,0) -> 0 | M99: =IF(AC99=TRUE,G98,0) -> 0 | N99: =IF((L99+M99)>G98,"?","") ->  | AB99: FALSE | AC99: FALSE | AD99: =IF(AE99=TRUE,H99*0.8,H99) -> 1829.747827 | AE99: FALSE | AF99: 2195.697392 | AG99: 2378.672175 | AJ99: =IF((C98+C99)<17,(C98*40+C99*60)/17,(C98*40+C99*60)/(C98+C99)) -> 0 | AK99: Wochenpauschale (§ 7 KV) | AL99: weekly allowance (§7 KV)
A100: =A98+1 -> 50 | B100: =IF(Stammblatt!$L$5=1,'Kalkulation Herstellungskosten'!AK100,'Kalkulation Herstellungskosten'!AL100) -> Maskenbildhilfe | C100: 0 | F100: 0 | G100: =C100*E100+C101*E101 -> 0 | H100: =IF(Stammblatt!$I$41=TRUE,Kollektivvertrag!$D$58,Kollektivvertrag!D48) -> 663.6248255 | S100: =SUM(Q100:R101) -> 0 | T100: =G100-S100 -> 0 | AA100: =SUM(G100,X100:Z101) -> 0 | AD100: =IF(AE101=TRUE,H100*0.8,H100) -> 663.6248255 | AF100: 796.3497906 | AG100: 862.7122732 | AK100: Maskenbildhilfe | AL100: Assistant make-up
B101: =IF(Stammblatt!$L$5=1,'Kalkulation Herstellungskosten'!AK101,'Kalkulation Herstellungskosten'!AL101) -> Wochenpauschale (§ 7 KV) | C101: 0 | F101: 0 | H101: =IF(Stammblatt!$I$41=TRUE,Kollektivvertrag!$F$58,Kollektivvertrag!F48) -> 919.1227663 | L101: =IF(AB101=TRUE,G100,0) -> 0 | M101: =IF(AC101=TRUE,G100,0) -> 0 | N101: =IF((L101+M101)>G100,"?","") ->  | AB101: FALSE | AC101: FALSE | AD101: =IF(AE101=TRUE,H101*0.8,H101) -> 919.1227663 | AE101: FALSE | AF101: 1102.94732 | AG101: 1194.859596 | AJ101: =IF((C100+C101)<17,(C100*40+C101*60)/17,(C100*40+C101*60)/(C100+C101)) -> 0 | AK101: Wochenpauschale (§ 7 KV) | AL101: weekly allowance (§7 KV)
A102: =A100+1 -> 51 | B102: =IF(Stammblatt!$L$5=1,'Kalkulation Herstellungskosten'!AK102,'Kalkulation Herstellungskosten'!AL102) -> Frisur | C102: 0 | F102: 0 | G102: =C102*E102+C103*E103 -> 0 | H102: =IF(AND(Stammblatt!$I$41=TRUE,GHSTK<=1200000),Kollektivvertrag!$D$58,IF(AND(Stammblatt!$I$41=TRUE,GHSTK>1200000),Kollektivvertrag!D47/2,Kollektivvertrag!D47)) -> 1321.118216 | S102: =SUM(Q102:R103) -> 0 | T102: =G102-S102 -> 0 | AA102: =SUM(G102,X102:Z103) -> 0 | AD102: =IF(AE103=TRUE,H102*0.8,H102) -> 1321.118216 | AF102: 1585.341859 | AG102: 1717.45368 | AK102: Frisur | AL102: Hair stylist
B103: =IF(Stammblatt!$L$5=1,'Kalkulation Herstellungskosten'!AK103,'Kalkulation Herstellungskosten'!AL103) -> Wochenpauschale (§ 7 KV) | C103: 0 | F103: 0 | H103: =IF(AND(Stammblatt!$I$41=TRUE,GHSTK<=1200000),Kollektivvertrag!$F$58,IF(AND(Stammblatt!$I$41=TRUE,GHSTK>1200000),Kollektivvertrag!F47/2,Kollektivvertrag!F47)) -> 1829.747827 | L103: =IF(AB103=TRUE,G102,0) -> 0 | M103: =IF(AC103=TRUE,G102,0) -> 0 | N103: =IF((L103+M103)>G102,"?","") ->  | AB103: FALSE | AC103: FALSE | AD103: =IF(AE103=TRUE,H103*0.8,H103) -> 1829.747827 | AE103: FALSE | AF103: 2195.697392 | AG103: 2378.672175 | AJ103: =IF((C102+C103)<17,(C102*40+C103*60)/17,(C102*40+C103*60)/(C102+C103)) -> 0 | AK103: Wochenpauschale (§ 7 KV) | AL103: weekly allowance (§7 KV)
A104: =A102+1 -> 52 | B104: =IF(Stammblatt!$L$5=1,'Kalkulation Herstellungskosten'!AK104,'Kalkulation Herstellungskosten'!AL104) -> Produktionsfahrer 1 | C104: 0 | F104: 0 | G104: =C104*E104+C105*E105 -> 0 | H104: =IF(Stammblatt!$I$41=TRUE,Kollektivvertrag!$D$58,Kollektivvertrag!D56) -> 567.28658 | S104: =SUM(Q104:R105) -> 0 | T104: =G104-S104 -> 0 | AA104: =SUM(G104,X104:Z105) -> 0 | AD104: =IF(AE105=TRUE,H104*0.8,H104) -> 567.28658 | AF104: 680.743896 | AG104: 737.472554 | AK104: Produktionsfahrer 1 | AL104: Driver 1
B105: =IF(Stammblatt!$L$5=1,'Kalkulation Herstellungskosten'!AK105,'Kalkulation Herstellungskosten'!AL105) -> Wochenpauschale (§ 7 KV) | C105: 0 | F105: 0 | H105: =IF(Stammblatt!$I$41=TRUE,Kollektivvertrag!$F$58,Kollektivvertrag!F56) -> 785.6944895 | L105: =IF(AB105=TRUE,G104,0) -> 0 | M105: =IF(AC105=TRUE,G104,0) -> 0 | N105: =IF((L105+M105)>G104,"?","") ->  | AB105: FALSE | AC105: FALSE | AD105: =IF(AE105=TRUE,H105*0.8,H105) -> 785.6944895 | AE105: FALSE | AF105: 942.8333874 | AG105: 1021.402836 | AJ105: =IF((C104+C105)<17,(C104*40+C105*60)/17,(C104*40+C105*60)/(C104+C105)) -> 0 | AK105: Wochenpauschale (§ 7 KV) | AL105: weekly allowance (§7 KV)
A106: =A104+1 -> 53 | B106: =IF(Stammblatt!$L$5=1,'Kalkulation Herstellungskosten'!AK106,'Kalkulation Herstellungskosten'!AL106) -> Produktionsfahrer 2 | C106: 0 | F106: 0 | G106: =C106*E106+C107*E107 -> 0 | H106: =IF(Stammblatt!$I$41=TRUE,Kollektivvertrag!$D$58,Kollektivvertrag!D56) -> 567.28658 | S106: =SUM(Q106:R107) -> 0 | T106: =G106-S106 -> 0 | AA106: =SUM(G106,X106:Z107) -> 0 | AD106: =IF(AE107=TRUE,H106*0.8,H106) -> 567.28658 | AF106: 680.743896 | AG106: 737.472554 | AK106: Produktionsfahrer 2 | AL106: Driver 1
B107: =IF(Stammblatt!$L$5=1,'Kalkulation Herstellungskosten'!AK107,'Kalkulation Herstellungskosten'!AL107) -> Wochenpauschale (§ 7 KV) | C107: 0 | F107: 0 | H107: =IF(Stammblatt!$I$41=TRUE,Kollektivvertrag!$F$58,Kollektivvertrag!F56) -> 785.6944895 | L107: =IF(AB107=TRUE,G106,0) -> 0 | M107: =IF(AC107=TRUE,G106,0) -> 0 | N107: =IF((L107+M107)>G106,"?","") ->  | AB107: FALSE | AC107: FALSE | AD107: =IF(AE107=TRUE,H107*0.8,H107) -> 785.6944895 | AE107: FALSE | AF107: 942.8333874 | AG107: 1021.402836 | AJ107: =IF((C106+C107)<17,(C106*40+C107*60)/17,(C106*40+C107*60)/(C106+C107)) -> 0 | AK107: Wochenpauschale (§ 7 KV) | AL107: weekly allowance (§7 KV)
A108: =A106+1 -> 54 | B108: =IF(Stammblatt!$L$5=1,'Kalkulation Herstellungskosten'!AK108,'Kalkulation Herstellungskosten'!AL108) -> Produktionsfahrer 3 | C108: 0 | F108: 0 | G108: =C108*E108+C109*E109 -> 0 | H108: =IF(Stammblatt!$I$41=TRUE,Kollektivvertrag!$D$58,Kollektivvertrag!D56) -> 567.28658 | S108: =SUM(Q108:R109) -> 0 | T108: =G108-S108 -> 0 | AA108: =SUM(G108,X108:Z109) -> 0 | AD108: =IF(AE109=TRUE,H108*0.8,H108) -> 567.28658 | AF108: 680.743896 | AG108: 737.472554 | AK108: Produktionsfahrer 3 | AL108: Driver 1
B109: =IF(Stammblatt!$L$5=1,'Kalkulation Herstellungskosten'!AK109,'Kalkulation Herstellungskosten'!AL109) -> Wochenpauschale (§ 7 KV) | C109: 0 | F109: 0 | H109: =IF(Stammblatt!$I$41=TRUE,Kollektivvertrag!$F$58,Kollektivvertrag!F56) -> 785.6944895 | L109: =IF(AB109=TRUE,G108,0) -> 0 | M109: =IF(AC109=TRUE,G108,0) -> 0 | N109: =IF((L109+M109)>G108,"?","") ->  | AB109: FALSE | AC109: FALSE | AD109: =IF(AE109=TRUE,H109*0.8,H109) -> 785.6944895 | AE109: FALSE | AF109: 942.8333874 | AG109: 1021.402836 | AJ109: =IF((C108+C109)<17,(C108*40+C109*60)/17,(C108*40+C109*60)/(C108+C109)) -> 0 | AK109: Wochenpauschale (§ 7 KV) | AL109: weekly allowance (§7 KV)
A110: =A108+1 -> 55 | B110: =IF(Stammblatt!$L$5=1,'Kalkulation Herstellungskosten'!AK110,'Kalkulation Herstellungskosten'!AL110) -> OberbeleuchterIn | C110: 0 | F110: 0 | G110: =C110*E110+C111*E111 -> 0 | H110: =IF(Stammblatt!$I$41=TRUE,Kollektivvertrag!$D$58,Kollektivvertrag!D54) -> 1106.239746 | S110: =SUM(Q110:R111) -> 0 | T110: =G110-S110 -> 0 | AA110: =SUM(G110,X110:Z111) -> 0 | AD110: =IF(AE111=TRUE,H110*0.8,H110) -> 1106.239746 | AF110: 1327.487695 | AG110: 1438.11167 | AK110: OberbeleuchterIn | AL110: Gaffer
B111: =IF(Stammblatt!$L$5=1,'Kalkulation Herstellungskosten'!AK111,'Kalkulation Herstellungskosten'!AL111) -> Wochenpauschale (§ 7 KV) | C111: 0 | F111: 0 | H111: =IF(Stammblatt!$I$41=TRUE,Kollektivvertrag!$F$58,Kollektivvertrag!F54) -> 1532.137488 | L111: =IF(AB111=TRUE,G110,0) -> 0 | M111: =IF(AC111=TRUE,G110,0) -> 0 | N111: =IF((L111+M111)>G110,"?","") ->  | AB111: FALSE | AC111: FALSE | AD111: =IF(AE111=TRUE,H111*0.8,H111) -> 1532.137488 | AE111: FALSE | AF111: 1838.564986 | AG111: 1991.778734 | AJ111: =IF((C110+C111)<17,(C110*40+C111*60)/17,(C110*40+C111*60)/(C110+C111)) -> 0 | AK111: Wochenpauschale (§ 7 KV) | AL111: weekly allowance (§7 KV)
A112: =A110+1 -> 56 | B112: =IF(Stammblatt!$L$5=1,'Kalkulation Herstellungskosten'!AK112,'Kalkulation Herstellungskosten'!AL112) -> BeleuchterIn 1 | C112: 0 | F112: 0 | G112: =C112*E112+C113*E113 -> 0 | H112: =IF(Stammblatt!$I$41=TRUE,Kollektivvertrag!$D$58,Kollektivvertrag!D55) -> 771.766084 | S112: =SUM(Q112:R113) -> 0 | T112: =G112-S112 -> 0 | AA112: =SUM(G112,X112:Z113) -> 0 | AD112: =IF(AE113=TRUE,H112*0.8,H112) -> 771.766084 | AF112: 926.1193008 | AG112: 1003.295909 | AK112: BeleuchterIn 1 | AL112: Lights 1
B113: =IF(Stammblatt!$L$5=1,'Kalkulation Herstellungskosten'!AK113,'Kalkulation Herstellungskosten'!AL113) -> Wochenpauschale (§ 7 KV) | C113: 0 | F113: 0 | H113: =IF(Stammblatt!$I$41=TRUE,Kollektivvertrag!$F$58,Kollektivvertrag!F55) -> 1068.895956 | L113: =IF(AB113=TRUE,G112,0) -> 0 | M113: =IF(AC113=TRUE,G112,0) -> 0 | N113: =IF((L113+M113)>G112,"?","") ->  | AB113: FALSE | AC113: FALSE | AD113: =IF(AE113=TRUE,H113*0.8,H113) -> 1068.895956 | AE113: FALSE | AF113: 1282.675147 | AG113: 1389.564742 | AJ113: =IF((C112+C113)<17,(C112*40+C113*60)/17,(C112*40+C113*60)/(C112+C113)) -> 0 | AK113: Wochenpauschale (§ 7 KV) | AL113: weekly allowance (§7 KV)
A114: =A112+1 -> 57 | B114: =IF(Stammblatt!$L$5=1,'Kalkulation Herstellungskosten'!AK114,'Kalkulation Herstellungskosten'!AL114) -> BeleuchterIn 2 | C114: 0 | F114: 0 | G114: =C114*E114+C115*E115 -> 0 | H114: =IF(Stammblatt!$I$41=TRUE,Kollektivvertrag!$D$58,Kollektivvertrag!D55) -> 771.766084 | S114: =SUM(Q114:R115) -> 0 | T114: =G114-S114 -> 0 | AA114: =SUM(G114,X114:Z115) -> 0 | AD114: =IF(AE115=TRUE,H114*0.8,H114) -> 771.766084 | AF114: 926.1193008 | AG114: 1003.295909 | AK114: BeleuchterIn 2 | AL114: Lights 2
B115: =IF(Stammblatt!$L$5=1,'Kalkulation Herstellungskosten'!AK115,'Kalkulation Herstellungskosten'!AL115) -> Wochenpauschale (§ 7 KV) | C115: 0 | F115: 0 | H115: =IF(Stammblatt!$I$41=TRUE,Kollektivvertrag!$F$58,Kollektivvertrag!F55) -> 1068.895956 | L115: =IF(AB115=TRUE,G114,0) -> 0 | M115: =IF(AC115=TRUE,G114,0) -> 0 | N115: =IF((L115+M115)>G114,"?","") ->  | AB115: FALSE | AC115: FALSE | AD115: =IF(AE115=TRUE,H115*0.8,H115) -> 1068.895956 | AE115: FALSE | AF115: 1282.675147 | AG115: 1389.564742 | AJ115: =IF((C114+C115)<17,(C114*40+C115*60)/17,(C114*40+C115*60)/(C114+C115)) -> 0 | AK115: Wochenpauschale (§ 7 KV) | AL115: weekly allowance (§7 KV)
A116: =A114+1 -> 58 | B116: =IF(Stammblatt!$L$5=1,'Kalkulation Herstellungskosten'!AK116,'Kalkulation Herstellungskosten'!AL116) -> BeleuchterIn 3 | C116: 0 | F116: 0 | G116: =C116*E116+C117*E117 -> 0 | H116: =IF(Stammblatt!$I$41=TRUE,Kollektivvertrag!$D$58,Kollektivvertrag!D55) -> 771.766084 | S116: =SUM(Q116:R117) -> 0 | T116: =G116-S116 -> 0 | AA116: =SUM(G116,X116:Z117) -> 0 | AD116: =IF(AE117=TRUE,H116*0.8,H116) -> 771.766084 | AF116: 926.1193008 | AG116: 1003.295909 | AK116: BeleuchterIn 3 | AL116: Lights 3
B117: =IF(Stammblatt!$L$5=1,'Kalkulation Herstellungskosten'!AK117,'Kalkulation Herstellungskosten'!AL117) -> Wochenpauschale (§ 7 KV) | C117: 0 | F117: 0 | H117: =IF(Stammblatt!$I$41=TRUE,Kollektivvertrag!$F$58,Kollektivvertrag!F55) -> 1068.895956 | L117: =IF(AB117=TRUE,G116,0) -> 0 | M117: =IF(AC117=TRUE,G116,0) -> 0 | N117: =IF((L117+M117)>G116,"?","") ->  | AB117: FALSE | AC117: FALSE | AD117: =IF(AE117=TRUE,H117*0.8,H117) -> 1068.895956 | AE117: FALSE | AF117: 1282.675147 | AG117: 1389.564742 | AJ117: =IF((C116+C117)<17,(C116*40+C117*60)/17,(C116*40+C117*60)/(C116+C117)) -> 0 | AK117: Wochenpauschale (§ 7 KV) | AL117: weekly allowance (§7 KV)
A118: =A116+1 -> 59 | B118: =IF(Stammblatt!$L$5=1,'Kalkulation Herstellungskosten'!AK118,'Kalkulation Herstellungskosten'!AL118) -> BühnenmeisterIn | C118: 0 | F118: 0 | G118: =C118*E118+C119*E119 -> 0 | H118: =IF(Stammblatt!$I$41=TRUE,Kollektivvertrag!$D$58,Kollektivvertrag!D54) -> 1106.239746 | S118: =SUM(Q118:R119) -> 0 | T118: =G118-S118 -> 0 | AA118: =SUM(G118,X118:Z119) -> 0 | AD118: =IF(AE119=TRUE,H118*0.8,H118) -> 1106.239746 | AF118: 1327.487695 | AG118: 1438.11167 | AK118: BühnenmeisterIn | AL118: Construction manager
B119: =IF(Stammblatt!$L$5=1,'Kalkulation Herstellungskosten'!AK119,'Kalkulation Herstellungskosten'!AL119) -> Wochenpauschale (§ 7 KV) | C119: 0 | F119: 0 | H119: =IF(Stammblatt!$I$41=TRUE,Kollektivvertrag!$F$58,Kollektivvertrag!F54) -> 1532.137488 | L119: =IF(AB119=TRUE,G118,0) -> 0 | M119: =IF(AC119=TRUE,G118,0) -> 0 | N119: =IF((L119+M119)>G118,"?","") ->  | AB119: FALSE | AC119: FALSE | AD119: =IF(AE119=TRUE,H119*0.8,H119) -> 1532.137488 | AE119: FALSE | AF119: 1838.564986 | AG119: 1991.778734 | AJ119: =IF((C118+C119)<17,(C118*40+C119*60)/17,(C118*40+C119*60)/(C118+C119)) -> 0 | AK119: Wochenpauschale (§ 7 KV) | AL119: weekly allowance (§7 KV)
A120: =A118+1 -> 60 | B120: =IF(Stammblatt!$L$5=1,'Kalkulation Herstellungskosten'!AK120,'Kalkulation Herstellungskosten'!AL120) -> Bühne 1 | C120: 0 | F120: 0 | G120: =C120*E120+C121*E121 -> 0 | H120: =IF(Stammblatt!$I$41=TRUE,Kollektivvertrag!$D$58,Kollektivvertrag!D55) -> 771.766084 | S120: =SUM(Q120:R121) -> 0 | T120: =G120-S120 -> 0 | AA120: =SUM(G120,X120:Z121) -> 0 | AD120: =IF(AE121=TRUE,H120*0.8,H120) -> 771.766084 | AF120: 926.1193008 | AG120: 1003.295909 | AK120: Bühne 1 | AL120: Grip
B121: =IF(Stammblatt!$L$5=1,'Kalkulation Herstellungskosten'!AK121,'Kalkulation Herstellungskosten'!AL121) -> Wochenpauschale (§ 7 KV) | C121: 0 | F121: 0 | H121: =IF(Stammblatt!$I$41=TRUE,Kollektivvertrag!$F$58,Kollektivvertrag!F55) -> 1068.895956 | L121: =IF(AB121=TRUE,G120,0) -> 0 | M121: =IF(AC121=TRUE,G120,0) -> 0 | N121: =IF((L121+M121)>G120,"?","") ->  | AB121: FALSE | AC121: FALSE | AD121: =IF(AE121=TRUE,H121*0.8,H121) -> 1068.895956 | AE121: FALSE | AF121: 1282.675147 | AG121: 1389.564742 | AJ121: =IF((C120+C121)<17,(C120*40+C121*60)/17,(C120*40+C121*60)/(C120+C121)) -> 0 | AK121: Wochenpauschale (§ 7 KV) | AL121: weekly allowance (§7 KV)
A122: =A120+1 -> 61 | B122: =IF(Stammblatt!$L$5=1,'Kalkulation Herstellungskosten'!AK122,'Kalkulation Herstellungskosten'!AL122) -> Bühne 2 | C122: 0 | F122: 0 | G122: =C122*E122+C123*E123 -> 0 | H122: =IF(Stammblatt!$I$41=TRUE,Kollektivvertrag!$D$58,Kollektivvertrag!D55) -> 771.766084 | S122: =SUM(Q122:R123) -> 0 | T122: =G122-S122 -> 0 | AA122: =SUM(G122,X122:Z123) -> 0 | AD122: =IF(AE123=TRUE,H122*0.8,H122) -> 771.766084 | AF122: 926.1193008 | AG122: 1003.295909 | AK122: Bühne 2 | AL122: Grip
B123: =IF(Stammblatt!$L$5=1,'Kalkulation Herstellungskosten'!AK123,'Kalkulation Herstellungskosten'!AL123) -> Wochenpauschale (§ 7 KV) | C123: 0 | F123: 0 | H123: =IF(Stammblatt!$I$41=TRUE,Kollektivvertrag!$F$58,Kollektivvertrag!F55) -> 1068.895956 | L123: =IF(AB123=TRUE,G122,0) -> 0 | M123: =IF(AC123=TRUE,G122,0) -> 0 | N123: =IF((L123+M123)>G122,"?","") ->  | AB123: FALSE | AC123: FALSE | AD123: =IF(AE123=TRUE,H123*0.8,H123) -> 1068.895956 | AE123: FALSE | AF123: =H123*1.2 -> 1282.675147 | AG123: =H123*1.3 -> 1389.564742 | AJ123: =IF((C122+C123)<17,(C122*40+C123*60)/17,(C122*40+C123*60)/(C122+C123)) -> 0 | AK123: Wochenpauschale (§ 7 KV) | AL123: weekly allowance (§7 KV)
A124: =A122+1 -> 62 | B124: =IF(Stammblatt!$L$5=1,'Kalkulation Herstellungskosten'!AK124,'Kalkulation Herstellungskosten'!AL124) -> Bühne 3 | C124: 0 | F124: 0 | G124: =C124*E124+C125*E125 -> 0 | H124: =IF(Stammblatt!$I$41=TRUE,Kollektivvertrag!$D$58,Kollektivvertrag!D55) -> 771.766084 | S124: =SUM(Q124:R125) -> 0 | T124: =G124-S124 -> 0 | AA124: =SUM(G124,X124:Z125) -> 0 | AD124: =IF(AE125=TRUE,H124*0.8,H124) -> 771.766084 | AF124: 926.1193008 | AG124: 1003.295909 | AK124: Bühne 3 | AL124: Dolly grip
B125: =IF(Stammblatt!$L$5=1,'Kalkulation Herstellungskosten'!AK125,'Kalkulation Herstellungskosten'!AL125) -> Wochenpauschale (§ 7 KV) | C125: 0 | F125: 0 | H125: =IF(Stammblatt!$I$41=TRUE,Kollektivvertrag!$F$58,Kollektivvertrag!F55) -> 1068.895956 | L125: =IF(AB125=TRUE,G124,0) -> 0 | M125: =IF(AC125=TRUE,G124,0) -> 0 | N125: =IF((L125+M125)>G124,"?","") ->  | AB125: FALSE | AC125: FALSE | AD125: =IF(AE125=TRUE,H125*0.8,H125) -> 1068.895956 | AE125: FALSE | AF125: 1282.675147 | AG125: 1389.564742 | AJ125: =IF((C124+C125)<17,(C124*40+C125*60)/17,(C124*40+C125*60)/(C124+C125)) -> 0 | AK125: Wochenpauschale (§ 7 KV) | AL125: weekly allowance (§7 KV)
A126: =A124+1 -> 63 | B126: =IF(Stammblatt!$L$5=1,'Kalkulation Herstellungskosten'!AK126,'Kalkulation Herstellungskosten'!AL126) -> MusikaufnahmeleiterIn | C126: 0 | F126: =E126 -> 0 | G126: =C126*E126+C127*E127 -> 0 | H126: =IF(AND(Stammblatt!$I$41=TRUE,GHSTK<=1200000),Kollektivvertrag!$D$58,IF(AND(Stammblatt!$I$41=TRUE,GHSTK>1200000),Kollektivvertrag!D20/2,Kollektivvertrag!D20)) -> 1187.733735 | S126: =SUM(Q126:R127) -> 0 | T126: =G126-S126 -> 0 | AA126: =SUM(G126,X126:Z127) -> 0 | AD126: =IF(AE127=TRUE,H126*0.8,H126) -> 1187.733735 | AF126: 1425.280482 | AG126: 1544.053855 | AK126: MusikaufnahmeleiterIn | AL126: Music recording manager
B127: =IF(Stammblatt!$L$5=1,'Kalkulation Herstellungskosten'!AK127,'Kalkulation Herstellungskosten'!AL127) -> Wochenpauschale (§ 7 KV) | C127: 0 | F127: =E127 -> 0 | H127: =IF(AND(Stammblatt!$I$41=TRUE,GHSTK<=1200000),Kollektivvertrag!$F$58,IF(AND(Stammblatt!$I$41=TRUE,GHSTK>1200000),Kollektivvertrag!F20/2,Kollektivvertrag!F20)) -> 1645.00227 | L127: =IF(AB127=TRUE,G126,0) -> 0 | M127: =IF(AC127=TRUE,G126,0) -> 0 | N127: =IF((L127+M127)>G126,"?","") ->  | AB127: FALSE | AC127: FALSE | AD127: =IF(AE127=TRUE,H127*0.8,H127) -> 1645.00227 | AE127: FALSE | AF127: 1974.002724 | AG127: 2138.502951 | AJ127: =IF((C126+C127)<17,(C126*40+C127*60)/17,(C126*40+C127*60)/(C126+C127)) -> 0 | AK127: Wochenpauschale (§ 7 KV) | AL127: weekly allowance (§7 KV)
A128: =A126+1 -> 64 | B128: =IF(Stammblatt!$L$5=1,'Kalkulation Herstellungskosten'!AK128,'Kalkulation Herstellungskosten'!AL128) -> Synchronregie | C128: 0 | F128: =E128 -> 0 | G128: =C128*E128+C129*E129 -> 0 | H128: =IF(AND(Stammblatt!$I$41=TRUE,GHSTK<=1200000),Kollektivvertrag!$D$58,IF(AND(Stammblatt!$I$41=TRUE,GHSTK>1200000),Kollektivvertrag!D25/2,Kollektivvertrag!D25)) -> 2140.901425 | S128: =SUM(Q128:R129) -> 0 | T128: =G128-S128 -> 0 | AA128: =SUM(G128,X128:Z129) -> 0 | AD128: =IF(AE129=TRUE,H128*0.8,H128) -> 2140.901425 | AF128: 2569.08171 | AG128: 2783.171852 | AK128: Synchronregie | AL128: Dubbing director
B129: =IF(Stammblatt!$L$5=1,'Kalkulation Herstellungskosten'!AK129,'Kalkulation Herstellungskosten'!AL129) -> Wochenpauschale (§ 7 KV) | C129: 0 | F129: =E129 -> 0 | H129: =IF(AND(Stammblatt!$I$41=TRUE,GHSTK<=1200000),Kollektivvertrag!$F$58,IF(AND(Stammblatt!$I$41=TRUE,GHSTK>1200000),Kollektivvertrag!F25/2,Kollektivvertrag!F25)) -> 2965.154399 | L129: =IF(AB129=TRUE,G128,0) -> 0 | M129: =IF(AC129=TRUE,G128,0) -> 0 | N129: =IF((L129+M129)>G128,"?","") ->  | AB129: FALSE | AC129: FALSE | AD129: =IF(AE129=TRUE,H129*0.8,H129) -> 2965.154399 | AE129: FALSE | AF129: 3558.185278 | AG129: 3854.700718 | AJ129: =IF((C128+C129)<17,(C128*40+C129*60)/17,(C128*40+C129*60)/(C128+C129)) -> 0 | AK129: Wochenpauschale (§ 7 KV) | AL129: weekly allowance (§7 KV)
A131: =A128+1 -> 65 | B131: =IF(Stammblatt!$L$5=1,'Kalkulation Herstellungskosten'!AK131,'Kalkulation Herstellungskosten'!AL131) -> Sonstige MitarbeiterInnen | C131: =IF(Stammblatt!$L$5=1,"Wochen","weeks") -> Wochen | J131: M | K131: W | L131: männl. | M131: weibl. | AK131: Sonstige MitarbeiterInnen | AL131: Additional staff members
A132: 65.0 | C132: 0 | G132: =C132*E132 -> 0 | L132: =IF(AB132=TRUE,G132,0) -> 0 | M132: =IF(AC132=TRUE,G132,0) -> 0 | N132: =IF((L132+M132)>G132,"?","") ->  | S132: =SUM(Q132:R132) -> 0 | T132: =G132-S132 -> 0 | AA132: =SUM(G132,X132:Z132) -> 0 | AB132: FALSE | AC132: FALSE
A133: 65.1 | C133: 0 | G133: =C133*E133 -> 0 | L133: =IF(AB133=TRUE,G133,0) -> 0 | M133: =IF(AC133=TRUE,G133,0) -> 0 | N133: =IF((L133+M133)>G133,"?","") ->  | S133: 0 | T133: 0 | AA133: 0 | AB133: FALSE | AC133: FALSE
A134: 65.2 | C134: 0 | G134: 0 | L134: 0 | M134: 0 | S134: 0 | T134: 0 | AA134: 0 | AB134: FALSE | AC134: FALSE
A135: 65.3 | C135: 0 | G135: 0 | L135: 0 | M135: 0 | S135: 0 | T135: 0 | AA135: 0 | AB135: FALSE | AC135: FALSE
A136: 65.4 | C136: 0 | G136: 0 | L136: 0 | M136: 0 | S136: 0 | T136: 0 | AA136: 0 | AB136: FALSE | AC136: FALSE
A137: 65.5 | C137: 0 | G137: 0 | L137: 0 | M137: 0 | S137: 0 | T137: 0 | AA137: 0 | AB137: FALSE | AC137: FALSE
A138: 65.6 | C138: 0 | G138: 0 | L138: 0 | M138: 0 | S138: 0 | T138: 0 | AA138: 0 | AB138: FALSE | AC138: FALSE
A139: 65.7 | C139: 0 | G139: 0 | L139: 0 | M139: 0 | S139: 0 | T139: 0 | AA139: 0 | AB139: FALSE | AC139: FALSE
A140: 65.8 | C140: 0 | G140: 0 | L140: 0 | M140: 0 | S140: 0 | T140: 0 | AA140: 0 | AB140: FALSE | AC140: FALSE
A141: 65.9 | C141: 0 | G141: 0 | L141: 0 | M141: 0 | S141: 0 | T141: 0 | AA141: 0 | AB141: FALSE | AC141: FALSE
A142: 65.10 | C142: 0 | G142: =C142*E142 -> 0 | L142: =IF(AB142=TRUE,G142,0) -> 0 | M142: =IF(AC142=TRUE,G142,0) -> 0 | N142: =IF((L142+M142)>G142,"?","") ->  | S142: =SUM(Q142:R142) -> 0 | T142: =G142-S142 -> 0 | AA142: =SUM(G142,X142:Z142) -> 0 | AB142: FALSE | AC142: FALSE
A143: 65.11 | C143: 0 | G143: 0 | L143: 0 | M143: 0 | S143: 0 | T143: 0 | AA143: 0 | AB143: FALSE | AC143: FALSE
A144: 65.12 | C144: 0 | G144: 0 | L144: 0 | M144: 0 | S144: 0 | T144: 0 | AA144: 0 | AB144: FALSE | AC144: FALSE
A145: 65.13 | C145: 0 | G145: 0 | L145: 0 | M145: 0 | S145: 0 | T145: 0 | AA145: 0 | AB145: FALSE | AC145: FALSE
A146: 65.14 | C146: 0 | G146: 0 | L146: 0 | M146: 0 | S146: 0 | T146: 0 | AA146: 0 | AB146: FALSE | AC146: FALSE
A147: 65.15 | C147: 0 | G147: =C147*E147 -> 0 | L147: =IF(AB147=TRUE,G147,0) -> 0 | M147: =IF(AC147=TRUE,G147,0) -> 0 | N147: =IF((L147+M147)>G147,"?","") ->  | S147: =SUM(Q147:R147) -> 0 | T147: =G147-S147 -> 0 | AA147: =SUM(G147,X147:Z147) -> 0 | AB147: FALSE | AC147: FALSE
A148: 65.16 | C148: 0 | G148: 0 | L148: 0 | M148: 0 | S148: 0 | T148: 0 | AA148: 0 | AB148: FALSE | AC148: FALSE
A149: 65.17 | C149: 0 | G149: 0 | L149: 0 | M149: 0 | S149: 0 | T149: 0 | AA149: 0 | AB149: FALSE | AC149: FALSE
A150: 65.18 | C150: 0 | G150: 0 | L150: 0 | M150: 0 | S150: 0 | T150: 0 | AA150: 0 | AB150: FALSE | AC150: FALSE
A151: 65.19 | C151: 0 | G151: 0 | L151: 0 | M151: 0 | S151: 0 | T151: 0 | AA151: 0 | AB151: FALSE | AC151: FALSE
A152: 65.20 | C152: 0 | G152: 0 | L152: 0 | M152: 0 | S152: 0 | T152: 0 | AA152: 0 | AB152: FALSE | AC152: FALSE
A153: 65.21 | C153: 0 | G153: =C153*E153 -> 0 | L153: =IF(AB153=TRUE,G153,0) -> 0 | M153: =IF(AC153=TRUE,G153,0) -> 0 | N153: =IF((L153+M153)>G153,"?","") ->  | S153: =SUM(Q153:R153) -> 0 | T153: =G153-S153 -> 0 | AA153: =SUM(G153,X153:Z153) -> 0 | AB153: FALSE | AC153: FALSE
A154: 65.22 | C154: 0 | G154: 0 | L154: 0 | M154: 0 | S154: 0 | T154: 0 | AA154: 0 | AB154: FALSE | AC154: FALSE
A155: 65.23 | C155: 0 | G155: 0 | L155: 0 | M155: 0 | S155: 0 | T155: 0 | AA155: 0 | AB155: FALSE | AC155: FALSE
A156: 65.24 | C156: 0 | G156: 0 | L156: 0 | M156: 0 | S156: 0 | T156: 0 | AA156: 0 | AB156: FALSE | AC156: FALSE
A157: 65.25 | C157: 0 | G157: 0 | L157: 0 | M157: 0 | S157: 0 | T157: 0 | AA157: 0 | AB157: FALSE | AC157: FALSE
B159: =IF(Stammblatt!$L$5=1,'Kalkulation Herstellungskosten'!AK159,'Kalkulation Herstellungskosten'!AL159) -> Σ-GAGEN (inkl. SZ u. UEL) | C159: =SUM(C27:C158) -> 0 | G159: =SUM(G27:G158) -> 0 | L159: =SUM(L27:L158) -> 0 | M159: =SUM(M27:M158) -> 0 | O159: =SUM(O27:O158) -> 0 | P159: =SUM(P27:P158) -> 0 | Q159: =SUM(Q27:Q158) -> 0 | R159: =SUM(R27:R158) -> 0 | S159: =SUM(S27:S158) -> 0 | T159: =G159-S159 -> 0 | U159: =SUM(U27:U158) -> 0 | V159: =SUM(V27:V158) -> 0 | X159: =SUM(X27:X158) -> 0 | Y159: =SUM(Y27:Y158) -> 0 | Z159: =SUM(Z27:Z158) -> 0 | AA159: =SUM(G159,X159:Z159) -> 0 | AK159: Σ-GAGEN (inkl. SZ u. UEL) | AL159: TOTAL SALARIES, FEES
A162: =A131+1 -> 66 | B162: =IF(Stammblatt!$L$5=1,'Kalkulation Herstellungskosten'!AK162,'Kalkulation Herstellungskosten'!AL162) -> DarstellerInnen | C162: =Darsteller!D38/5 -> 0 | D162: =IF(Stammblatt!$L$5=1,"Wochen","weeks") -> Wochen | G162: =Darsteller!F38 -> 0 | L162: =G162-M162 -> 0 | M162: =SUMIF(Darsteller!AF7:AF36,"x",Darsteller!F7:F36) -> 0 | S162: =SUM(Q162:R162) -> 0 | T162: =G162-S162 -> 0 | X162: =Darsteller!AJ38 -> 0 | Y162: =Darsteller!AK38 -> 0 | Z162: =Darsteller!AL38 -> 0 | AA162: =SUM(G162,X162:Z162) -> 0 | AK162: DarstellerInnen | AL162: Cast
A163: =A162+1 -> 67 | B163: =IF(Stammblatt!$L$5=1,'Kalkulation Herstellungskosten'!AK163,'Kalkulation Herstellungskosten'!AL163) -> MusikerInnen, Tänzer, Sänger | C163: 0 | D163: =IF(Stammblatt!$L$5=1,"Wochen","weeks") -> Wochen | E163: 0 | G163: =C163*E163 -> 0 | S163: =SUM(Q163:R163) -> 0 | T163: =G163-S163 -> 0 | AA163: =SUM(G163,X163:Z163) -> 0 | AK163: MusikerInnen, Tänzer, Sänger | AL163: Musicians, dancer, singer
A165: =A163+1 -> 68 | B165: =IF(Stammblatt!$L$5=1,'Kalkulation Herstellungskosten'!AK165,'Kalkulation Herstellungskosten'!AL165) -> Lohnnebenkosten (Dienstgeber) | AK165: Lohnnebenkosten (Dienstgeber) | AL165: Non-wage labour costs (employer)
B166: =IF(Stammblatt!$L$5=1,'Kalkulation Herstellungskosten'!AK166,'Kalkulation Herstellungskosten'!AL166) -> DG SV-Beitrag | E166: =SUM(Stab_Ö_Details!M117:P117)+SUM(Darsteller!G38:H38) -> 0 | S166: =SUM(Q166:R166) -> 0 | T166: =E166-S166 -> 0 | AK166: DG SV-Beitrag | AL166: Social security
B167: =IF(Stammblatt!$L$5=1,'Kalkulation Herstellungskosten'!AK167,'Kalkulation Herstellungskosten'!AL167) -> MV-Beitrag | E167: =Stab_Ö_Details!Q117 -> 0 | S167: 0 | T167: 0 | AK167: MV-Beitrag | AL167: Provision for employee
B168: =IF(Stammblatt!$L$5=1,'Kalkulation Herstellungskosten'!AK168,'Kalkulation Herstellungskosten'!AL168) -> DB | E168: =Stab_Ö_Details!R117+Darsteller!I38 -> 0 | S168: 0 | T168: 0 | AK168: DB | AL168: DB
B169: =IF(Stammblatt!$L$5=1,'Kalkulation Herstellungskosten'!AK169,'Kalkulation Herstellungskosten'!AL169) -> DZ | E169: =Stab_Ö_Details!S117+Darsteller!J38 -> 0 | S169: 0 | T169: 0 | AK169: DZ | AL169: DZ
B170: =IF(Stammblatt!$L$5=1,'Kalkulation Herstellungskosten'!AK170,'Kalkulation Herstellungskosten'!AL170) -> Kommunalsteuer | E170: =Stab_Ö_Details!T117+Darsteller!K38 -> 0 | S170: 0 | T170: 0 | AK170: Kommunalsteuer | AL170: Municipal tax
B171: =IF(Stammblatt!$L$5=1,'Kalkulation Herstellungskosten'!AK171,'Kalkulation Herstellungskosten'!AL171) -> U-Bahn Abgabe | E171: =Stab_Ö_Details!U117+Darsteller!L38 -> 0 | S171: 0 | T171: 0 | AK171: U-Bahn Abgabe | AL171: Subway toll
B172: =IF(Stammblatt!$L$5=1,'Kalkulation Herstellungskosten'!AK172,'Kalkulation Herstellungskosten'!AL172) -> Σ-Lohnnebenkosten | G172: =SUM(E166:E171) -> 0 | O172: =SUM(O166:O171) -> 0 | P172: =SUM(P166:P171) -> 0 | Q172: =SUM(Q166:Q171) -> 0 | R172: =SUM(R166:R171) -> 0 | S172: =SUM(Q172:R172) -> 0 | T172: =G172-S172 -> 0 | U172: =SUM(U166:U171) -> 0 | V172: =SUM(V166:V171) -> 0 | AA172: =SUM(G172,X172:Z172) -> 0 | AK172: Σ-Lohnnebenkosten | AL172: TOTAL Non-wage labour costs
B173: =IF(Stammblatt!$L$5=1,'Kalkulation Herstellungskosten'!AK173,'Kalkulation Herstellungskosten'!AL173) -> 0
A174: =A165+1 -> 69 | B174: =IF(Stammblatt!$L$5=1,'Kalkulation Herstellungskosten'!AK174,'Kalkulation Herstellungskosten'!AL174) -> Reserve für Überstunden-, Sonn- und | AK174: Reserve für Überstunden-, Sonn- und | AL174: Overtime
B175: =IF(Stammblatt!$L$5=1,'Kalkulation Herstellungskosten'!AK175,'Kalkulation Herstellungskosten'!AL175) -> Feiertagsabgeltung | G175: 0 | S175: =SUM(Q175:R175) -> 0 | T175: =G175-S175 -> 0 | AA175: =SUM(G175,X175:Z175) -> 0 | AK175: Feiertagsabgeltung
A176: =A174+1 -> 70 | B176: =IF(Stammblatt!$L$5=1,'Kalkulation Herstellungskosten'!AK176,'Kalkulation Herstellungskosten'!AL176) -> Statisten *) | C176: =Darsteller!D46 -> 0 | D176: =IF(Stammblatt!$L$5=1,"Einsätze","units") -> Einsätze | G176: =Darsteller!F46 -> 0 | S176: =SUM(Q176:R176) -> 0 | T176: =G176-S176 -> 0 | X176: =Darsteller!AJ46 -> 0 | Y176: =Darsteller!AK46 -> 0 | Z176: =Darsteller!AL46 -> 0 | AA176: =SUM(G176,X176:Z176) -> 0 | AK176: Statisten *) | AL176: Extras
B178: =IF(Stammblatt!$L$5=1,'Kalkulation Herstellungskosten'!AK178,'Kalkulation Herstellungskosten'!AL178) -> HONORARE | AK178: HONORARE | AL178: FEES
A179: =A176+1 -> 71 | B179: =IF(Stammblatt!$L$5=1,'Kalkulation Herstellungskosten'!AK179,'Kalkulation Herstellungskosten'!AL179) -> ProduzentInnenhonorar (max. 2,5% v. FK) | E179: =IF(Stammblatt!I9=TRUE,BERECHNUNGSSÄTZE!C27,D179*NFK) -> 0 | G179: =IF(Stammblatt!I9=TRUE,'Kalkulation Herstellungskosten'!E179/NFK,"") ->  | H179: =IF(Stammblatt!I9=TRUE,"EPU","") ->  | L179: =IF(AB179=TRUE,E179,0) -> 0 | M179: =IF(AC179=TRUE,E179,0) -> 0 | N179: =IF((L179+M179)>E179,"?","") ->  | S179: =SUM(Q179:R179) -> 0 | T179: =G179-S179 ->  | AA179: =SUM(G179,X179:Z179) -> 0 | AB179: FALSE | AC179: FALSE | AK179: ProduzentInnenhonorar (max. 2,5% v. FK) | AL179: Producer's fee (max. 2,5% of subtotal of production costs)
A180: =A179+1 -> 72 | B180: =IF(Stammblatt!$L$5=1,'Kalkulation Herstellungskosten'!AK180,'Kalkulation Herstellungskosten'!AL180) -> Rechtsberatung | E180: 0 | L180: =IF(AB180=TRUE,E180,0) -> 0 | M180: =IF(AC180=TRUE,E180,0) -> 0 | N180: =IF((L180+M180)>E180,"?","") ->  | S180: =SUM(Q180:R180) -> 0 | T180: =G180-S180 -> 0 | AA180: =SUM(G180,X180:Z180) -> 0 | AB180: FALSE | AC180: FALSE | AK180: Rechtsberatung | AL180: Legal advice
A181: =A180+1 -> 73 | B181: =IF(Stammblatt!$L$5=1,'Kalkulation Herstellungskosten'!AK181,'Kalkulation Herstellungskosten'!AL181) -> ArchitektIn/Ausstattung | E181: 0 | L181: =IF(AB181=TRUE,E181,0) -> 0 | M181: =IF(AC181=TRUE,E181,0) -> 0 | N181: =IF((L181+M181)>E181,"?","") ->  | S181: 0 | T181: 0 | AA181: 0 | AB181: FALSE | AC181: FALSE | AK181: ArchitektIn/Ausstattung | AL181: Set designer
A182: =A181+1 -> 74 | B182: =IF(Stammblatt!$L$5=1,'Kalkulation Herstellungskosten'!AK182,'Kalkulation Herstellungskosten'!AL182) -> BildhauerIn | E182: 0 | L182: =IF(AB182=TRUE,E182,0) -> 0 | M182: =IF(AC182=TRUE,E182,0) -> 0 | N182: =IF((L182+M182)>E182,"?","") ->  | S182: 0 | T182: 0 | AA182: 0 | AB182: FALSE | AC182: FALSE | AK182: BildhauerIn | AL182: Sculptor
A183: 75 | B183: =IF(Stammblatt!$L$5=1,'Kalkulation Herstellungskosten'!AK183,'Kalkulation Herstellungskosten'!AL183) -> KunstmalerIn | E183: 0 | L183: =IF(AB183=TRUE,E183,0) -> 0 | M183: =IF(AC183=TRUE,E183,0) -> 0 | N183: =IF((L183+M183)>E183,"?","") ->  | S183: =SUM(Q183:R183) -> 0 | T183: =G183-S183 -> 0 | AA183: 0 | AB183: FALSE | AC183: FALSE | AK183: KunstmalerIn | AL183: Scenic artist
A184: 76 | B184: =IF(Stammblatt!$L$5=1,'Kalkulation Herstellungskosten'!AK184,'Kalkulation Herstellungskosten'!AL184) -> StandfotografIn | E184: 0 | L184: =IF(AB184=TRUE,E184,0) -> 0 | M184: =IF(AC184=TRUE,E184,0) -> 0 | N184: =IF((L184+M184)>E184,"?","") ->  | S184: 0 | T184: 0 | AA184: 0 | AB184: FALSE | AC184: FALSE | AK184: StandfotografIn | AL184: Still photographer
A185: 77 | B185: =IF(Stammblatt!$L$5=1,'Kalkulation Herstellungskosten'!AK185,'Kalkulation Herstellungskosten'!AL185) -> GrafikerIn | E185: 0 | L185: 0 | M185: 0 | S185: =SUM(Q185:R185) -> 0 | T185: =E185-S185 -> 0 | AA185: =SUM(E185,X185:Z185) -> 0 | AB185: FALSE | AC185: FALSE | AK185: GrafikerIn | AL185: Graphic artist
A187: =A185+1 -> 78 | B187: =IF(Stammblatt!$L$5=1,'Kalkulation Herstellungskosten'!AK187,'Kalkulation Herstellungskosten'!AL187) -> Sonstige Dienstleister/Rechnungsleger | AK187: Sonstige Dienstleister/Rechnungsleger | AL187: Other Services
A188: 78.0 | E188: 0 | L188: =IF(AB188=TRUE,E188,0) -> 0 | M188: =IF(AC188=TRUE,E188,0) -> 0 | N188: =IF((L188+M188)>E188,"?","") ->  | S188: 0 | T188: =E188-S188 -> 0 | AA188: =SUM(E188,X188:Z188) -> 0 | AB188: FALSE | AC188: FALSE
A189: 78.1 | E189: 0 | L189: 0 | M189: 0 | S189: 0 | T189: 0 | AA189: 0 | AB189: FALSE | AC189: FALSE
A190: 78.2 | E190: 0 | L190: 0 | M190: 0 | S190: 0 | T190: 0 | AA190: 0 | AB190: FALSE | AC190: FALSE
A191: 78.3 | E191: 0 | L191: 0 | M191: 0 | S191: 0 | T191: 0 | AA191: 0 | AB191: FALSE | AC191: FALSE
A192: 78.4 | E192: 0 | L192: 0 | M192: 0 | S192: 0 | T192: 0 | AA192: 0 | AB192: FALSE | AC192: FALSE
A193: 78.5 | E193: 0 | L193: 0 | M193: 0 | S193: 0 | T193: =E193-S193 -> 0 | AA193: 0 | AB193: FALSE | AC193: FALSE
A194: 78.6 | E194: 0 | L194: 0 | M194: 0 | S194: 0 | T194: =E194-S194 -> 0 | AA194: 0 | AB194: FALSE | AC194: FALSE
A195: 78.7 | E195: 0 | L195: 0 | M195: 0 | S195: 0 | T195: =E195-S195 -> 0 | AA195: 0 | AB195: FALSE | AC195: FALSE
A196: 78.8 | E196: 0 | L196: 0 | M196: 0 | S196: 0 | T196: =E196-S196 -> 0 | AA196: 0 | AB196: FALSE | AC196: FALSE
A197: 78.9 | E197: 0 | L197: 0 | M197: 0 | S197: =SUM(Q197:R197) -> 0 | T197: =E197-S197 -> 0 | AA197: 0 | AB197: FALSE | AC197: FALSE
A198: 78.10 | E198: 0 | L198: =IF(AB198=TRUE,E198,0) -> 0 | M198: =IF(AC198=TRUE,E198,0) -> 0 | N198: =IF((L198+M198)>E198,"?","") ->  | S198: =SUM(Q198:R198) -> 0 | T198: =E198-S198 -> 0 | AA198: =SUM(E198,X198:Z198) -> 0 | AB198: FALSE | AC198: FALSE
A199: 78.11 | E199: 0 | L199: 0 | M199: 0 | S199: 0 | T199: 0 | AA199: 0 | AB199: FALSE | AC199: FALSE
A200: 78.12 | E200: 0 | L200: 0 | M200: 0 | S200: 0 | T200: 0 | AA200: 0 | AB200: FALSE | AC200: FALSE
A201: 78.13 | E201: 0 | L201: 0 | M201: 0 | S201: 0 | T201: 0 | AA201: 0 | AB201: FALSE | AC201: FALSE
A202: 78.14 | E202: 0 | L202: 0 | M202: 0 | S202: 0 | T202: 0 | AA202: 0 | AB202: FALSE | AC202: FALSE
A203: 78.15 | E203: 0 | L203: 0 | M203: 0 | S203: 0 | T203: 0 | AA203: 0 | AB203: FALSE | AC203: FALSE
A204: 78.16 | E204: 0 | L204: 0 | M204: 0 | S204: 0 | T204: 0 | AA204: 0 | AB204: FALSE | AC204: FALSE
A205: 78.17 | E205: 0 | L205: 0 | M205: 0 | S205: 0 | T205: 0 | AA205: 0 | AB205: FALSE | AC205: FALSE
A206: 78.18 | E206: 0 | L206: 0 | M206: 0 | S206: 0 | T206: 0 | AA206: 0 | AB206: FALSE | AC206: FALSE
A207: 78.19 | E207: 0 | L207: 0 | M207: 0 | S207: 0 | T207: 0 | AA207: 0 | AB207: FALSE | AC207: FALSE
A208: 78.20 | E208: 0 | L208: 0 | M208: 0 | S208: 0 | T208: 0 | AA208: 0 | AB208: FALSE | AC208: FALSE
B209: =IF(Stammblatt!$L$5=1,'Kalkulation Herstellungskosten'!AK209,'Kalkulation Herstellungskosten'!AL209) -> Σ-Honorare | G209: =SUM(E179:E208) -> 0 | O209: =SUM(O179:O208) -> 0 | P209: =SUM(P179:P208) -> 0 | Q209: =SUM(Q179:Q197) -> 0 | R209: =SUM(R179:R197) -> 0 | S209: =SUM(S179:S197) -> 0 | T209: =G209-S209 -> 0 | U209: =SUM(U179:U197) -> 0 | V209: =SUM(V179:V197) -> 0 | X209: =SUM(X179:X208) -> 0 | Y209: =SUM(Y179:Y208) -> 0 | Z209: =SUM(Z179:Z208) -> 0 | AA209: =SUM(G209,X209:Z209) -> 0 | AK209: Σ-Honorare | AL209: TOTAL Fees
B211: =IF(Stammblatt!$L$5=1,'Kalkulation Herstellungskosten'!AK211,'Kalkulation Herstellungskosten'!AL211) -> Σ-Gagen, Löhne, Honorare | G211: =SUM(G159,G162,G163,G172,G175,G176,G209) -> 0 | L211: =SUM(L179:L209,L159) -> 0 | M211: =SUM(M179:M209,M159) -> 0 | O211: =SUM(O159,O162,O163,O172,O175,O176,O209) -> 0 | P211: 0 | Q211: =SUM(Q209,Q175:Q176,Q172,Q162:Q163,Q159) -> 0 | R211: =SUM(R209,R175:R176,R172,R162:R163,R159) -> 0 | S211: =SUM(S209,S175:S176,S172,S162:S163,S159) -> 0 | T211: =ZS_3_Gagen-S211 -> 0 | U211: =SUM(U159,U162,U163,U172,U175,U176,U209) -> 0 | V211: =SUM(V159,V162,V163,V172,V175,V176,V209) -> 0 | X211: =SUM(X159,X162,X163,X172,X175,X176,X209) -> 0 | Y211: =SUM(Y159,Y162,Y163,Y172,Y175,Y176,Y209) -> 0 | Z211: =SUM(Z159,Z162,Z163,Z172,Z175,Z176,Z209) -> 0 | AA211: =SUM(G211,X211:Z211) -> 0 | AK211: Σ-Gagen, Löhne, Honorare | AL211: TOTAL Salaries, fees
B214: =IF(Stammblatt!$L$5=1,'Kalkulation Herstellungskosten'!AK214,'Kalkulation Herstellungskosten'!AL214) -> 4. Bild- und Tonaufnahme | AK214: 4. Bild- und Tonaufnahme | AL214: 4. Camera-, sound-, light- and grip equipment
C215: =IF(Stammblatt!$L$5=1,"Wochen","weeks") -> Wochen | D215: ILV
A216: =A187+1 -> 79 | B216: =IF(Stammblatt!$L$5=1,'Kalkulation Herstellungskosten'!AK216,'Kalkulation Herstellungskosten'!AL216) -> Kamera (Ton), Zubehör 35/16 *) | C216: 0 | E216: 0 | G216: =C216*E216 -> 0 | S216: =SUM(Q216:R216) -> 0 | T216: =G216-S216 -> 0 | AA216: =SUM(G216,X216:Z216) -> 0 | AE216: FALSE | AK216: Kamera (Ton), Zubehör 35/16 *) | AL216: Camera, accessories *)
... 125 more rows

Sheet ILV
A1: =Stammblatt!A1 -> Projekttitel
A2: bewertete Eigenleistungen
A3: =IF(Stammblatt!B8=0,"",Stammblatt!B8) -> 
A5: Vorkosten | B5: Funktionsträger (Name) | C5: Budget | D5: Abrechnung
A6: Position 1 | C6: 0 | D6: 0
A7: Position 2 | C7: 0 | D7: 0
A8: Position 3 | C8: 0 | D8: 0
A10: Rechte
A11: Drehbuch | C11: 0 | D11: 0
A12: Sonstiges | C12: 0 | D12: 0
A14: Personalkosten | B14: Funktionsträger (Name)
A15: Regie | C15: 0 | D15: 0
A16: Herstellungsleiter | C16: 0 | D16: 0
A17: Produktionsleiter | C17: 0 | D17: 0
A18: Produktionskoordination | C18: 0 | D18: 0
A19: Produktionsassistenz | C19: 0 | D19: 0
A20: Filmgeschäftsführung | C20: 0 | D20: 0
A21: Postproduktionskoordination
A22: Sonstige | C22: 0 | D22: 0
A23: kalkulatorische Lohnnebenkosten | C23: 0 | D23: 0
A25: Equipment | B25: Modellspezifikation
A26: Kamera | C26: 0 | D26: 0
A27: Ton | C27: 0 | D27: 0
A28: Bildschnitt | C28: 0 | D28: 0
A29: Tonschnitt | C29: 0 | D29: 0
A30: Sonstige Postproduktion | C30: 0 | D30: 0
A31: Sonstiges Equipment | C31: 0 | D31: 0
A32: Fahrzeuge | C32: 0 | D32: 0
A34: Allgemeine Pauschalen
A35: Produzentenhonorar | C35: ='Kalkulation Herstellungskosten'!E179 -> 0 | D35: ='Kalkulation Herstellungskosten'!F179 -> 0
A36: Fertigungsgemeinkosten | C36: =Zusammenfassung!D18 -> 0 | D36: =Zusammenfassung!E18 -> 0
A38: SUMME bewertete Eigenleistungen (ILV) | B38: =IF(Zusammenfassung!D22=0,"",C38/Zusammenfassung!D22) ->  | C38: =SUM(C6:C37) -> 0 | D38: =SUM(D6:D37) -> 0
A39: Eigenmittel + ev. Rückstellungen im Eigenanteil | C39: =Finanzierungsplan!C6+Finanzierungsplan!C7 -> 0 | D39: =Finanzierungsplan!D6+Finanzierungsplan!D7 -> 0

Sheet Stab_Ö_Details
A3: =Stammblatt!A1 -> Projekttitel | M3: =IF(Stammblatt!$L$5=1,"L O H N N E B E N K O S T E N","N O N - W A G E L A B O U R C O S T S") -> L O H N N E B E N K O S T E N
I4: =IF(Stammblatt!$L$5=1,"BRUTTO-GEHALT","salary (gross)") -> BRUTTO-GEHALT | J4: =IF(Stammblatt!$L$5=1,"Sonder-zahlung (SZ)","extra payment (SZ)") -> Sonder-zahlung (SZ) | K4: =IF(Stammblatt!$L$5=1,"Urlaubs-ersatzleistung (UEL)","vacational compensation (UEL)") -> Urlaubs-ersatzleistung (UEL) | L4: =IF(Stammblatt!$L$5=1,"BRUTTO-GEHALT inkl. SZ, UEL","salary (gross) incl. SZ & UEL") -> BRUTTO-GEHALT inkl. SZ, UEL | M4: =IF(Stammblatt!$L$5=1,"SV-DGA","social security") -> SV-DGA | Q4: =IF(Stammblatt!$L$5=1,"MV-Beitrag","provision for employee") -> MV-Beitrag | T4: =IF(Stammblatt!$L$5=1,"Kommunal-steuer","municipal tax") -> Kommunal-steuer | U4: =IF(Stammblatt!$L$5=1,"U-Bahn Abgabe","subway toll") -> U-Bahn Abgabe | V4: =IF(Stammblatt!$L$5=1,"SUMME Lohnneben-kosten","T O T A L non-wage labour costs") -> SUMME Lohnneben-kosten | W4: =IF(Stammblatt!$L$5=1,"GESAMT-KOSTEN","TOTAL LABOUR COSTS") -> GESAMT-KOSTEN | Z4: =IF(Stammblatt!$L$5=1,"FLUGTICKETS","FLIGHTS") -> FLUGTICKETS | AC4: =IF(Stammblatt!$L$5=1,"BAHNFAHRTEN","TRAIN") -> BAHNFAHRTEN | AF4: =IF(Stammblatt!$L$5=1,"D I Ä T E N ( T a g e )","P E R D I E M ( N r. o f d a y s )") -> D I Ä T E N ( T a g e ) | AL4: CATERING | AM4: =IF(Stammblatt!$L$5=1,"NÄCHTIGUNGEN","HOTELS / LODGING") -> NÄCHTIGUNGEN
C5: V E R T R A G S D A T E N | M5: laufende | N5: Sonder- | R5: DB | S5: DZ | Y5: km | Z5: =IF(Stammblatt!$L$5=1,"Anzahl","quant.") -> Anzahl | AA5: =IF(Stammblatt!$L$5=1,"Preis","price") -> Preis | AB5: Total | AC5: =IF(Stammblatt!$L$5=1,"Anzahl","quant.") -> Anzahl | AD5: =IF(Stammblatt!$L$5=1,"Preis","price") -> Preis | AE5: Total | AF5: ORTS- | AG5: ÖSTER- | AH5: AUSLAND | AL5: =IF(Stammblatt!$L$5=1,"Tage","days") -> Tage | AM5: =IF(Stammblatt!$L$5=1,"Anzahl","quant.") -> Anzahl | AN5: =IF(Stammblatt!$L$5=1,"Preis","price") -> Preis | AO5: Total
A6: =IF(Stammblatt!$L$5=1,"S T A B - F U N K T I O N","S T A F F - F U N C T I O N") -> S T A B - F U N K T I O N | B6: N A M E | C6: ANMELDUNG | D6: ABMELDUNG | E6: WOCHEN | F6: WO-GAGE | G6: GESAMT | M6: Bezüge | N6: zahlung | O6: UEL-laufend | P6: UEL-SZ | T6: steuer | AF6: GEBIET | AG6: REICH | AH6: I | AI6: II | AJ6: III | AK6: IV
A7: ='Kalkulation Herstellungskosten'!B26 -> 0
A8: ='Kalkulation Herstellungskosten'!B27 -> Herstellungsleitung | I8: ='Kalkulation Herstellungskosten'!G27/((1+1/6)*1.1041) -> 0 | J8: =I8/6 -> 0 | K8: =(I8+J8)*10.41% -> 0 | L8: =SUM(I8:K8) -> 0 | M8: =IF(AND('Kalkulation Herstellungskosten'!C27=0,'Kalkulation Herstellungskosten'!C28=0),0,IF(I8/('Kalkulation Herstellungskosten'!C27+'Kalkulation Herstellungskosten'!C28)>SVGrund_lfd_wö,('Kalkulation Herstellungskosten'!C27+'Kalkulation Herstellungskosten'!C28)*Höchst_Woche,I8*SV_lfd)) -> 0 | N8: =IF(J8>SVGrund_SZ, Höchst_Mo_SZ,J8*SV_SZ) -> 0 | O8: =IF(I8*10.41%>(0.5833*('Kalkulation Herstellungskosten'!C28+'Kalkulation Herstellungskosten'!C27)*SVGrund_lfd_tä),(0.5833*('Kalkulation Herstellungskosten'!C28+'Kalkulation Herstellungskosten'!C27)*Höchst_Tag),I8*10.41%*SV_lfd) -> 0 | P8: =IF(J8>SVGrund_SZ,0,IF(J8*10.41%>(SVGrund_SZ-J8),(SVGrund_SZ-J8)*SV_SZ,J8*10.41%*SV_SZ)) -> 0 | Q8: =L8*MV -> 0 | R8: =L8*DB -> 0 | S8: =L8*DZ -> 0 | T8: =L8*KommSt -> 0 | U8: =('Kalkulation Herstellungskosten'!C27+'Kalkulation Herstellungskosten'!C28)*U_Bahn -> 0 | V8: =SUM(M8:U8) -> 0 | W8: =SUM(L8,V8) -> 0 | AB8: =Z8*AA8 -> 0 | AE8: =AC8*AD8 -> 0 | AO8: =AM8*AN8 -> 0
A9: ='Kalkulation Herstellungskosten'!B29 -> Produktionsleitung | E9: =IF(C9=0,0,(D9-C9+1)/7) -> 0 | G9: =E9*F9 -> 0 | I9: ='Kalkulation Herstellungskosten'!G29/((1+1/6)*1.1041) -> 0 | J9: =I9/6 -> 0 | K9: =(I9+J9)*10.41% -> 0 | L9: =SUM(I9:K9) -> 0 | M9: =IF(AND('Kalkulation Herstellungskosten'!C29=0,'Kalkulation Herstellungskosten'!C30=0),0,IF(I9/('Kalkulation Herstellungskosten'!C29+'Kalkulation Herstellungskosten'!C30)>SVGrund_lfd_wö,('Kalkulation Herstellungskosten'!C29+'Kalkulation Herstellungskosten'!C30)*Höchst_Woche,I9*SV_lfd)) -> 0 | N9: =IF(J9>SVGrund_SZ, Höchst_Mo_SZ,J9*SV_SZ) -> 0 | O9: =IF(I9*10.41%>(0.5833*('Kalkulation Herstellungskosten'!C30+'Kalkulation Herstellungskosten'!C29)*SVGrund_lfd_tä),(0.5833*('Kalkulation Herstellungskosten'!C30+'Kalkulation Herstellungskosten'!C29)*Höchst_Tag),I9*10.41%*SV_lfd) -> 0 | P9: =IF(J9>SVGrund_SZ,0,IF(J9*10.41%>(SVGrund_SZ-J9),(SVGrund_SZ-J9)*SV_SZ,J9*10.41%*SV_SZ)) -> 0 | Q9: =L9*MV -> 0 | R9: =L9*DB -> 0 | S9: =L9*DZ -> 0 | T9: =L9*KommSt -> 0 | U9: =('Kalkulation Herstellungskosten'!C29+'Kalkulation Herstellungskosten'!C30)*U_Bahn -> 0 | V9: =SUM(M9:U9) -> 0 | W9: =SUM(L9,V9) -> 0 | AB9: =Z9*AA9 -> 0 | AE9: =AC9*AD9 -> 0 | AO9: =AM9*AN9 -> 0
A10: ='Kalkulation Herstellungskosten'!B31 -> 1. Aufnahmeleitung | E10: =IF(C10=0,0,(D10-C10+1)/7) -> 0 | G10: =E10*F10 -> 0 | I10: ='Kalkulation Herstellungskosten'!G31/((1+1/6)*1.1041) -> 0 | J10: 0 | K10: 0 | L10: 0 | M10: =IF(AND('Kalkulation Herstellungskosten'!C31=0,'Kalkulation Herstellungskosten'!C32=0),0,IF(I10/('Kalkulation Herstellungskosten'!C31+'Kalkulation Herstellungskosten'!C32)>SVGrund_lfd_wö,('Kalkulation Herstellungskosten'!C31+'Kalkulation Herstellungskosten'!C32)*Höchst_Woche,I10*SV_lfd)) -> 0 | N10: 0 | O10: =IF(I10*10.41%>(0.5833*('Kalkulation Herstellungskosten'!C32+'Kalkulation Herstellungskosten'!C31)*SVGrund_lfd_tä),(0.5833*('Kalkulation Herstellungskosten'!C32+'Kalkulation Herstellungskosten'!C31)*Höchst_Tag),I10*10.41%*SV_lfd) -> 0 | P10: 0 | Q10: 0 | R10: 0 | S10: 0 | T10: 0 | U10: =('Kalkulation Herstellungskosten'!C31+'Kalkulation Herstellungskosten'!C32)*U_Bahn -> 0 | V10: 0 | W10: =SUM(L10,V10) -> 0 | AB10: 0 | AE10: 0 | AO10: 0
A11: ='Kalkulation Herstellungskosten'!B33 -> 2. Aufnahmeleitung | E11: 0 | G11: 0 | I11: ='Kalkulation Herstellungskosten'!G33/((1+1/6)*1.1041) -> 0 | J11: 0 | K11: 0 | L11: 0 | M11: =IF(AND('Kalkulation Herstellungskosten'!C33=0,'Kalkulation Herstellungskosten'!C34=0),0,IF(I11/('Kalkulation Herstellungskosten'!C33+'Kalkulation Herstellungskosten'!C34)>SVGrund_lfd_wö,('Kalkulation Herstellungskosten'!C33+'Kalkulation Herstellungskosten'!C34)*Höchst_Woche,I11*SV_lfd)) -> 0 | N11: 0 | O11: =IF(I11*10.41%>(0.5833*('Kalkulation Herstellungskosten'!C34+'Kalkulation Herstellungskosten'!C33)*SVGrund_lfd_tä),(0.5833*('Kalkulation Herstellungskosten'!C34+'Kalkulation Herstellungskosten'!C33)*Höchst_Tag),I11*10.41%*SV_lfd) -> 0 | P11: 0 | Q11: 0 | R11: 0 | S11: 0 | T11: 0 | U11: =('Kalkulation Herstellungskosten'!C33+'Kalkulation Herstellungskosten'!C34)*U_Bahn -> 0 | V11: 0 | W11: 0 | AB11: 0 | AE11: 0 | AO11: 0
A12: ='Kalkulation Herstellungskosten'!B35 -> Produktionskoordination | I12: ='Kalkulation Herstellungskosten'!G35/((1+1/6)*1.1041) -> 0 | J12: =I12/6 -> 0 | K12: =(I12+J12)*10.41% -> 0 | L12: =SUM(I12:K12) -> 0 | M12: =IF(AND('Kalkulation Herstellungskosten'!C35=0,'Kalkulation Herstellungskosten'!C36=0),0,IF(I12/('Kalkulation Herstellungskosten'!C35+'Kalkulation Herstellungskosten'!C36)>SVGrund_lfd_wö,('Kalkulation Herstellungskosten'!C35+'Kalkulation Herstellungskosten'!C36)*Höchst_Woche,I12*SV_lfd)) -> 0 | N12: =IF(J12>SVGrund_SZ, Höchst_Mo_SZ,J12*SV_SZ) -> 0 | O12: =IF(I12*10.41%>(0.5833*('Kalkulation Herstellungskosten'!C36+'Kalkulation Herstellungskosten'!C35)*SVGrund_lfd_tä),(0.5833*('Kalkulation Herstellungskosten'!C36+'Kalkulation Herstellungskosten'!C35)*Höchst_Tag),I12*10.41%*SV_lfd) -> 0 | P12: =IF(J12>SVGrund_SZ,0,IF(J12*10.41%>(SVGrund_SZ-J12),(SVGrund_SZ-J12)*SV_SZ,J12*10.41%*SV_SZ)) -> 0 | Q12: =L12*MV -> 0 | R12: =L12*DB -> 0 | S12: =L12*DZ -> 0 | T12: =L12*KommSt -> 0 | U12: =('Kalkulation Herstellungskosten'!C35+'Kalkulation Herstellungskosten'!C36)*U_Bahn -> 0 | V12: =SUM(M12:U12) -> 0 | W12: =SUM(L12,V12) -> 0
A13: ='Kalkulation Herstellungskosten'!B37 -> Postproduktionskoordination | E13: 0 | G13: 0 | I13: ='Kalkulation Herstellungskosten'!G37/((1+1/6)*1.1041) -> 0 | J13: 0 | K13: 0 | L13: 0 | M13: =IF(AND('Kalkulation Herstellungskosten'!C37=0,'Kalkulation Herstellungskosten'!C38=0),0,IF(I13/('Kalkulation Herstellungskosten'!C37+'Kalkulation Herstellungskosten'!C38)>SVGrund_lfd_wö,('Kalkulation Herstellungskosten'!C37+'Kalkulation Herstellungskosten'!C38)*Höchst_Woche,I13*SV_lfd)) -> 0 | N13: 0 | O13: =IF(I13*10.41%>(0.5833*('Kalkulation Herstellungskosten'!C38+'Kalkulation Herstellungskosten'!C37)*SVGrund_lfd_tä),(0.5833*('Kalkulation Herstellungskosten'!C38+'Kalkulation Herstellungskosten'!C37)*Höchst_Tag),I13*10.41%*SV_lfd) -> 0 | P13: 0 | Q13: 0 | R13: 0 | S13: 0 | T13: 0 | U13: =('Kalkulation Herstellungskosten'!C37+'Kalkulation Herstellungskosten'!C38)*U_Bahn -> 0 | V13: 0 | W13: 0 | AB13: 0 | AE13: 0 | AO13: 0
A14: ='Kalkulation Herstellungskosten'!B39 -> Produktionsassistenz | E14: 0 | G14: 0 | I14: ='Kalkulation Herstellungskosten'!G39/((1+1/6)*1.1041) -> 0 | J14: 0 | K14: 0 | L14: 0 | M14: =IF(AND('Kalkulation Herstellungskosten'!C39=0,'Kalkulation Herstellungskosten'!C40=0),0,IF(I14/('Kalkulation Herstellungskosten'!C39+'Kalkulation Herstellungskosten'!C40)>SVGrund_lfd_wö,('Kalkulation Herstellungskosten'!C39+'Kalkulation Herstellungskosten'!C40)*Höchst_Woche,I14*SV_lfd)) -> 0 | N14: 0 | O14: =IF(I14*10.41%>(0.5833*('Kalkulation Herstellungskosten'!C40+'Kalkulation Herstellungskosten'!C39)*SVGrund_lfd_tä),(0.5833*('Kalkulation Herstellungskosten'!C40+'Kalkulation Herstellungskosten'!C39)*Höchst_Tag),I14*10.41%*SV_lfd) -> 0 | P14: 0 | Q14: 0 | R14: 0 | S14: 0 | T14: 0 | U14: =('Kalkulation Herstellungskosten'!C39+'Kalkulation Herstellungskosten'!C40)*U_Bahn -> 0 | V14: 0 | W14: 0 | AB14: 0 | AE14: 0 | AO14: 0
A15: ='Kalkulation Herstellungskosten'!B41 -> Filmgeschäftsführung | E15: 0 | G15: 0 | I15: ='Kalkulation Herstellungskosten'!G41/((1+1/6)*1.1041) -> 0 | J15: 0 | K15: 0 | L15: 0 | M15: =IF(AND('Kalkulation Herstellungskosten'!C41=0,'Kalkulation Herstellungskosten'!C42=0),0,IF(I15/('Kalkulation Herstellungskosten'!C41+'Kalkulation Herstellungskosten'!C42)>SVGrund_lfd_wö,('Kalkulation Herstellungskosten'!C41+'Kalkulation Herstellungskosten'!C42)*Höchst_Woche,I15*SV_lfd)) -> 0 | N15: 0 | O15: =IF(I15*10.41%>(0.5833*('Kalkulation Herstellungskosten'!C42+'Kalkulation Herstellungskosten'!C41)*SVGrund_lfd_tä),(0.5833*('Kalkulation Herstellungskosten'!C42+'Kalkulation Herstellungskosten'!C41)*Höchst_Tag),I15*10.41%*SV_lfd) -> 0 | P15: 0 | Q15: 0 | R15: 0 | S15: 0 | T15: 0 | U15: =('Kalkulation Herstellungskosten'!C41+'Kalkulation Herstellungskosten'!C42)*U_Bahn -> 0 | V15: 0 | W15: 0 | AB15: 0 | AE15: 0 | AO15: 0
A16: ='Kalkulation Herstellungskosten'!B43 -> Regie | E16: 0 | G16: 0 | I16: ='Kalkulation Herstellungskosten'!G43/((1+1/6)*1.1041) -> 0 | J16: 0 | K16: 0 | L16: 0 | M16: =IF('Kalkulation Herstellungskosten'!C43=0,0,IF(I16/('Kalkulation Herstellungskosten'!C43)>SVGrund_lfd_wö,('Kalkulation Herstellungskosten'!C43)*Höchst_Woche,I16*SV_lfd)) -> 0 | N16: 0 | O16: =IF(I16*10.41%>(0.5833*'Kalkulation Herstellungskosten'!C43*SVGrund_lfd_tä),(0.5833*'Kalkulation Herstellungskosten'!C43*Höchst_Tag),I16*10.41%*SV_lfd) -> 0 | P16: 0 | Q16: 0 | R16: 0 | S16: 0 | T16: 0 | U16: ='Kalkulation Herstellungskosten'!C43*U_Bahn -> 0 | V16: 0 | W16: 0 | AB16: 0 | AE16: 0 | AO16: 0
A17: ='Kalkulation Herstellungskosten'!B44 -> Regieassistenz | E17: 0 | G17: 0 | I17: ='Kalkulation Herstellungskosten'!G44/((1+1/6)*1.1041) -> 0 | J17: 0 | K17: 0 | L17: 0 | M17: =IF(AND('Kalkulation Herstellungskosten'!C44=0,'Kalkulation Herstellungskosten'!C45=0),0,IF(I17/('Kalkulation Herstellungskosten'!C44+'Kalkulation Herstellungskosten'!C45)>SVGrund_lfd_wö,('Kalkulation Herstellungskosten'!C44+'Kalkulation Herstellungskosten'!C45)*Höchst_Woche,I17*SV_lfd)) -> 0 | N17: 0 | O17: =IF(I17*10.41%>(0.5833*('Kalkulation Herstellungskosten'!C45+'Kalkulation Herstellungskosten'!C44)*SVGrund_lfd_tä),(0.5833*('Kalkulation Herstellungskosten'!C45+'Kalkulation Herstellungskosten'!C44)*Höchst_Tag),I17*10.41%*SV_lfd) -> 0 | P17: 0 | Q17: 0 | R17: 0 | S17: 0 | T17: 0 | U17: =('Kalkulation Herstellungskosten'!C44+'Kalkulation Herstellungskosten'!C45)*U_Bahn -> 0 | V17: 0 | W17: 0 | AB17: 0 | AE17: 0 | AO17: 0
A18: ='Kalkulation Herstellungskosten'!B46 -> Continuity/Skript | E18: 0 | G18: 0 | I18: ='Kalkulation Herstellungskosten'!G46/((1+1/6)*1.1041) -> 0 | J18: 0 | K18: 0 | L18: 0 | M18: =IF(AND('Kalkulation Herstellungskosten'!C46=0,'Kalkulation Herstellungskosten'!C47=0),0,IF(I18/('Kalkulation Herstellungskosten'!C46+'Kalkulation Herstellungskosten'!C47)>SVGrund_lfd_wö,('Kalkulation Herstellungskosten'!C46+'Kalkulation Herstellungskosten'!C47)*Höchst_Woche,I18*SV_lfd)) -> 0 | N18: 0 | O18: =IF(I18*10.41%>(0.5833*('Kalkulation Herstellungskosten'!C47+'Kalkulation Herstellungskosten'!C46)*SVGrund_lfd_tä),(0.5833*('Kalkulation Herstellungskosten'!C47+'Kalkulation Herstellungskosten'!C46)*Höchst_Tag),I18*10.41%*SV_lfd) -> 0 | P18: 0 | Q18: 0 | R18: 0 | S18: 0 | T18: 0 | U18: =('Kalkulation Herstellungskosten'!C46+'Kalkulation Herstellungskosten'!C47)*U_Bahn -> 0 | V18: 0 | W18: 0 | AB18: 0 | AE18: 0 | AO18: 0
A19: ='Kalkulation Herstellungskosten'!B48 -> Kamera | E19: 0 | G19: 0 | I19: ='Kalkulation Herstellungskosten'!G48/((1+1/6)*1.1041) -> 0 | J19: 0 | K19: 0 | L19: 0 | M19: =IF(AND('Kalkulation Herstellungskosten'!C48=0,'Kalkulation Herstellungskosten'!C49=0),0,IF(I19/('Kalkulation Herstellungskosten'!C48+'Kalkulation Herstellungskosten'!C49)>SVGrund_lfd_wö,('Kalkulation Herstellungskosten'!C48+'Kalkulation Herstellungskosten'!C49)*Höchst_Woche,I19*SV_lfd)) -> 0 | N19: 0 | O19: =IF(I19*10.41%>(0.5833*('Kalkulation Herstellungskosten'!C49+'Kalkulation Herstellungskosten'!C48)*SVGrund_lfd_tä),(0.5833*('Kalkulation Herstellungskosten'!C49+'Kalkulation Herstellungskosten'!C48)*Höchst_Tag),I19*10.41%*SV_lfd) -> 0 | P19: 0 | Q19: 0 | R19: 0 | S19: 0 | T19: 0 | U19: =('Kalkulation Herstellungskosten'!C48+'Kalkulation Herstellungskosten'!C49)*U_Bahn -> 0 | V19: 0 | W19: 0 | AB19: 0 | AE19: 0 | AO19: 0
A20: ='Kalkulation Herstellungskosten'!B50 -> 1. Kameraassistenz | E20: 0 | G20: 0 | I20: ='Kalkulation Herstellungskosten'!G50/((1+1/6)*1.1041) -> 0 | J20: 0 | K20: 0 | L20: 0 | M20: =IF(AND('Kalkulation Herstellungskosten'!C50=0,'Kalkulation Herstellungskosten'!C51=0),0,IF(I20/('Kalkulation Herstellungskosten'!C50+'Kalkulation Herstellungskosten'!C51)>SVGrund_lfd_wö,('Kalkulation Herstellungskosten'!C50+'Kalkulation Herstellungskosten'!C51)*Höchst_Woche,I20*SV_lfd)) -> 0 | N20: =IF(J20>SVGrund_SZ, Höchst_Mo_SZ,J20*SV_SZ) -> 0 | O20: =IF(I20*10.41%>(0.5833*('Kalkulation Herstellungskosten'!C51+'Kalkulation Herstellungskosten'!C50)*SVGrund_lfd_tä),(0.5833*('Kalkulation Herstellungskosten'!C51+'Kalkulation Herstellungskosten'!C50)*Höchst_Tag),I20*10.41%*SV_lfd) -> 0 | P20: =IF(J20>SVGrund_SZ,0,IF(J20*10.41%>(SVGrund_SZ-J20),(SVGrund_SZ-J20)*SV_SZ,J20*10.41%*SV_SZ)) -> 0 | Q20: 0 | R20: 0 | S20: 0 | T20: 0 | U20: =('Kalkulation Herstellungskosten'!C50+'Kalkulation Herstellungskosten'!C51)*U_Bahn -> 0 | V20: =SUM(M20:U20) -> 0 | W20: =SUM(L20,V20) -> 0 | AB20: 0 | AE20: 0 | AO20: 0
A21: ='Kalkulation Herstellungskosten'!B52 -> 2. Kameraassistenz | E21: 0 | G21: 0 | I21: ='Kalkulation Herstellungskosten'!G52/((1+1/6)*1.1041) -> 0 | J21: 0 | K21: 0 | L21: 0 | M21: =IF(AND('Kalkulation Herstellungskosten'!C52=0,'Kalkulation Herstellungskosten'!C53=0),0,IF(I21/('Kalkulation Herstellungskosten'!C52+'Kalkulation Herstellungskosten'!C53)>SVGrund_lfd_wö,('Kalkulation Herstellungskosten'!C52+'Kalkulation Herstellungskosten'!C53)*Höchst_Woche,I21*SV_lfd)) -> 0 | N21: 0 | O21: =IF(I21*10.41%>(0.5833*('Kalkulation Herstellungskosten'!C53+'Kalkulation Herstellungskosten'!C52)*SVGrund_lfd_tä),(0.5833*('Kalkulation Herstellungskosten'!C53+'Kalkulation Herstellungskosten'!C52)*Höchst_Tag),I21*10.41%*SV_lfd) -> 0 | P21: 0 | Q21: 0 | R21: 0 | S21: 0 | T21: 0 | U21: =('Kalkulation Herstellungskosten'!C52+'Kalkulation Herstellungskosten'!C53)*U_Bahn -> 0 | V21: 0 | W21: 0 | AB21: 0 | AE21: 0 | AO21: 0
A22: ='Kalkulation Herstellungskosten'!B54 -> Kamera im Verbund, Schwenker | E22: 0 | G22: 0 | I22: ='Kalkulation Herstellungskosten'!G54/((1+1/6)*1.1041) -> 0 | J22: 0 | K22: 0 | L22: 0 | M22: =IF(AND('Kalkulation Herstellungskosten'!C54=0,'Kalkulation Herstellungskosten'!C55=0),0,IF(I22/('Kalkulation Herstellungskosten'!C54+'Kalkulation Herstellungskosten'!C55)>SVGrund_lfd_wö,('Kalkulation Herstellungskosten'!C54+'Kalkulation Herstellungskosten'!C55)*Höchst_Woche,I22*SV_lfd)) -> 0 | N22: 0 | O22: =IF(I22*10.41%>(0.5833*('Kalkulation Herstellungskosten'!C55+'Kalkulation Herstellungskosten'!C54)*SVGrund_lfd_tä),(0.5833*('Kalkulation Herstellungskosten'!C55+'Kalkulation Herstellungskosten'!C54)*Höchst_Tag),I22*10.41%*SV_lfd) -> 0 | P22: 0 | Q22: 0 | R22: 0 | S22: 0 | T22: 0 | U22: =('Kalkulation Herstellungskosten'!C54+'Kalkulation Herstellungskosten'!C55)*U_Bahn -> 0 | V22: 0 | W22: 0 | AB22: 0 | AE22: 0 | AO22: 0
A23: ='Kalkulation Herstellungskosten'!B56 -> Videotechnik | E23: 0 | G23: 0 | I23: ='Kalkulation Herstellungskosten'!G56/((1+1/6)*1.1041) -> 0 | J23: 0 | K23: 0 | L23: 0 | M23: =IF(AND('Kalkulation Herstellungskosten'!C56=0,'Kalkulation Herstellungskosten'!C57=0),0,IF(I23/('Kalkulation Herstellungskosten'!C56+'Kalkulation Herstellungskosten'!C57)>SVGrund_lfd_wö,('Kalkulation Herstellungskosten'!C56+'Kalkulation Herstellungskosten'!C57)*Höchst_Woche,I23*SV_lfd)) -> 0 | N23: 0 | O23: =IF(I23*10.41%>(0.5833*('Kalkulation Herstellungskosten'!C57+'Kalkulation Herstellungskosten'!C56)*SVGrund_lfd_tä),(0.5833*('Kalkulation Herstellungskosten'!C57+'Kalkulation Herstellungskosten'!C56)*Höchst_Tag),I23*10.41%*SV_lfd) -> 0 | P23: 0 | Q23: 0 | R23: 0 | S23: 0 | T23: 0 | U23: =('Kalkulation Herstellungskosten'!C56+'Kalkulation Herstellungskosten'!C57)*U_Bahn -> 0 | V23: 0 | W23: 0 | AB23: 0 | AE23: 0 | AO23: 0
A24: ='Kalkulation Herstellungskosten'!B58 -> Digital Image Technican (DIT) | I24: ='Kalkulation Herstellungskosten'!G58/((1+1/6)*1.1041) -> 0 | J24: =I24/6 -> 0 | K24: =(I24+J24)*10.41% -> 0 | L24: =SUM(I24:K24) -> 0 | M24: =IF(AND('Kalkulation Herstellungskosten'!C58=0,'Kalkulation Herstellungskosten'!C59=0),0,IF(I24/('Kalkulation Herstellungskosten'!C58+'Kalkulation Herstellungskosten'!C59)>SVGrund_lfd_wö,('Kalkulation Herstellungskosten'!C58+'Kalkulation Herstellungskosten'!C59)*Höchst_Woche,I24*SV_lfd)) -> 0 | N24: =IF(J24>SVGrund_SZ, Höchst_Mo_SZ,J24*SV_SZ) -> 0 | O24: =IF(I24*10.41%>(0.5833*('Kalkulation Herstellungskosten'!C58+'Kalkulation Herstellungskosten'!C59)*SVGrund_lfd_tä),(0.5833*('Kalkulation Herstellungskosten'!C58+'Kalkulation Herstellungskosten'!C59)*Höchst_Tag),I24*10.41%*SV_lfd) -> 0 | P24: =IF(J24>SVGrund_SZ,0,IF(J24*10.41%>(SVGrund_SZ-J24),(SVGrund_SZ-J24)*SV_SZ,J24*10.41%*SV_SZ)) -> 0 | Q24: =L24*MV -> 0 | R24: =L24*DB -> 0 | S24: =L24*DZ -> 0 | T24: =L24*KommSt -> 0 | U24: =('Kalkulation Herstellungskosten'!C59+'Kalkulation Herstellungskosten'!C58)*U_Bahn -> 0 | V24: =SUM(M24:U24) -> 0 | W24: =SUM(L24,V24) -> 0 | AB24: 0
A25: ='Kalkulation Herstellungskosten'!B60 -> Data Wrangler | I25: ='Kalkulation Herstellungskosten'!G60/((1+1/6)*1.1041) -> 0 | J25: =I25/6 -> 0 | K25: =(I25+J25)*10.41% -> 0 | L25: =SUM(I25:K25) -> 0 | M25: =IF(AND('Kalkulation Herstellungskosten'!C60=0,'Kalkulation Herstellungskosten'!C61=0),0,IF(I25/('Kalkulation Herstellungskosten'!C60+'Kalkulation Herstellungskosten'!C61)>SVGrund_lfd_wö,('Kalkulation Herstellungskosten'!C60+'Kalkulation Herstellungskosten'!C61)*Höchst_Woche,I25*SV_lfd)) -> 0 | N25: =IF(J25>SVGrund_SZ, Höchst_Mo_SZ,J25*SV_SZ) -> 0 | O25: =IF(I25*10.41%>(0.5833*('Kalkulation Herstellungskosten'!C60+'Kalkulation Herstellungskosten'!C61)*SVGrund_lfd_tä),(0.5833*('Kalkulation Herstellungskosten'!C60+'Kalkulation Herstellungskosten'!C61)*Höchst_Tag),I25*10.41%*SV_lfd) -> 0 | P25: =IF(J25>SVGrund_SZ,0,IF(J25*10.41%>(SVGrund_SZ-J25),(SVGrund_SZ-J25)*SV_SZ,J25*10.41%*SV_SZ)) -> 0 | Q25: =L25*MV -> 0 | R25: =L25*DB -> 0 | S25: =L25*DZ -> 0 | T25: =L25*KommSt -> 0 | U25: =('Kalkulation Herstellungskosten'!C61+'Kalkulation Herstellungskosten'!C60)*U_Bahn -> 0 | V25: =SUM(M25:U25) -> 0 | W25: =SUM(L25,V25) -> 0
A26: ='Kalkulation Herstellungskosten'!B62 -> Ton I Ton II | E26: 0 | G26: 0 | I26: ='Kalkulation Herstellungskosten'!G62/((1+1/6)*1.1041) -> 0 | J26: 0 | K26: 0 | L26: 0 | M26: =IF(AND('Kalkulation Herstellungskosten'!C62=0,'Kalkulation Herstellungskosten'!C63=0),0,IF(I26/('Kalkulation Herstellungskosten'!C62+'Kalkulation Herstellungskosten'!C63)>SVGrund_lfd_wö,('Kalkulation Herstellungskosten'!C62+'Kalkulation Herstellungskosten'!C63)*Höchst_Woche,I26*SV_lfd)) -> 0 | N26: 0 | O26: =IF(I26*10.41%>(0.5833*('Kalkulation Herstellungskosten'!C63+'Kalkulation Herstellungskosten'!C62)*SVGrund_lfd_tä),(0.5833*('Kalkulation Herstellungskosten'!C63+'Kalkulation Herstellungskosten'!C62)*Höchst_Tag),I26*10.41%*SV_lfd) -> 0 | P26: 0 | Q26: 0 | R26: 0 | S26: 0 | T26: 0 | U26: =('Kalkulation Herstellungskosten'!C62+'Kalkulation Herstellungskosten'!C63)*U_Bahn -> 0 | V26: 0 | W26: 0 | AB26: 0 | AE26: 0 | AO26: 0
A27: ='Kalkulation Herstellungskosten'!B64 -> Tonassistenz | E27: 0 | G27: 0 | I27: ='Kalkulation Herstellungskosten'!G64/((1+1/6)*1.1041) -> 0 | J27: 0 | K27: 0 | L27: 0 | M27: =IF(AND('Kalkulation Herstellungskosten'!C64=0,'Kalkulation Herstellungskosten'!C65=0),0,IF(I27/('Kalkulation Herstellungskosten'!C64+'Kalkulation Herstellungskosten'!C65)>SVGrund_lfd_wö,('Kalkulation Herstellungskosten'!C64+'Kalkulation Herstellungskosten'!C65)*Höchst_Woche,I27*SV_lfd)) -> 0 | N27: 0 | O27: =IF(I27*10.41%>(0.5833*('Kalkulation Herstellungskosten'!C65+'Kalkulation Herstellungskosten'!C64)*SVGrund_lfd_tä),(0.5833*('Kalkulation Herstellungskosten'!C65+'Kalkulation Herstellungskosten'!C64)*Höchst_Tag),I27*10.41%*SV_lfd) -> 0 | P27: 0 | Q27: 0 | R27: 0 | S27: 0 | T27: 0 | U27: =('Kalkulation Herstellungskosten'!C64+'Kalkulation Herstellungskosten'!C65)*U_Bahn -> 0 | V27: 0 | W27: 0 | AB27: 0 | AE27: 0 | AO27: 0
A28: ='Kalkulation Herstellungskosten'!B66 -> Primärtontechnik | E28: 0 | G28: 0 | I28: ='Kalkulation Herstellungskosten'!G66/((1+1/6)*1.1041) -> 0 | J28: 0 | K28: 0 | L28: 0 | M28: =IF(AND('Kalkulation Herstellungskosten'!C66=0,'Kalkulation Herstellungskosten'!C67=0),0,IF(I28/('Kalkulation Herstellungskosten'!C66+'Kalkulation Herstellungskosten'!C67)>SVGrund_lfd_wö,('Kalkulation Herstellungskosten'!C66+'Kalkulation Herstellungskosten'!C67)*Höchst_Woche,I28*SV_lfd)) -> 0 | N28: 0 | O28: =IF(I28*10.41%>(0.5833*('Kalkulation Herstellungskosten'!C67+'Kalkulation Herstellungskosten'!C66)*SVGrund_lfd_tä),(0.5833*('Kalkulation Herstellungskosten'!C67+'Kalkulation Herstellungskosten'!C66)*Höchst_Tag),I28*10.41%*SV_lfd) -> 0 | P28: 0 | Q28: 0 | R28: 0 | S28: 0 | T28: 0 | U28: =('Kalkulation Herstellungskosten'!C66+'Kalkulation Herstellungskosten'!C67)*U_Bahn -> 0 | V28: 0 | W28: 0 | AB28: 0 | AE28: 0 | AO28: 0
A29: ='Kalkulation Herstellungskosten'!B68 -> Schnitt | E29: 0 | G29: 0 | I29: ='Kalkulation Herstellungskosten'!G68/((1+1/6)*1.1041) -> 0 | J29: 0 | K29: 0 | L29: 0 | M29: =IF(AND('Kalkulation Herstellungskosten'!C68=0,'Kalkulation Herstellungskosten'!C69=0),0,IF(I29/('Kalkulation Herstellungskosten'!C68+'Kalkulation Herstellungskosten'!C69)>SVGrund_lfd_wö,('Kalkulation Herstellungskosten'!C68+'Kalkulation Herstellungskosten'!C69)*Höchst_Woche,I29*SV_lfd)) -> 0 | N29: 0 | O29: =IF(I29*10.41%>(0.5833*('Kalkulation Herstellungskosten'!C69+'Kalkulation Herstellungskosten'!C68)*SVGrund_lfd_tä),(0.5833*('Kalkulation Herstellungskosten'!C69+'Kalkulation Herstellungskosten'!C68)*Höchst_Tag),I29*10.41%*SV_lfd) -> 0 | P29: 0 | Q29: 0 | R29: 0 | S29: 0 | T29: 0 | U29: =('Kalkulation Herstellungskosten'!C68+'Kalkulation Herstellungskosten'!C69)*U_Bahn -> 0 | V29: 0 | W29: 0 | AB29: 0 | AE29: 0 | AO29: 0
A30: ='Kalkulation Herstellungskosten'!B70 -> Schnittassistenz | E30: 0 | G30: 0 | I30: ='Kalkulation Herstellungskosten'!G70/((1+1/6)*1.1041) -> 0 | J30: 0 | K30: 0 | L30: 0 | M30: =IF(AND('Kalkulation Herstellungskosten'!C70=0,'Kalkulation Herstellungskosten'!C71=0),0,IF(I30/('Kalkulation Herstellungskosten'!C70+'Kalkulation Herstellungskosten'!C71)>SVGrund_lfd_wö,('Kalkulation Herstellungskosten'!C70+'Kalkulation Herstellungskosten'!C71)*Höchst_Woche,I30*SV_lfd)) -> 0 | N30: 0 | O30: =IF(I30*10.41%>(0.5833*('Kalkulation Herstellungskosten'!C71+'Kalkulation Herstellungskosten'!C70)*SVGrund_lfd_tä),(0.5833*('Kalkulation Herstellungskosten'!C71+'Kalkulation Herstellungskosten'!C70)*Höchst_Tag),I30*10.41%*SV_lfd) -> 0 | P30: 0 | Q30: 0 | R30: 0 | S30: 0 | T30: 0 | U30: =('Kalkulation Herstellungskosten'!C70+'Kalkulation Herstellungskosten'!C71)*U_Bahn -> 0 | V30: 0 | W30: 0 | AB30: 0 | AE30: 0 | AO30: 0
A31: ='Kalkulation Herstellungskosten'!B72 -> Sound Design | E31: 0 | G31: 0 | I31: ='Kalkulation Herstellungskosten'!G72/((1+1/6)*1.1041) -> 0 | J31: =I31/6 -> 0 | K31: =(I31+J31)*10.41% -> 0 | L31: =SUM(I31:K31) -> 0 | M31: =IF(AND('Kalkulation Herstellungskosten'!C72=0,'Kalkulation Herstellungskosten'!C73=0),0,IF(I31/('Kalkulation Herstellungskosten'!C72+'Kalkulation Herstellungskosten'!C73)>SVGrund_lfd_wö,('Kalkulation Herstellungskosten'!C72+'Kalkulation Herstellungskosten'!C73)*Höchst_Woche,I31*SV_lfd)) -> 0 | N31: =IF(J31>SVGrund_SZ, Höchst_Mo_SZ,J31*SV_SZ) -> 0 | O31: =IF(I31*10.41%>(0.5833*('Kalkulation Herstellungskosten'!C73+'Kalkulation Herstellungskosten'!C72)*SVGrund_lfd_tä),(0.5833*('Kalkulation Herstellungskosten'!C73+'Kalkulation Herstellungskosten'!C72)*Höchst_Tag),I31*10.41%*SV_lfd) -> 0 | P31: =IF(J31>SVGrund_SZ,0,IF(J31*10.41%>(SVGrund_SZ-J31),(SVGrund_SZ-J31)*SV_SZ,J31*10.41%*SV_SZ)) -> 0 | Q31: =L31*MV -> 0 | R31: =L31*DB -> 0 | S31: =L31*DZ -> 0 | T31: =L31*KommSt -> 0 | U31: =('Kalkulation Herstellungskosten'!C72+'Kalkulation Herstellungskosten'!C73)*U_Bahn -> 0 | V31: =SUM(M31:U31) -> 0 | W31: =SUM(L31,V31) -> 0 | AB31: 0 | AE31: 0 | AO31: 0
A32: ='Kalkulation Herstellungskosten'!B74 -> Tonschnitt | I32: ='Kalkulation Herstellungskosten'!G74/((1+1/6)*1.1041) -> 0 | J32: =I32/6 -> 0 | K32: =(I32+J32)*10.41% -> 0 | L32: =SUM(I32:K32) -> 0 | M32: =IF(AND('Kalkulation Herstellungskosten'!C74=0,'Kalkulation Herstellungskosten'!C75=0),0,IF(I32/('Kalkulation Herstellungskosten'!C74+'Kalkulation Herstellungskosten'!C75)>SVGrund_lfd_wö,('Kalkulation Herstellungskosten'!C74+'Kalkulation Herstellungskosten'!C75)*Höchst_Woche,I32*SV_lfd)) -> 0 | N32: =IF(J32>SVGrund_SZ, Höchst_Mo_SZ,J32*SV_SZ) -> 0 | O32: =IF(I32*10.41%>(0.5833*('Kalkulation Herstellungskosten'!C75+'Kalkulation Herstellungskosten'!C74)*SVGrund_lfd_tä),(0.5833*('Kalkulation Herstellungskosten'!C75+'Kalkulation Herstellungskosten'!C74)*Höchst_Tag),I32*10.41%*SV_lfd) -> 0 | P32: =IF(J32>SVGrund_SZ,0,IF(J32*10.41%>(SVGrund_SZ-J32),(SVGrund_SZ-J32)*SV_SZ,J32*10.41%*SV_SZ)) -> 0 | Q32: =L32*MV -> 0 | R32: =L32*DB -> 0 | S32: =L32*DZ -> 0 | T32: =L32*KommSt -> 0 | U32: =('Kalkulation Herstellungskosten'!C74+'Kalkulation Herstellungskosten'!C75)*U_Bahn -> 0 | V32: =SUM(M32:U32) -> 0 | W32: =SUM(L32,V32) -> 0
A33: ='Kalkulation Herstellungskosten'!B76 -> Kostümbild | E33: 0 | G33: 0 | I33: ='Kalkulation Herstellungskosten'!G76/((1+1/6)*1.1041) -> 0 | J33: 0 | K33: 0 | L33: 0 | M33: =IF(AND('Kalkulation Herstellungskosten'!C76=0,'Kalkulation Herstellungskosten'!C77=0),0,IF(I33/('Kalkulation Herstellungskosten'!C76+'Kalkulation Herstellungskosten'!C77)>SVGrund_lfd_wö,('Kalkulation Herstellungskosten'!C76+'Kalkulation Herstellungskosten'!C77)*Höchst_Woche,I33*SV_lfd)) -> 0 | N33: 0 | O33: =IF(I33*10.41%>(0.5833*('Kalkulation Herstellungskosten'!C77+'Kalkulation Herstellungskosten'!C76)*SVGrund_lfd_tä),(0.5833*('Kalkulation Herstellungskosten'!C77+'Kalkulation Herstellungskosten'!C76)*Höchst_Tag),I33*10.41%*SV_lfd) -> 0 | P33: 0 | Q33: 0 | R33: 0 | S33: 0 | T33: 0 | U33: =('Kalkulation Herstellungskosten'!C76+'Kalkulation Herstellungskosten'!C77)*U_Bahn -> 0 | V33: 0 | W33: 0 | AB33: 0 | AE33: 0 | AO33: 0
A34: ='Kalkulation Herstellungskosten'!B78 -> Kostümbildassistenz | E34: 0 | G34: 0 | I34: ='Kalkulation Herstellungskosten'!G78/((1+1/6)*1.1041) -> 0 | J34: 0 | K34: 0 | L34: 0 | M34: =IF(AND('Kalkulation Herstellungskosten'!C78=0,'Kalkulation Herstellungskosten'!C79=0),0,IF(I34/('Kalkulation Herstellungskosten'!C78+'Kalkulation Herstellungskosten'!C79)>SVGrund_lfd_wö,('Kalkulation Herstellungskosten'!C78+'Kalkulation Herstellungskosten'!C79)*Höchst_Woche,I34*SV_lfd)) -> 0 | N34: 0 | O34: =IF(I34*10.41%>(0.5833*('Kalkulation Herstellungskosten'!C79+'Kalkulation Herstellungskosten'!C78)*SVGrund_lfd_tä),(0.5833*('Kalkulation Herstellungskosten'!C79+'Kalkulation Herstellungskosten'!C78)*Höchst_Tag),I34*10.41%*SV_lfd) -> 0 | P34: 0 | Q34: 0 | R34: 0 | S34: 0 | T34: 0 | U34: =('Kalkulation Herstellungskosten'!C78+'Kalkulation Herstellungskosten'!C79)*U_Bahn -> 0 | V34: 0 | W34: 0 | AB34: 0 | AE34: 0 | AO34: 0
A35: ='Kalkulation Herstellungskosten'!B80 -> Garderobe | E35: 0 | G35: 0 | I35: ='Kalkulation Herstellungskosten'!G80/((1+1/6)*1.1041) -> 0 | J35: 0 | K35: 0 | L35: 0 | M35: =IF(AND('Kalkulation Herstellungskosten'!C80=0,'Kalkulation Herstellungskosten'!C81=0),0,IF(I35/('Kalkulation Herstellungskosten'!C80+'Kalkulation Herstellungskosten'!C81)>SVGrund_lfd_wö,('Kalkulation Herstellungskosten'!C80+'Kalkulation Herstellungskosten'!C81)*Höchst_Woche,I35*SV_lfd)) -> 0 | N35: 0 | O35: =IF(I35*10.41%>(0.5833*('Kalkulation Herstellungskosten'!C81+'Kalkulation Herstellungskosten'!C80)*SVGrund_lfd_tä),(0.5833*('Kalkulation Herstellungskosten'!C81+'Kalkulation Herstellungskosten'!C80)*Höchst_Tag),I35*10.41%*SV_lfd) -> 0 | P35: 0 | Q35: 0 | R35: 0 | S35: 0 | T35: 0 | U35: =('Kalkulation Herstellungskosten'!C80+'Kalkulation Herstellungskosten'!C81)*U_Bahn -> 0 | V35: 0 | W35: 0 | AB35: 0 | AE35: 0 | AO35: 0
A36: ='Kalkulation Herstellungskosten'!B82 -> Garderobe | E36: 0 | G36: 0 | I36: ='Kalkulation Herstellungskosten'!G82/((1+1/6)*1.1041) -> 0 | J36: 0 | K36: 0 | L36: 0 | M36: =IF(AND('Kalkulation Herstellungskosten'!C82=0,'Kalkulation Herstellungskosten'!C83=0),0,IF(I36/('Kalkulation Herstellungskosten'!C82+'Kalkulation Herstellungskosten'!C83)>SVGrund_lfd_wö,('Kalkulation Herstellungskosten'!C82+'Kalkulation Herstellungskosten'!C83)*Höchst_Woche,I36*SV_lfd)) -> 0 | N36: 0 | O36: =IF(I36*10.41%>(0.5833*('Kalkulation Herstellungskosten'!C83+'Kalkulation Herstellungskosten'!C82)*SVGrund_lfd_tä),(0.5833*('Kalkulation Herstellungskosten'!C83+'Kalkulation Herstellungskosten'!C82)*Höchst_Tag),I36*10.41%*SV_lfd) -> 0 | P36: 0 | Q36: 0 | R36: 0 | S36: 0 | T36: 0 | U36: =('Kalkulation Herstellungskosten'!C82+'Kalkulation Herstellungskosten'!C83)*U_Bahn -> 0 | V36: 0 | W36: 0 | AB36: 0 | AE36: 0 | AO36: 0
A37: ='Kalkulation Herstellungskosten'!B84 -> Garderobenhilfe | E37: 0 | G37: 0 | I37: ='Kalkulation Herstellungskosten'!G84/((1+1/6)*1.1041) -> 0 | J37: 0 | K37: 0 | L37: 0 | M37: =IF(AND('Kalkulation Herstellungskosten'!C84=0,'Kalkulation Herstellungskosten'!C85=0),0,IF(I37/('Kalkulation Herstellungskosten'!C84+'Kalkulation Herstellungskosten'!C85)>SVGrund_lfd_wö,('Kalkulation Herstellungskosten'!C84+'Kalkulation Herstellungskosten'!C85)*Höchst_Woche,I37*SV_lfd)) -> 0 | N37: 0 | O37: =IF(I37*10.41%>(0.5833*('Kalkulation Herstellungskosten'!C85+'Kalkulation Herstellungskosten'!C84)*SVGrund_lfd_tä),(0.5833*('Kalkulation Herstellungskosten'!C85+'Kalkulation Herstellungskosten'!C84)*Höchst_Tag),I37*10.41%*SV_lfd) -> 0 | P37: 0 | Q37: 0 | R37: 0 | S37: 0 | T37: 0 | U37: =('Kalkulation Herstellungskosten'!C84+'Kalkulation Herstellungskosten'!C85)*U_Bahn -> 0 | V37: 0 | W37: 0 | AB37: 0 | AE37: 0 | AO37: 0
A38: ='Kalkulation Herstellungskosten'!B86 -> Außenrequisite | E38: 0 | G38: 0 | I38: ='Kalkulation Herstellungskosten'!G86/((1+1/6)*1.1041) -> 0 | J38: 0 | K38: 0 | L38: 0 | M38: =IF(AND('Kalkulation Herstellungskosten'!C86=0,'Kalkulation Herstellungskosten'!C87=0),0,IF(I38/('Kalkulation Herstellungskosten'!C86+'Kalkulation Herstellungskosten'!C87)>SVGrund_lfd_wö,('Kalkulation Herstellungskosten'!C86+'Kalkulation Herstellungskosten'!C87)*Höchst_Woche,I38*SV_lfd)) -> 0 | N38: 0 | O38: =IF(I38*10.41%>(0.5833*('Kalkulation Herstellungskosten'!C87+'Kalkulation Herstellungskosten'!C86)*SVGrund_lfd_tä),(0.5833*('Kalkulation Herstellungskosten'!C87+'Kalkulation Herstellungskosten'!C86)*Höchst_Tag),I38*10.41%*SV_lfd) -> 0 | P38: 0 | Q38: 0 | R38: 0 | S38: 0 | T38: 0 | U38: =('Kalkulation Herstellungskosten'!C86+'Kalkulation Herstellungskosten'!C87)*U_Bahn -> 0 | V38: 0 | W38: 0 | AB38: 0 | AE38: 0 | AO38: 0
A39: ='Kalkulation Herstellungskosten'!B88 -> Innenrequisite | E39: 0 | G39: 0 | I39: ='Kalkulation Herstellungskosten'!G88/((1+1/6)*1.1041) -> 0 | J39: 0 | K39: 0 | L39: 0 | M39: =IF(AND('Kalkulation Herstellungskosten'!C88=0,'Kalkulation Herstellungskosten'!C89=0),0,IF(I39/('Kalkulation Herstellungskosten'!C88+'Kalkulation Herstellungskosten'!C89)>SVGrund_lfd_wö,('Kalkulation Herstellungskosten'!C88+'Kalkulation Herstellungskosten'!C89)*Höchst_Woche,I39*SV_lfd)) -> 0 | N39: 0 | O39: =IF(I39*10.41%>(0.5833*('Kalkulation Herstellungskosten'!C89+'Kalkulation Herstellungskosten'!C88)*SVGrund_lfd_tä),(0.5833*('Kalkulation Herstellungskosten'!C89+'Kalkulation Herstellungskosten'!C88)*Höchst_Tag),I39*10.41%*SV_lfd) -> 0 | P39: 0 | Q39: 0 | R39: 0 | S39: 0 | T39: 0 | U39: =('Kalkulation Herstellungskosten'!C88+'Kalkulation Herstellungskosten'!C89)*U_Bahn -> 0 | V39: 0 | W39: 0 | AB39: 0 | AE39: 0 | AO39: 0
A40: ='Kalkulation Herstellungskosten'!B90 -> Requisitenhilfe | E40: 0 | G40: 0 | I40: ='Kalkulation Herstellungskosten'!G90/((1+1/6)*1.1041) -> 0 | J40: 0 | K40: 0 | L40: 0 | M40: =IF(AND('Kalkulation Herstellungskosten'!C90=0,'Kalkulation Herstellungskosten'!C91=0),0,IF(I40/('Kalkulation Herstellungskosten'!C90+'Kalkulation Herstellungskosten'!C91)>SVGrund_lfd_wö,('Kalkulation Herstellungskosten'!C90+'Kalkulation Herstellungskosten'!C91)*Höchst_Woche,I40*SV_lfd)) -> 0 | N40: 0 | O40: =IF(I40*10.41%>(0.5833*('Kalkulation Herstellungskosten'!C91+'Kalkulation Herstellungskosten'!C90)*SVGrund_lfd_tä),(0.5833*('Kalkulation Herstellungskosten'!C91+'Kalkulation Herstellungskosten'!C90)*Höchst_Tag),I40*10.41%*SV_lfd) -> 0 | P40: 0 | Q40: 0 | R40: 0 | S40: 0 | T40: 0 | U40: =('Kalkulation Herstellungskosten'!C90+'Kalkulation Herstellungskosten'!C91)*U_Bahn -> 0 | V40: 0 | W40: 0 | AB40: 0 | AE40: 0 | AO40: 0
A41: ='Kalkulation Herstellungskosten'!B92 -> Szenenbild (Filmarchitektur) | I41: ='Kalkulation Herstellungskosten'!G92/((1+1/6)*1.1041) -> 0 | J41: =I41/6 -> 0 | K41: =(I41+J41)*10.41% -> 0 | L41: =SUM(I41:K41) -> 0 | M41: =IF(AND('Kalkulation Herstellungskosten'!C92=0,'Kalkulation Herstellungskosten'!C93=0),0,IF(I41/('Kalkulation Herstellungskosten'!C92+'Kalkulation Herstellungskosten'!C93)>SVGrund_lfd_wö,('Kalkulation Herstellungskosten'!C92+'Kalkulation Herstellungskosten'!C93)*Höchst_Woche,I41*SV_lfd)) -> 0 | N41: =IF(J41>SVGrund_SZ, Höchst_Mo_SZ,J41*SV_SZ) -> 0 | O41: =IF(I41*10.41%>(0.5833*('Kalkulation Herstellungskosten'!C93+'Kalkulation Herstellungskosten'!C92)*SVGrund_lfd_tä),(0.5833*('Kalkulation Herstellungskosten'!C93+'Kalkulation Herstellungskosten'!C92)*Höchst_Tag),I41*10.41%*SV_lfd) -> 0 | P41: =IF(J41>SVGrund_SZ,0,IF(J41*10.41%>(SVGrund_SZ-J41),(SVGrund_SZ-J41)*SV_SZ,J41*10.41%*SV_SZ)) -> 0 | Q41: =L41*MV -> 0 | R41: =L41*DB -> 0 | S41: =L41*DZ -> 0 | T41: =L41*KommSt -> 0 | U41: =('Kalkulation Herstellungskosten'!C92+'Kalkulation Herstellungskosten'!C93)*U_Bahn -> 0 | V41: =SUM(M41:U41) -> 0 | W41: =SUM(L41,V41) -> 0
A42: ='Kalkulation Herstellungskosten'!B94 -> Szenenbildassistenz | E42: 0 | G42: 0 | I42: ='Kalkulation Herstellungskosten'!G94/((1+1/6)*1.1041) -> 0 | J42: =I42/6 -> 0 | K42: =(I42+J42)*10.41% -> 0 | L42: =SUM(I42:K42) -> 0 | M42: =IF(AND('Kalkulation Herstellungskosten'!C94=0,'Kalkulation Herstellungskosten'!C95=0),0,IF(I42/('Kalkulation Herstellungskosten'!C94+'Kalkulation Herstellungskosten'!C95)>SVGrund_lfd_wö,('Kalkulation Herstellungskosten'!C94+'Kalkulation Herstellungskosten'!C95)*Höchst_Woche,I42*SV_lfd)) -> 0 | N42: 0 | O42: =IF(I42*10.41%>(0.5833*('Kalkulation Herstellungskosten'!C95+'Kalkulation Herstellungskosten'!C94)*SVGrund_lfd_tä),(0.5833*('Kalkulation Herstellungskosten'!C95+'Kalkulation Herstellungskosten'!C94)*Höchst_Tag),I42*10.41%*SV_lfd) -> 0 | P42: 0 | Q42: 0 | R42: 0 | S42: 0 | T42: 0 | U42: =('Kalkulation Herstellungskosten'!C94+'Kalkulation Herstellungskosten'!C95)*U_Bahn -> 0 | V42: 0 | W42: 0 | AB42: 0 | AE42: 0 | AO42: 0
A43: ='Kalkulation Herstellungskosten'!B96 -> Maskenbild | E43: 0 | G43: 0 | I43: ='Kalkulation Herstellungskosten'!G96/((1+1/6)*1.1041) -> 0 | J43: 0 | K43: 0 | L43: 0 | M43: =IF(AND('Kalkulation Herstellungskosten'!C96=0,'Kalkulation Herstellungskosten'!C97=0),0,IF(I43/('Kalkulation Herstellungskosten'!C96+'Kalkulation Herstellungskosten'!C97)>SVGrund_lfd_wö,('Kalkulation Herstellungskosten'!C96+'Kalkulation Herstellungskosten'!C97)*Höchst_Woche,I43*SV_lfd)) -> 0 | N43: 0 | O43: =IF(I43*10.41%>(0.5833*('Kalkulation Herstellungskosten'!C97+'Kalkulation Herstellungskosten'!C96)*SVGrund_lfd_tä),(0.5833*('Kalkulation Herstellungskosten'!C97+'Kalkulation Herstellungskosten'!C96)*Höchst_Tag),I43*10.41%*SV_lfd) -> 0 | P43: 0 | Q43: =L43*MV -> 0 | R43: =L43*DB -> 0 | S43: =L43*DZ -> 0 | T43: =L43*KommSt -> 0 | U43: =('Kalkulation Herstellungskosten'!C96+'Kalkulation Herstellungskosten'!C97)*U_Bahn -> 0 | V43: 0 | W43: 0 | AB43: 0 | AE43: 0 | AO43: 0
A44: ='Kalkulation Herstellungskosten'!B98 -> Maskenbild | E44: 0 | G44: 0 | I44: ='Kalkulation Herstellungskosten'!G98/((1+1/6)*1.1041) -> 0 | J44: 0 | K44: 0 | L44: 0 | M44: =IF(AND('Kalkulation Herstellungskosten'!C98=0,'Kalkulation Herstellungskosten'!C99=0),0,IF(I44/('Kalkulation Herstellungskosten'!C98+'Kalkulation Herstellungskosten'!C99)>SVGrund_lfd_wö,('Kalkulation Herstellungskosten'!C98+'Kalkulation Herstellungskosten'!C99)*Höchst_Woche,I44*SV_lfd)) -> 0 | N44: 0 | O44: =IF(I44*10.41%>(0.5833*('Kalkulation Herstellungskosten'!C99+'Kalkulation Herstellungskosten'!C98)*SVGrund_lfd_tä),(0.5833*('Kalkulation Herstellungskosten'!C99+'Kalkulation Herstellungskosten'!C98)*Höchst_Tag),I44*10.41%*SV_lfd) -> 0 | P44: 0 | Q44: 0 | R44: 0 | S44: 0 | T44: 0 | U44: =('Kalkulation Herstellungskosten'!C98+'Kalkulation Herstellungskosten'!C99)*U_Bahn -> 0 | V44: 0 | W44: 0 | AB44: 0 | AE44: 0 | AO44: 0
A45: ='Kalkulation Herstellungskosten'!B100 -> Maskenbildhilfe | E45: 0 | G45: 0 | I45: ='Kalkulation Herstellungskosten'!G100/((1+1/6)*1.1041) -> 0 | J45: 0 | K45: 0 | L45: 0 | M45: =IF(AND('Kalkulation Herstellungskosten'!C100=0,'Kalkulation Herstellungskosten'!C101=0),0,IF(I45/('Kalkulation Herstellungskosten'!C100+'Kalkulation Herstellungskosten'!C101)>SVGrund_lfd_wö,('Kalkulation Herstellungskosten'!C100+'Kalkulation Herstellungskosten'!C101)*Höchst_Woche,I45*SV_lfd)) -> 0 | N45: 0 | O45: =IF(I45*10.41%>(0.5833*('Kalkulation Herstellungskosten'!C101+'Kalkulation Herstellungskosten'!C100)*SVGrund_lfd_tä),(0.5833*('Kalkulation Herstellungskosten'!C101+'Kalkulation Herstellungskosten'!C100)*Höchst_Tag),I45*10.41%*SV_lfd) -> 0 | P45: 0 | Q45: 0 | R45: 0 | S45: 0 | T45: 0 | U45: =('Kalkulation Herstellungskosten'!C100+'Kalkulation Herstellungskosten'!C101)*U_Bahn -> 0 | V45: 0 | W45: 0 | AB45: 0 | AE45: 0 | AO45: 0
A46: ='Kalkulation Herstellungskosten'!B102 -> Frisur | E46: 0 | G46: 0 | I46: ='Kalkulation Herstellungskosten'!G102/((1+1/6)*1.1041) -> 0 | J46: 0 | K46: 0 | L46: 0 | M46: =IF(AND('Kalkulation Herstellungskosten'!C102=0,'Kalkulation Herstellungskosten'!C103=0),0,IF(I46/('Kalkulation Herstellungskosten'!C102+'Kalkulation Herstellungskosten'!C103)>SVGrund_lfd_wö,('Kalkulation Herstellungskosten'!C102+'Kalkulation Herstellungskosten'!C103)*Höchst_Woche,I46*SV_lfd)) -> 0 | N46: 0 | O46: =IF(I46*10.41%>(0.5833*('Kalkulation Herstellungskosten'!C103+'Kalkulation Herstellungskosten'!C102)*SVGrund_lfd_tä),(0.5833*('Kalkulation Herstellungskosten'!C103+'Kalkulation Herstellungskosten'!C102)*Höchst_Tag),I46*10.41%*SV_lfd) -> 0 | P46: 0 | Q46: 0 | R46: 0 | S46: 0 | T46: 0 | U46: =('Kalkulation Herstellungskosten'!C102+'Kalkulation Herstellungskosten'!C103)*U_Bahn -> 0 | V46: 0 | W46: 0 | AB46: 0 | AE46: 0 | AO46: 0
A47: ='Kalkulation Herstellungskosten'!B104 -> Produktionsfahrer 1 | E47: 0 | G47: 0 | I47: ='Kalkulation Herstellungskosten'!G104/((1+1/6)*1.1041) -> 0 | J47: =I47/6 -> 0 | K47: =(I47+J47)*10.41% -> 0 | L47: =SUM(I47:K47) -> 0 | M47: =IF(AND('Kalkulation Herstellungskosten'!C104=0,'Kalkulation Herstellungskosten'!C105=0),0,IF(I47/('Kalkulation Herstellungskosten'!C104+'Kalkulation Herstellungskosten'!C105)>SVGrund_lfd_wö,('Kalkulation Herstellungskosten'!C104+'Kalkulation Herstellungskosten'!C105)*Höchst_Woche,I47*SV_lfd)) -> 0 | N47: =IF(J47>SVGrund_SZ, Höchst_Mo_SZ,J47*SV_SZ) -> 0 | O47: =IF(I47*10.41%>(0.5833*('Kalkulation Herstellungskosten'!C105+'Kalkulation Herstellungskosten'!C104)*SVGrund_lfd_tä),(0.5833*('Kalkulation Herstellungskosten'!C105+'Kalkulation Herstellungskosten'!C104)*Höchst_Tag),I47*10.41%*SV_lfd) -> 0 | P47: =IF(J47>SVGrund_SZ,0,IF(J47*10.41%>(SVGrund_SZ-J47),(SVGrund_SZ-J47)*SV_SZ,J47*10.41%*SV_SZ)) -> 0 | Q47: =L47*MV -> 0 | R47: =L47*DB -> 0 | S47: =L47*DZ -> 0 | T47: =L47*KommSt -> 0 | U47: =('Kalkulation Herstellungskosten'!C104+'Kalkulation Herstellungskosten'!C105)*U_Bahn -> 0 | V47: =SUM(M47:U47) -> 0 | W47: =SUM(L47,V47) -> 0 | AB47: 0 | AE47: 0 | AO47: 0
A48: ='Kalkulation Herstellungskosten'!B106 -> Produktionsfahrer 2 | E48: =IF(C48=0,0,(D48-C48+1)/7) -> 0 | G48: =E48*F48 -> 0 | I48: ='Kalkulation Herstellungskosten'!G106/((1+1/6)*1.1041) -> 0 | J48: =I48/6 -> 0 | K48: =(I48+J48)*10.41% -> 0 | L48: =SUM(I48:K48) -> 0 | M48: =IF(AND('Kalkulation Herstellungskosten'!C106=0,'Kalkulation Herstellungskosten'!C107=0),0,IF(I48/('Kalkulation Herstellungskosten'!C106+'Kalkulation Herstellungskosten'!C107)>SVGrund_lfd_wö,('Kalkulation Herstellungskosten'!C106+'Kalkulation Herstellungskosten'!C107)*Höchst_Woche,I48*SV_lfd)) -> 0 | N48: =IF(J48>SVGrund_SZ, Höchst_Mo_SZ,J48*SV_SZ) -> 0 | O48: =IF(I48*10.41%>(0.5833*('Kalkulation Herstellungskosten'!C107+'Kalkulation Herstellungskosten'!C106)*SVGrund_lfd_tä),(0.5833*('Kalkulation Herstellungskosten'!C107+'Kalkulation Herstellungskosten'!C106)*Höchst_Tag),I48*10.41%*SV_lfd) -> 0 | P48: =IF(J48>SVGrund_SZ,0,IF(J48*10.41%>(SVGrund_SZ-J48),(SVGrund_SZ-J48)*SV_SZ,J48*10.41%*SV_SZ)) -> 0 | Q48: =L48*MV -> 0 | R48: =L48*DB -> 0 | S48: =L48*DZ -> 0 | T48: =L48*KommSt -> 0 | U48: =('Kalkulation Herstellungskosten'!C106+'Kalkulation Herstellungskosten'!C107)*U_Bahn -> 0 | V48: =SUM(M48:U48) -> 0 | W48: =SUM(L48,V48) -> 0 | AB48: 0 | AE48: 0 | AO48: 0
A49: ='Kalkulation Herstellungskosten'!B108 -> Produktionsfahrer 3 | E49: =IF(C49=0,0,(D49-C49+1)/7) -> 0 | G49: =E49*F49 -> 0 | I49: ='Kalkulation Herstellungskosten'!G108/((1+1/6)*1.1041) -> 0 | J49: =I49/6 -> 0 | K49: =(I49+J49)*10.41% -> 0 | L49: =SUM(I49:K49) -> 0 | M49: =IF(AND('Kalkulation Herstellungskosten'!C108=0,'Kalkulation Herstellungskosten'!C109=0),0,IF(I49/('Kalkulation Herstellungskosten'!C108+'Kalkulation Herstellungskosten'!C109)>SVGrund_lfd_wö,('Kalkulation Herstellungskosten'!C108+'Kalkulation Herstellungskosten'!C109)*Höchst_Woche,I49*SV_lfd)) -> 0 | N49: =IF(J49>SVGrund_SZ, Höchst_Mo_SZ,J49*SV_SZ) -> 0 | O49: =IF(I49*10.41%>(0.5833*('Kalkulation Herstellungskosten'!C109+'Kalkulation Herstellungskosten'!C108)*SVGrund_lfd_tä),(0.5833*('Kalkulation Herstellungskosten'!C109+'Kalkulation Herstellungskosten'!C108)*Höchst_Tag),I49*10.41%*SV_lfd) -> 0 | P49: =IF(J49>SVGrund_SZ,0,IF(J49*10.41%>(SVGrund_SZ-J49),(SVGrund_SZ-J49)*SV_SZ,J49*10.41%*SV_SZ)) -> 0 | Q49: =L49*MV -> 0 | R49: =L49*DB -> 0 | S49: =L49*DZ -> 0 | T49: =L49*KommSt -> 0 | U49: =('Kalkulation Herstellungskosten'!C108+'Kalkulation Herstellungskosten'!C109)*U_Bahn -> 0 | V49: =SUM(M49:U49) -> 0 | W49: =SUM(L49,V49) -> 0 | AB49: =Z49*AA49 -> 0 | AE49: =AC49*AD49 -> 0 | AO49: =AM49*AN49 -> 0
A50: ='Kalkulation Herstellungskosten'!B110 -> OberbeleuchterIn | E50: 0 | G50: 0 | I50: ='Kalkulation Herstellungskosten'!G110/((1+1/6)*1.1041) -> 0 | J50: 0 | K50: 0 | L50: 0 | M50: =IF(AND('Kalkulation Herstellungskosten'!C110=0,'Kalkulation Herstellungskosten'!C111=0),0,IF(I50/('Kalkulation Herstellungskosten'!C110+'Kalkulation Herstellungskosten'!C111)>SVGrund_lfd_wö,('Kalkulation Herstellungskosten'!C110+'Kalkulation Herstellungskosten'!C111)*Höchst_Woche,I50*SV_lfd)) -> 0 | N50: 0 | O50: =IF(I50*10.41%>(0.5833*('Kalkulation Herstellungskosten'!C111+'Kalkulation Herstellungskosten'!C110)*SVGrund_lfd_tä),(0.5833*('Kalkulation Herstellungskosten'!C111+'Kalkulation Herstellungskosten'!C110)*Höchst_Tag),I50*10.41%*SV_lfd) -> 0 | P50: =IF(J50>SVGrund_SZ,0,IF(J50*10.41%>(SVGrund_SZ-J50),(SVGrund_SZ-J50)*SV_SZ,J50*10.41%*SV_SZ)) -> 0 | Q50: 0 | R50: 0 | S50: 0 | T50: 0 | U50: =('Kalkulation Herstellungskosten'!C110+'Kalkulation Herstellungskosten'!C111)*U_Bahn -> 0 | V50: 0 | W50: =SUM(L50,V50) -> 0 | AB50: 0 | AE50: 0 | AO50: 0
A51: ='Kalkulation Herstellungskosten'!B112 -> BeleuchterIn 1 | E51: 0 | G51: 0 | I51: ='Kalkulation Herstellungskosten'!G112/((1+1/6)*1.1041) -> 0 | J51: 0 | K51: 0 | L51: 0 | M51: =IF(AND('Kalkulation Herstellungskosten'!C112=0,'Kalkulation Herstellungskosten'!C113=0),0,IF(I51/('Kalkulation Herstellungskosten'!C112+'Kalkulation Herstellungskosten'!C113)>SVGrund_lfd_wö,('Kalkulation Herstellungskosten'!C112+'Kalkulation Herstellungskosten'!C113)*Höchst_Woche,I51*SV_lfd)) -> 0 | N51: 0 | O51: =IF(I51*10.41%>(0.5833*('Kalkulation Herstellungskosten'!C113+'Kalkulation Herstellungskosten'!C112)*SVGrund_lfd_tä),(0.5833*('Kalkulation Herstellungskosten'!C113+'Kalkulation Herstellungskosten'!C112)*Höchst_Tag),I51*10.41%*SV_lfd) -> 0 | P51: 0 | Q51: 0 | R51: 0 | S51: 0 | T51: 0 | U51: =('Kalkulation Herstellungskosten'!C112+'Kalkulation Herstellungskosten'!C113)*U_Bahn -> 0 | V51: 0 | W51: 0 | AB51: 0 | AE51: 0 | AO51: 0
A52: ='Kalkulation Herstellungskosten'!B114 -> BeleuchterIn 2 | E52: 0 | G52: 0 | I52: ='Kalkulation Herstellungskosten'!G114/((1+1/6)*1.1041) -> 0 | J52: 0 | K52: 0 | L52: 0 | M52: =IF(AND('Kalkulation Herstellungskosten'!C114=0,'Kalkulation Herstellungskosten'!C115=0),0,IF(I52/('Kalkulation Herstellungskosten'!C114+'Kalkulation Herstellungskosten'!C115)>SVGrund_lfd_wö,('Kalkulation Herstellungskosten'!C114+'Kalkulation Herstellungskosten'!C115)*Höchst_Woche,I52*SV_lfd)) -> 0 | N52: 0 | O52: =IF(I52*10.41%>(0.5833*('Kalkulation Herstellungskosten'!C115+'Kalkulation Herstellungskosten'!C114)*SVGrund_lfd_tä),(0.5833*('Kalkulation Herstellungskosten'!C115+'Kalkulation Herstellungskosten'!C114)*Höchst_Tag),I52*10.41%*SV_lfd) -> 0 | P52: 0 | Q52: 0 | R52: 0 | S52: 0 | T52: 0 | U52: =('Kalkulation Herstellungskosten'!C114+'Kalkulation Herstellungskosten'!C115)*U_Bahn -> 0 | V52: 0 | W52: 0 | AB52: 0 | AE52: 0 | AO52: 0
A53: ='Kalkulation Herstellungskosten'!B116 -> BeleuchterIn 3 | E53: 0 | G53: 0 | I53: ='Kalkulation Herstellungskosten'!G116/((1+1/6)*1.1041) -> 0 | J53: 0 | K53: 0 | L53: 0 | M53: =IF(AND('Kalkulation Herstellungskosten'!C116=0,'Kalkulation Herstellungskosten'!C117=0),0,IF(I53/('Kalkulation Herstellungskosten'!C116+'Kalkulation Herstellungskosten'!C117)>SVGrund_lfd_wö,('Kalkulation Herstellungskosten'!C116+'Kalkulation Herstellungskosten'!C117)*Höchst_Woche,I53*SV_lfd)) -> 0 | N53: 0 | O53: =IF(I53*10.41%>(0.5833*('Kalkulation Herstellungskosten'!C117+'Kalkulation Herstellungskosten'!C116)*SVGrund_lfd_tä),(0.5833*('Kalkulation Herstellungskosten'!C117+'Kalkulation Herstellungskosten'!C116)*Höchst_Tag),I53*10.41%*SV_lfd) -> 0 | P53: 0 | Q53: 0 | R53: 0 | S53: 0 | T53: 0 | U53: =('Kalkulation Herstellungskosten'!C116+'Kalkulation Herstellungskosten'!C117)*U_Bahn -> 0 | V53: 0 | W53: 0 | AB53: 0 | AE53: 0 | AO53: 0
A54: ='Kalkulation Herstellungskosten'!B118 -> BühnenmeisterIn | E54: 0 | G54: 0 | I54: ='Kalkulation Herstellungskosten'!G118/((1+1/6)*1.1041) -> 0 | J54: 0 | K54: 0 | L54: 0 | M54: =IF(AND('Kalkulation Herstellungskosten'!C118=0,'Kalkulation Herstellungskosten'!C119=0),0,IF(I54/('Kalkulation Herstellungskosten'!C118+'Kalkulation Herstellungskosten'!C119)>SVGrund_lfd_wö,('Kalkulation Herstellungskosten'!C118+'Kalkulation Herstellungskosten'!C119)*Höchst_Woche,I54*SV_lfd)) -> 0 | N54: 0 | O54: =IF(I54*10.41%>(0.5833*('Kalkulation Herstellungskosten'!C119+'Kalkulation Herstellungskosten'!C118)*SVGrund_lfd_tä),(0.5833*('Kalkulation Herstellungskosten'!C119+'Kalkulation Herstellungskosten'!C118)*Höchst_Tag),I54*10.41%*SV_lfd) -> 0 | P54: 0 | Q54: 0 | R54: 0 | S54: 0 | T54: 0 | U54: =('Kalkulation Herstellungskosten'!C118+'Kalkulation Herstellungskosten'!C119)*U_Bahn -> 0 | V54: 0 | W54: 0 | AB54: 0 | AE54: 0 | AO54: 0
A55: ='Kalkulation Herstellungskosten'!B120 -> Bühne 1 | E55: 0 | G55: 0 | I55: ='Kalkulation Herstellungskosten'!G120/((1+1/6)*1.1041) -> 0 | J55: 0 | K55: 0 | L55: 0 | M55: =IF(AND('Kalkulation Herstellungskosten'!C120=0,'Kalkulation Herstellungskosten'!C121=0),0,IF(I55/('Kalkulation Herstellungskosten'!C120+'Kalkulation Herstellungskosten'!C121)>SVGrund_lfd_wö,('Kalkulation Herstellungskosten'!C120+'Kalkulation Herstellungskosten'!C121)*Höchst_Woche,I55*SV_lfd)) -> 0 | N55: 0 | O55: =IF(I55*10.41%>(0.5833*('Kalkulation Herstellungskosten'!C121+'Kalkulation Herstellungskosten'!C120)*SVGrund_lfd_tä),(0.5833*('Kalkulation Herstellungskosten'!C121+'Kalkulation Herstellungskosten'!C120)*Höchst_Tag),I55*10.41%*SV_lfd) -> 0 | P55: 0 | Q55: 0 | R55: 0 | S55: 0 | T55: 0 | U55: =('Kalkulation Herstellungskosten'!C120+'Kalkulation Herstellungskosten'!C121)*U_Bahn -> 0 | V55: 0 | W55: 0 | AB55: 0 | AE55: 0 | AO55: 0
A56: ='Kalkulation Herstellungskosten'!B122 -> Bühne 2 | E56: 0 | G56: 0 | I56: ='Kalkulation Herstellungskosten'!G122/((1+1/6)*1.1041) -> 0 | J56: 0 | K56: 0 | L56: 0 | M56: =IF(AND('Kalkulation Herstellungskosten'!C122=0,'Kalkulation Herstellungskosten'!C123=0),0,IF(I56/('Kalkulation Herstellungskosten'!C122+'Kalkulation Herstellungskosten'!C123)>SVGrund_lfd_wö,('Kalkulation Herstellungskosten'!C122+'Kalkulation Herstellungskosten'!C123)*Höchst_Woche,I56*SV_lfd)) -> 0 | N56: 0 | O56: =IF(I56*10.41%>(0.5833*('Kalkulation Herstellungskosten'!C123+'Kalkulation Herstellungskosten'!C122)*SVGrund_lfd_tä),(0.5833*('Kalkulation Herstellungskosten'!C123+'Kalkulation Herstellungskosten'!C122)*Höchst_Tag),I56*10.41%*SV_lfd) -> 0 | P56: 0 | Q56: 0 | R56: 0 | S56: 0 | T56: 0 | U56: =('Kalkulation Herstellungskosten'!C122+'Kalkulation Herstellungskosten'!C123)*U_Bahn -> 0 | V56: 0 | W56: 0 | AB56: 0 | AE56: 0 | AO56: 0
A57: ='Kalkulation Herstellungskosten'!B124 -> Bühne 3 | E57: 0 | G57: 0 | I57: ='Kalkulation Herstellungskosten'!G124/((1+1/6)*1.1041) -> 0 | J57: 0 | K57: 0 | L57: 0 | M57: =IF(AND('Kalkulation Herstellungskosten'!C124=0,'Kalkulation Herstellungskosten'!C125=0),0,IF(I57/('Kalkulation Herstellungskosten'!C124+'Kalkulation Herstellungskosten'!C125)>SVGrund_lfd_wö,('Kalkulation Herstellungskosten'!C124+'Kalkulation Herstellungskosten'!C125)*Höchst_Woche,I57*SV_lfd)) -> 0 | N57: 0 | O57: =IF(I57*10.41%>(0.5833*('Kalkulation Herstellungskosten'!C125+'Kalkulation Herstellungskosten'!C124)*SVGrund_lfd_tä),(0.5833*('Kalkulation Herstellungskosten'!C125+'Kalkulation Herstellungskosten'!C124)*Höchst_Tag),I57*10.41%*SV_lfd) -> 0 | P57: 0 | Q57: 0 | R57: 0 | S57: 0 | T57: 0 | U57: =('Kalkulation Herstellungskosten'!C124+'Kalkulation Herstellungskosten'!C125)*U_Bahn -> 0 | V57: 0 | W57: 0 | AB57: 0 | AE57: 0 | AO57: 0
A58: ='Kalkulation Herstellungskosten'!B126 -> MusikaufnahmeleiterIn | E58: 0 | G58: 0 | I58: ='Kalkulation Herstellungskosten'!G126/((1+1/6)*1.1041) -> 0 | J58: 0 | K58: 0 | L58: 0 | M58: =IF(AND('Kalkulation Herstellungskosten'!C126=0,'Kalkulation Herstellungskosten'!C127=0),0,IF(I58/('Kalkulation Herstellungskosten'!C126+'Kalkulation Herstellungskosten'!C127)>SVGrund_lfd_wö,('Kalkulation Herstellungskosten'!C126+'Kalkulation Herstellungskosten'!C127)*Höchst_Woche,I58*SV_lfd)) -> 0 | N58: 0 | O58: =IF(I58*10.41%>(0.5833*('Kalkulation Herstellungskosten'!C127+'Kalkulation Herstellungskosten'!C126)*SVGrund_lfd_tä),(0.5833*('Kalkulation Herstellungskosten'!C127+'Kalkulation Herstellungskosten'!C126)*Höchst_Tag),I58*10.41%*SV_lfd) -> 0 | P58: 0 | Q58: 0 | R58: 0 | S58: 0 | T58: 0 | U58: =('Kalkulation Herstellungskosten'!C126+'Kalkulation Herstellungskosten'!C127)*U_Bahn -> 0 | V58: 0 | W58: 0 | AB58: 0 | AE58: 0 | AO58: 0
A59: ='Kalkulation Herstellungskosten'!B128 -> Synchronregie | E59: 0 | G59: 0 | I59: ='Kalkulation Herstellungskosten'!G128/((1+1/6)*1.1041) -> 0 | J59: 0 | K59: 0 | L59: 0 | M59: =IF(AND('Kalkulation Herstellungskosten'!C128=0,'Kalkulation Herstellungskosten'!C129=0),0,IF(I59/('Kalkulation Herstellungskosten'!C128+'Kalkulation Herstellungskosten'!C129)>SVGrund_lfd_wö,('Kalkulation Herstellungskosten'!C128+'Kalkulation Herstellungskosten'!C129)*Höchst_Woche,I59*SV_lfd)) -> 0 | N59: 0 | O59: =IF(I59*10.41%>(0.5833*('Kalkulation Herstellungskosten'!C129+'Kalkulation Herstellungskosten'!C128)*SVGrund_lfd_tä),(0.5833*('Kalkulation Herstellungskosten'!C129+'Kalkulation Herstellungskosten'!C128)*Höchst_Tag),I59*10.41%*SV_lfd) -> 0 | P59: 0 | Q59: 0 | R59: 0 | S59: 0 | T59: 0 | U59: =('Kalkulation Herstellungskosten'!C128+'Kalkulation Herstellungskosten'!C129)*U_Bahn -> 0 | V59: 0 | W59: 0 | AB59: 0 | AE59: 0 | AO59: 0
A61: ='Kalkulation Herstellungskosten'!B131 -> Sonstige MitarbeiterInnen
A62: ='Kalkulation Herstellungskosten'!B132 -> 0 | I62: ='Kalkulation Herstellungskosten'!G132/((1+1/6)*1.1041) -> 0 | J62: =I62/6 -> 0 | K62: =(I62+J62)*10.41% -> 0 | L62: =SUM(I62:K62) -> 0 | M62: =IF('Kalkulation Herstellungskosten'!C132=0,0,IF(I62/'Kalkulation Herstellungskosten'!C132>SVGrund_lfd_wö,'Kalkulation Herstellungskosten'!C132*Höchst_Woche,I62*SV_lfd)) -> 0 | N62: =IF(J62>SVGrund_SZ, Höchst_Mo_SZ,J62*SV_SZ) -> 0 | O62: =IF(I62*10.41%>(0.5833*'Kalkulation Herstellungskosten'!C132*SVGrund_lfd_tä),(0.5833*'Kalkulation Herstellungskosten'!C132*Höchst_Tag),I62*10.41%*SV_lfd) -> 0 | P62: =IF(J62>SVGrund_SZ,0,IF(J62*10.41%>(SVGrund_SZ-J62),(SVGrund_SZ-J62)*SV_SZ,J62*10.41%*SV_SZ)) -> 0 | Q62: =L62*MV -> 0 | R62: =L62*DB -> 0 | S62: =L62*DZ -> 0 | T62: =L62*KommSt -> 0 | U62: ='Kalkulation Herstellungskosten'!C132*U_Bahn -> 0 | V62: =SUM(M62:U62) -> 0 | W62: =SUM(L62,V62) -> 0 | AB62: =Z62*AA62 -> 0 | AE62: =AC62*AD62 -> 0 | AO62: =AM62*AN62 -> 0
A63: ='Kalkulation Herstellungskosten'!B133 -> 0 | I63: ='Kalkulation Herstellungskosten'!G133/((1+1/6)*1.1041) -> 0 | J63: =I63/6 -> 0 | K63: =(I63+J63)*10.41% -> 0 | L63: =SUM(I63:K63) -> 0 | M63: =IF('Kalkulation Herstellungskosten'!C133=0,0,IF(I63/'Kalkulation Herstellungskosten'!C133>SVGrund_lfd_wö,'Kalkulation Herstellungskosten'!C133*Höchst_Woche,I63*SV_lfd)) -> 0 | N63: 0 | O63: =IF(I63*10.41%>(0.5833*'Kalkulation Herstellungskosten'!C133*SVGrund_lfd_tä),(0.5833*'Kalkulation Herstellungskosten'!C133*Höchst_Tag),I63*10.41%*SV_lfd) -> 0 | P63: 0 | Q63: 0 | R63: 0 | S63: 0 | T63: 0 | U63: ='Kalkulation Herstellungskosten'!C133*U_Bahn -> 0 | V63: =SUM(M63:U63) -> 0 | W63: =SUM(L63,V63) -> 0 | AB63: =Z63*AA63 -> 0 | AE63: =AC63*AD63 -> 0 | AO63: =AM63*AN63 -> 0
A64: ='Kalkulation Herstellungskosten'!B134 -> 0 | I64: ='Kalkulation Herstellungskosten'!G134/((1+1/6)*1.1041) -> 0 | J64: 0 | K64: 0 | L64: 0 | M64: =IF('Kalkulation Herstellungskosten'!C134=0,0,IF(I64/'Kalkulation Herstellungskosten'!C134>SVGrund_lfd_wö,'Kalkulation Herstellungskosten'!C134*Höchst_Woche,I64*SV_lfd)) -> 0 | N64: 0 | O64: =IF(I64*10.41%>(0.5833*'Kalkulation Herstellungskosten'!C134*SVGrund_lfd_tä),(0.5833*'Kalkulation Herstellungskosten'!C134*Höchst_Tag),I64*10.41%*SV_lfd) -> 0 | P64: 0 | Q64: 0 | R64: 0 | S64: 0 | T64: 0 | U64: ='Kalkulation Herstellungskosten'!C134*U_Bahn -> 0 | V64: 0 | W64: 0 | AB64: 0 | AE64: 0 | AO64: 0
A65: ='Kalkulation Herstellungskosten'!B135 -> 0 | I65: ='Kalkulation Herstellungskosten'!G135/((1+1/6)*1.1041) -> 0 | J65: 0 | K65: 0 | L65: 0 | M65: =IF('Kalkulation Herstellungskosten'!C135=0,0,IF(I65/'Kalkulation Herstellungskosten'!C135>SVGrund_lfd_wö,'Kalkulation Herstellungskosten'!C135*Höchst_Woche,I65*SV_lfd)) -> 0 | N65: 0 | O65: =IF(I65*10.41%>(0.5833*'Kalkulation Herstellungskosten'!C135*SVGrund_lfd_tä),(0.5833*'Kalkulation Herstellungskosten'!C135*Höchst_Tag),I65*10.41%*SV_lfd) -> 0 | P65: 0 | Q65: 0 | R65: 0 | S65: 0 | T65: 0 | U65: ='Kalkulation Herstellungskosten'!C135*U_Bahn -> 0 | V65: 0 | W65: 0 | AB65: 0 | AE65: 0 | AO65: 0
A66: ='Kalkulation Herstellungskosten'!B136 -> 0 | I66: ='Kalkulation Herstellungskosten'!G136/((1+1/6)*1.1041) -> 0 | J66: 0 | K66: 0 | L66: 0 | M66: =IF('Kalkulation Herstellungskosten'!C136=0,0,IF(I66/'Kalkulation Herstellungskosten'!C136>SVGrund_lfd_wö,'Kalkulation Herstellungskosten'!C136*Höchst_Woche,I66*SV_lfd)) -> 0 | N66: 0 | O66: =IF(I66*10.41%>(0.5833*'Kalkulation Herstellungskosten'!C136*SVGrund_lfd_tä),(0.5833*'Kalkulation Herstellungskosten'!C136*Höchst_Tag),I66*10.41%*SV_lfd) -> 0 | P66: 0 | Q66: 0 | R66: 0 | S66: 0 | T66: 0 | U66: ='Kalkulation Herstellungskosten'!C136*U_Bahn -> 0 | V66: 0 | W66: 0 | AB66: 0 | AE66: 0 | AO66: 0
A67: ='Kalkulation Herstellungskosten'!B137 -> 0 | I67: ='Kalkulation Herstellungskosten'!G137/((1+1/6)*1.1041) -> 0 | J67: 0 | K67: 0 | L67: 0 | M67: =IF('Kalkulation Herstellungskosten'!C137=0,0,IF(I67/'Kalkulation Herstellungskosten'!C137>SVGrund_lfd_wö,'Kalkulation Herstellungskosten'!C137*Höchst_Woche,I67*SV_lfd)) -> 0 | N67: 0 | O67: =IF(I67*10.41%>(0.5833*'Kalkulation Herstellungskosten'!C137*SVGrund_lfd_tä),(0.5833*'Kalkulation Herstellungskosten'!C137*Höchst_Tag),I67*10.41%*SV_lfd) -> 0 | P67: 0 | Q67: 0 | R67: 0 | S67: 0 | T67: 0 | U67: ='Kalkulation Herstellungskosten'!C137*U_Bahn -> 0 | V67: 0 | W67: 0 | AB67: 0 | AE67: 0 | AO67: 0
A68: ='Kalkulation Herstellungskosten'!B138 -> 0 | I68: ='Kalkulation Herstellungskosten'!G138/((1+1/6)*1.1041) -> 0 | J68: 0 | K68: 0 | L68: 0 | M68: =IF('Kalkulation Herstellungskosten'!C138=0,0,IF(I68/'Kalkulation Herstellungskosten'!C138>SVGrund_lfd_wö,'Kalkulation Herstellungskosten'!C138*Höchst_Woche,I68*SV_lfd)) -> 0 | N68: 0 | O68: =IF(I68*10.41%>(0.5833*'Kalkulation Herstellungskosten'!C138*SVGrund_lfd_tä),(0.5833*'Kalkulation Herstellungskosten'!C138*Höchst_Tag),I68*10.41%*SV_lfd) -> 0 | P68: 0 | Q68: 0 | R68: 0 | S68: 0 | T68: 0 | U68: ='Kalkulation Herstellungskosten'!C138*U_Bahn -> 0 | V68: 0 | W68: 0 | AB68: 0 | AE68: 0 | AO68: 0
A69: ='Kalkulation Herstellungskosten'!B139 -> 0 | E69: =IF(C69=0,0,(D69-C69+1)/7) -> 0 | G69: =E69*F69 -> 0 | I69: ='Kalkulation Herstellungskosten'!G139/((1+1/6)*1.1041) -> 0 | J69: 0 | K69: 0 | L69: 0 | M69: =IF('Kalkulation Herstellungskosten'!C139=0,0,IF(I69/'Kalkulation Herstellungskosten'!C139>SVGrund_lfd_wö,'Kalkulation Herstellungskosten'!C139*Höchst_Woche,I69*SV_lfd)) -> 0 | N69: 0 | O69: =IF(I69*10.41%>(0.5833*'Kalkulation Herstellungskosten'!C139*SVGrund_lfd_tä),(0.5833*'Kalkulation Herstellungskosten'!C139*Höchst_Tag),I69*10.41%*SV_lfd) -> 0 | P69: 0 | Q69: 0 | R69: 0 | S69: 0 | T69: 0 | U69: ='Kalkulation Herstellungskosten'!C139*U_Bahn -> 0 | V69: 0 | W69: 0 | AB69: =Z69*AA69 -> 0 | AE69: =AC69*AD69 -> 0 | AO69: 0
A70: ='Kalkulation Herstellungskosten'!B140 -> 0 | E70: =IF(C70=0,0,(D70-C70+1)/7) -> 0 | G70: =E70*F70 -> 0 | I70: ='Kalkulation Herstellungskosten'!G140/((1+1/6)*1.1041) -> 0 | J70: 0 | K70: 0 | L70: 0 | M70: =IF('Kalkulation Herstellungskosten'!C140=0,0,IF(I70/'Kalkulation Herstellungskosten'!C140>SVGrund_lfd_wö,'Kalkulation Herstellungskosten'!C140*Höchst_Woche,I70*SV_lfd)) -> 0 | N70: 0 | O70: =IF(I70*10.41%>(0.5833*'Kalkulation Herstellungskosten'!C140*SVGrund_lfd_tä),(0.5833*'Kalkulation Herstellungskosten'!C140*Höchst_Tag),I70*10.41%*SV_lfd) -> 0 | P70: 0 | Q70: 0 | R70: 0 | S70: 0 | T70: 0 | U70: ='Kalkulation Herstellungskosten'!C140*U_Bahn -> 0 | V70: 0 | W70: 0 | AB70: =Z70*AA70 -> 0 | AE70: =AC70*AD70 -> 0 | AO70: 0
A71: ='Kalkulation Herstellungskosten'!B141 -> 0 | E71: =IF(C71=0,0,(D71-C71+1)/7) -> 0 | G71: =E71*F71 -> 0 | I71: ='Kalkulation Herstellungskosten'!G141/((1+1/6)*1.1041) -> 0 | J71: 0 | K71: 0 | L71: 0 | M71: =IF('Kalkulation Herstellungskosten'!C141=0,0,IF(I71/'Kalkulation Herstellungskosten'!C141>SVGrund_lfd_wö,'Kalkulation Herstellungskosten'!C141*Höchst_Woche,I71*SV_lfd)) -> 0 | N71: 0 | O71: =IF(I71*10.41%>(0.5833*'Kalkulation Herstellungskosten'!C141*SVGrund_lfd_tä),(0.5833*'Kalkulation Herstellungskosten'!C141*Höchst_Tag),I71*10.41%*SV_lfd) -> 0 | P71: 0 | Q71: 0 | R71: 0 | S71: 0 | T71: 0 | U71: ='Kalkulation Herstellungskosten'!C141*U_Bahn -> 0 | V71: 0 | W71: 0 | AB71: =Z71*AA71 -> 0 | AE71: =AC71*AD71 -> 0 | AO71: 0
A72: ='Kalkulation Herstellungskosten'!B142 -> 0 | I72: ='Kalkulation Herstellungskosten'!G142/((1+1/6)*1.1041) -> 0 | J72: =I72/6 -> 0 | K72: =(I72+J72)*10.41% -> 0 | L72: =SUM(I72:K72) -> 0 | M72: =IF('Kalkulation Herstellungskosten'!C142=0,0,IF(I72/'Kalkulation Herstellungskosten'!C142>SVGrund_lfd_wö,'Kalkulation Herstellungskosten'!C142*Höchst_Woche,I72*SV_lfd)) -> 0 | N72: =IF(J72>SVGrund_SZ, Höchst_Mo_SZ,J72*SV_SZ) -> 0 | O72: =IF(I72*10.41%>(0.5833*'Kalkulation Herstellungskosten'!C142*SVGrund_lfd_tä),(0.5833*'Kalkulation Herstellungskosten'!C142*Höchst_Tag),I72*10.41%*SV_lfd) -> 0 | P72: =IF(J72>SVGrund_SZ,0,IF(J72*10.41%>(SVGrund_SZ-J72),(SVGrund_SZ-J72)*SV_SZ,J72*10.41%*SV_SZ)) -> 0 | Q72: =L72*MV -> 0 | R72: =L72*DB -> 0 | S72: =L72*DZ -> 0 | T72: =L72*KommSt -> 0 | U72: ='Kalkulation Herstellungskosten'!C142*U_Bahn -> 0 | V72: =SUM(M72:U72) -> 0 | W72: 0 | AB72: =Z72*AA72 -> 0 | AE72: =AC72*AD72 -> 0 | AO72: =AM72*AN72 -> 0
A73: ='Kalkulation Herstellungskosten'!B143 -> 0 | I73: ='Kalkulation Herstellungskosten'!G143/((1+1/6)*1.1041) -> 0 | J73: 0 | K73: 0 | L73: 0 | M73: =IF('Kalkulation Herstellungskosten'!C143=0,0,IF(I73/'Kalkulation Herstellungskosten'!C143>SVGrund_lfd_wö,'Kalkulation Herstellungskosten'!C143*Höchst_Woche,I73*SV_lfd)) -> 0 | N73: 0 | O73: =IF(I73*10.41%>(0.5833*'Kalkulation Herstellungskosten'!C143*SVGrund_lfd_tä),(0.5833*'Kalkulation Herstellungskosten'!C143*Höchst_Tag),I73*10.41%*SV_lfd) -> 0 | P73: 0 | Q73: 0 | R73: 0 | S73: 0 | T73: 0 | U73: ='Kalkulation Herstellungskosten'!C143*U_Bahn -> 0 | V73: 0 | W73: 0 | AB73: 0 | AE73: 0 | AO73: 0
A74: ='Kalkulation Herstellungskosten'!B144 -> 0 | I74: ='Kalkulation Herstellungskosten'!G144/((1+1/6)*1.1041) -> 0 | J74: 0 | K74: 0 | L74: 0 | M74: =IF('Kalkulation Herstellungskosten'!C144=0,0,IF(I74/'Kalkulation Herstellungskosten'!C144>SVGrund_lfd_wö,'Kalkulation Herstellungskosten'!C144*Höchst_Woche,I74*SV_lfd)) -> 0 | N74: 0 | O74: =IF(I74*10.41%>(0.5833*'Kalkulation Herstellungskosten'!C144*SVGrund_lfd_tä),(0.5833*'Kalkulation Herstellungskosten'!C144*Höchst_Tag),I74*10.41%*SV_lfd) -> 0 | P74: 0 | Q74: 0 | R74: 0 | S74: 0 | T74: 0 | U74: ='Kalkulation Herstellungskosten'!C144*U_Bahn -> 0 | V74: 0 | W74: 0 | AB74: 0 | AE74: 0 | AO74: 0
A75: ='Kalkulation Herstellungskosten'!B145 -> 0 | I75: ='Kalkulation Herstellungskosten'!G145/((1+1/6)*1.1041) -> 0 | J75: 0 | K75: 0 | L75: 0 | M75: =IF('Kalkulation Herstellungskosten'!C145=0,0,IF(I75/'Kalkulation Herstellungskosten'!C145>SVGrund_lfd_wö,'Kalkulation Herstellungskosten'!C145*Höchst_Woche,I75*SV_lfd)) -> 0 | N75: 0 | O75: =IF(I75*10.41%>(0.5833*'Kalkulation Herstellungskosten'!C145*SVGrund_lfd_tä),(0.5833*'Kalkulation Herstellungskosten'!C145*Höchst_Tag),I75*10.41%*SV_lfd) -> 0 | P75: 0 | Q75: 0 | R75: 0 | S75: 0 | T75: 0 | U75: ='Kalkulation Herstellungskosten'!C145*U_Bahn -> 0 | V75: 0 | W75: 0 | AB75: 0 | AE75: 0 | AO75: 0
A76: ='Kalkulation Herstellungskosten'!B146 -> 0 | I76: ='Kalkulation Herstellungskosten'!G146/((1+1/6)*1.1041) -> 0 | J76: 0 | K76: 0 | L76: 0 | M76: =IF('Kalkulation Herstellungskosten'!C146=0,0,IF(I76/'Kalkulation Herstellungskosten'!C146>SVGrund_lfd_wö,'Kalkulation Herstellungskosten'!C146*Höchst_Woche,I76*SV_lfd)) -> 0 | N76: 0 | O76: =IF(I76*10.41%>(0.5833*'Kalkulation Herstellungskosten'!C146*SVGrund_lfd_tä),(0.5833*'Kalkulation Herstellungskosten'!C146*Höchst_Tag),I76*10.41%*SV_lfd) -> 0 | P76: 0 | Q76: 0 | R76: 0 | S76: 0 | T76: 0 | U76: ='Kalkulation Herstellungskosten'!C146*U_Bahn -> 0 | V76: 0 | W76: 0 | AB76: 0 | AE76: 0 | AO76: 0
A77: ='Kalkulation Herstellungskosten'!B147 -> 0 | I77: ='Kalkulation Herstellungskosten'!G147/((1+1/6)*1.1041) -> 0 | J77: 0 | K77: 0 | L77: 0 | M77: =IF('Kalkulation Herstellungskosten'!C147=0,0,IF(I77/'Kalkulation Herstellungskosten'!C147>SVGrund_lfd_wö,'Kalkulation Herstellungskosten'!C147*Höchst_Woche,I77*SV_lfd)) -> 0 | N77: 0 | O77: =IF(I77*10.41%>(0.5833*'Kalkulation Herstellungskosten'!C147*SVGrund_lfd_tä),(0.5833*'Kalkulation Herstellungskosten'!C147*Höchst_Tag),I77*10.41%*SV_lfd) -> 0 | P77: 0 | Q77: 0 | R77: 0 | S77: 0 | T77: 0 | U77: ='Kalkulation Herstellungskosten'!C147*U_Bahn -> 0 | V77: 0 | W77: 0 | AB77: 0 | AE77: 0 | AO77: 0
A78: ='Kalkulation Herstellungskosten'!B148 -> 0 | I78: ='Kalkulation Herstellungskosten'!G148/((1+1/6)*1.1041) -> 0 | J78: 0 | K78: 0 | L78: 0 | M78: =IF('Kalkulation Herstellungskosten'!C148=0,0,IF(I78/'Kalkulation Herstellungskosten'!C148>SVGrund_lfd_wö,'Kalkulation Herstellungskosten'!C148*Höchst_Woche,I78*SV_lfd)) -> 0 | N78: 0 | O78: =IF(I78*10.41%>(0.5833*'Kalkulation Herstellungskosten'!C148*SVGrund_lfd_tä),(0.5833*'Kalkulation Herstellungskosten'!C148*Höchst_Tag),I78*10.41%*SV_lfd) -> 0 | P78: 0 | Q78: 0 | R78: 0 | S78: 0 | T78: 0 | U78: ='Kalkulation Herstellungskosten'!C148*U_Bahn -> 0 | V78: 0 | W78: 0 | AB78: 0 | AE78: 0 | AO78: 0
A79: ='Kalkulation Herstellungskosten'!B149 -> 0 | I79: ='Kalkulation Herstellungskosten'!G149/((1+1/6)*1.1041) -> 0 | J79: 0 | K79: 0 | L79: 0 | M79: =IF('Kalkulation Herstellungskosten'!C149=0,0,IF(I79/'Kalkulation Herstellungskosten'!C149>SVGrund_lfd_wö,'Kalkulation Herstellungskosten'!C149*Höchst_Woche,I79*SV_lfd)) -> 0 | N79: 0 | O79: =IF(I79*10.41%>(0.5833*'Kalkulation Herstellungskosten'!C149*SVGrund_lfd_tä),(0.5833*'Kalkulation Herstellungskosten'!C149*Höchst_Tag),I79*10.41%*SV_lfd) -> 0 | P79: 0 | Q79: 0 | R79: 0 | S79: 0 | T79: 0 | U79: ='Kalkulation Herstellungskosten'!C149*U_Bahn -> 0 | V79: 0 | W79: 0 | AB79: 0 | AE79: 0 | AO79: 0
A80: ='Kalkulation Herstellungskosten'!B150 -> 0 | I80: ='Kalkulation Herstellungskosten'!G150/((1+1/6)*1.1041) -> 0 | J80: 0 | K80: 0 | L80: 0 | M80: =IF('Kalkulation Herstellungskosten'!C150=0,0,IF(I80/'Kalkulation Herstellungskosten'!C150>SVGrund_lfd_wö,'Kalkulation Herstellungskosten'!C150*Höchst_Woche,I80*SV_lfd)) -> 0 | N80: 0 | O80: =IF(I80*10.41%>(0.5833*'Kalkulation Herstellungskosten'!C150*SVGrund_lfd_tä),(0.5833*'Kalkulation Herstellungskosten'!C150*Höchst_Tag),I80*10.41%*SV_lfd) -> 0 | P80: 0 | Q80: 0 | R80: 0 | S80: 0 | T80: 0 | U80: ='Kalkulation Herstellungskosten'!C150*U_Bahn -> 0 | V80: 0 | W80: 0 | AB80: 0 | AE80: 0 | AO80: 0
A81: ='Kalkulation Herstellungskosten'!B151 -> 0 | I81: ='Kalkulation Herstellungskosten'!G151/((1+1/6)*1.1041) -> 0 | J81: 0 | K81: 0 | L81: 0 | M81: =IF('Kalkulation Herstellungskosten'!C151=0,0,IF(I81/'Kalkulation Herstellungskosten'!C151>SVGrund_lfd_wö,'Kalkulation Herstellungskosten'!C151*Höchst_Woche,I81*SV_lfd)) -> 0 | N81: 0 | O81: =IF(I81*10.41%>(0.5833*'Kalkulation Herstellungskosten'!C151*SVGrund_lfd_tä),(0.5833*'Kalkulation Herstellungskosten'!C151*Höchst_Tag),I81*10.41%*SV_lfd) -> 0 | P81: 0 | Q81: 0 | R81: 0 | S81: 0 | T81: 0 | U81: ='Kalkulation Herstellungskosten'!C151*U_Bahn -> 0 | V81: 0 | W81: 0 | AB81: 0 | AE81: 0 | AO81: 0
A82: ='Kalkulation Herstellungskosten'!B152 -> 0 | I82: ='Kalkulation Herstellungskosten'!G152/((1+1/6)*1.1041) -> 0 | J82: 0 | K82: 0 | L82: 0 | M82: =IF('Kalkulation Herstellungskosten'!C152=0,0,IF(I82/'Kalkulation Herstellungskosten'!C152>SVGrund_lfd_wö,'Kalkulation Herstellungskosten'!C152*Höchst_Woche,I82*SV_lfd)) -> 0 | N82: 0 | O82: =IF(I82*10.41%>(0.5833*'Kalkulation Herstellungskosten'!C152*SVGrund_lfd_tä),(0.5833*'Kalkulation Herstellungskosten'!C152*Höchst_Tag),I82*10.41%*SV_lfd) -> 0 | P82: 0 | Q82: 0 | R82: 0 | S82: 0 | T82: 0 | U82: ='Kalkulation Herstellungskosten'!C152*U_Bahn -> 0 | V82: 0 | W82: 0 | AB82: 0 | AE82: 0 | AO82: 0
A84: HONORARE
A85: ='Kalkulation Herstellungskosten'!B179 -> ProduzentInnenhonorar (max. 2,5% v. FK) | L85: ='Kalkulation Herstellungskosten'!E179 -> 0 | AB85: =Z85*AA85 -> 0 | AE85: =AC85*AD85 -> 0 | AO85: =AM85*AN85 -> 0
A86: ='Kalkulation Herstellungskosten'!B180 -> Rechtsberatung | L86: ='Kalkulation Herstellungskosten'!E180 -> 0 | AB86: =Z86*AA86 -> 0 | AE86: =AC86*AD86 -> 0 | AO86: 0
A87: ='Kalkulation Herstellungskosten'!B181 -> ArchitektIn/Ausstattung | L87: ='Kalkulation Herstellungskosten'!E181 -> 0 | AB87: 0 | AE87: 0 | AO87: 0
A88: ='Kalkulation Herstellungskosten'!B182 -> BildhauerIn | L88: ='Kalkulation Herstellungskosten'!E182 -> 0 | AB88: 0 | AE88: 0 | AO88: 0
A89: ='Kalkulation Herstellungskosten'!B183 -> KunstmalerIn | L89: ='Kalkulation Herstellungskosten'!E183 -> 0 | AB89: =Z89*AA89 -> 0 | AE89: =AC89*AD89 -> 0 | AO89: =AM89*AN89 -> 0
A90: ='Kalkulation Herstellungskosten'!B184 -> StandfotografIn | L90: ='Kalkulation Herstellungskosten'!E184 -> 0 | AB90: 0 | AE90: 0 | AO90: 0
A91: ='Kalkulation Herstellungskosten'!B185 -> GrafikerIn | L91: ='Kalkulation Herstellungskosten'!E185 -> 0 | AB91: 0 | AE91: 0 | AO91: 0
A92: Grafiker | L92: ='Kalkulation Herstellungskosten'!E187 -> 0 | AB92: 0 | AE92: 0 | AO92: 0
A94: ='Kalkulation Herstellungskosten'!B187 -> Sonstige Dienstleister/Rechnungsleger
A95: ='Kalkulation Herstellungskosten'!B188 -> 0 | L95: ='Kalkulation Herstellungskosten'!E188 -> 0 | AB95: =Z95*AA95 -> 0 | AE95: =AC95*AD95 -> 0 | AO95: =AM95*AN95 -> 0
A96: ='Kalkulation Herstellungskosten'!B189 -> 0 | L96: ='Kalkulation Herstellungskosten'!E189 -> 0 | AB96: =Z96*AA96 -> 0 | AE96: =AC96*AD96 -> 0 | AO96: 0
A97: ='Kalkulation Herstellungskosten'!B190 -> 0 | L97: ='Kalkulation Herstellungskosten'!E190 -> 0 | AB97: 0 | AE97: 0 | AO97: 0
A98: ='Kalkulation Herstellungskosten'!B191 -> 0 | L98: ='Kalkulation Herstellungskosten'!E191 -> 0 | AB98: 0 | AE98: 0 | AO98: 0
A99: ='Kalkulation Herstellungskosten'!B192 -> 0 | L99: ='Kalkulation Herstellungskosten'!E192 -> 0 | AB99: 0 | AE99: 0 | AO99: 0
A100: ='Kalkulation Herstellungskosten'!B193 -> 0 | L100: ='Kalkulation Herstellungskosten'!E193 -> 0 | AB100: 0 | AE100: 0 | AO100: 0
A101: ='Kalkulation Herstellungskosten'!B194 -> 0 | L101: ='Kalkulation Herstellungskosten'!E194 -> 0 | AB101: 0 | AE101: 0 | AO101: 0
A102: ='Kalkulation Herstellungskosten'!B195 -> 0 | L102: ='Kalkulation Herstellungskosten'!E195 -> 0 | AB102: 0 | AE102: 0 | AO102: 0
A103: ='Kalkulation Herstellungskosten'!B196 -> 0 | L103: ='Kalkulation Herstellungskosten'!E196 -> 0 | AB103: 0 | AE103: 0 | AO103: 0
A104: ='Kalkulation Herstellungskosten'!B197 -> 0 | AB104: 0 | AE104: 0 | AO104: 0
A105: ='Kalkulation Herstellungskosten'!B198 -> 0 | AB105: 0 | AE105: 0 | AO105: 0
A106: ='Kalkulation Herstellungskosten'!B199 -> 0 | AB106: 0 | AE106: 0 | AO106: 0
A107: ='Kalkulation Herstellungskosten'!B200 -> 0 | AB107: 0 | AE107: 0 | AO107: 0
A108: ='Kalkulation Herstellungskosten'!B201 -> 0 | AB108: 0 | AE108: 0 | AO108: 0
A109: ='Kalkulation Herstellungskosten'!B202 -> 0 | AB109: 0 | AE109: 0 | AO109: 0
A110: ='Kalkulation Herstellungskosten'!B203 -> 0 | AB110: 0 | AE110: 0 | AO110: 0
A111: ='Kalkulation Herstellungskosten'!B204 -> 0 | AB111: 0 | AE111: 0 | AO111: 0
A112: ='Kalkulation Herstellungskosten'!B205 -> 0 | AB112: 0 | AE112: 0 | AO112: 0
A113: ='Kalkulation Herstellungskosten'!B206 -> 0 | AB113: 0 | AE113: 0 | AO113: 0
A114: ='Kalkulation Herstellungskosten'!B207 -> 0 | AB114: 0 | AE114: 0 | AO114: 0
A115: ='Kalkulation Herstellungskosten'!B208 -> 0 | AB115: 0 | AE115: 0 | AO115: 0
A117: TOTAL | E117: =SUM(E8:E116) -> 0 | G117: =SUM(G8:G116) -> 0 | I117: =SUM(I8:I116) -> 0 | J117: 0 | K117: 0 | L117: 0 | M117: 0 | N117: 0 | O117: 0 | P117: 0 | Q117: 0 | R117: 0 | S117: 0 | T117: 0 | U117: 0 | V117: 0 | W117: 0 | Y117: =SUM(Y7:Y116) -> 0 | Z117: =SUM(Z7:Z116) -> 0 | AB117: =SUM(AB7:AB116) -> 0 | AC117: =SUM(AC7:AC116) -> 0 | AE117: =SUM(AE7:AE116) -> 0 | AF117: 0 | AG117: 0 | AH117: 0 | AI117: 0 | AJ117: 0 | AK117: 0 | AL117: 0 | AM117: 0 | AO117: =SUM(AO7:AO116) -> 0
A119: =COUNTA(A9:A59)+5 -> 56

Sheet BERECHNUNGSSÄTZE (hidden)
A1: Dienstgeberanteil Lohnnebenkosten | H1: AV-Beitrag | I1: 3
H2: KV-Beitrag | I2: 3.78
A3: ab 1.1.2019 | H3: UV-Beitrag | I3: 1.2
C4: monatlich | D4: wöchentlich | E4: täglich | H4: PV-Beitrag | I4: 12.55
A5: SV-Höchstbeitragsgrundlage laufende Bezüge | C5: 5220 | D5: =SVGrund_lfd_mo/30*7 -> 1218 | E5: =SVGrund_lfd_mo/30 -> 174
A6: SV-Höchstbeitragsgrundlage Sonderzahlungen | C6: =C5*2 -> 10440 | D6: =SVGrund_SZ/30*7 -> 2436 | E6: =SVGrund_SZ/30 -> 348 | H6: IESG-Zuschlag | I6: 0.35
H7: WF-Beitrag | I7: 0.5
A8: DA Sozialversicherung laufend | C8: =I9/100 -> 0.2138
A9: DA Sozialversicherung Sonderzahlung | C9: =I11/100 -> 0.2088 | H9: laufende Bez. | I9: =SUM(I1:I8) -> 21.38
A10: Höchstbeitrag laufend | C10: =SVGrund_lfd_mo*SV_lfd -> 1116.036 | D10: =SVGrund_lfd_mo*SV_lfd/30*7 -> 260.4084 | E10: =SVGrund_lfd_mo*SV_lfd/30 -> 37.2012 | H10: WF-Beitrag | I10: -0.5
A11: Höchstbeitrag Sonderzahlung | C11: =SVGrund_SZ*SV_SZ -> 2179.872 | D11: =SVGrund_SZ*SV_SZ/30*7 -> 508.6368 | E11: =SVGrund_SZ*SV_SZ/30 -> 72.6624 | H11: SZ | I11: =SUM(I9:I10) -> 20.88
A13: DB zum Familienlastenausgleichsfonds | C13: 0.039
A14: DZ (Wien) | C14: 0.0038
A15: Kommunalsteuer | C15: 0.03
E16: km-Geld | F16: 0.42 | G16: (ab 01.07.08)
A17: MV-Beitrag Dienstgeber | C17: 0.0153 | E17: Diäten (Wien) | F17: 15.4 | G17: (ab 01.01.19)
A18: U-Bahnabgabe (Wien) | C18: 2 | E18: Diäten (Österreich) | F18: 26.4
A21: Kalkulatorische Sätze
C22: Höchstsätze | D22: Richtsätze | E22: Richtsatz bis 2013
A23: Drehbuch | D23: =ROUND(IF(NFK_ges<250000,14000,ROUND(IF(NFK_ges<=750000,14000+(NFK_ges-250000)*(18500/500000),IF(NFK_ges<=2500000,30000+40000*(NFK_ges-750000)/1750000,IF(NFK_ges<=5000000,70000+30000*(NFK_ges-2500000)/2500000,NFK_ges*2%))),-1)),0) -> 14000
A24: Regie | D24: =ROUND(IF(NFK_ges<=3000000,E24*125%,E24*120%),0) -> 26250 | E24: =IF(NFK_ges<=250000,21000,ROUND(IF(NFK_ges<=750000,(21000+(NFK_ges-250000)*(16500/500000))/((1+1/6)*1.1041*0.9*1.05),IF(NFK_ges<=872000,NFK_ges*(3.5+(872000-NFK_ges)/436000)%,IF(NFK_ges<=1308000,NFK_ges*(3+(0.5*(1308000-NFK_ges)/436000))%,IF(NFK_ges<=3634000,NFK_ges*(2+(3634000-NFK_ges)/2326000)%,NFK_ges*2%))))*(1+1/6)*1.1041*0.9*1.05,-1)) -> 21000
C26: EPU | E26: Norm
A27: Produzentenhonorar | C27: =IF(NFK<=200000,NFK*7.5%,IF(NFK<=500000,200000*7.5%+(NFK-200000)*4%,IF(NFK<=800000,(200000*7.5%+300000*4%+(NFK-500000)*1.75%),IF(NFK<=1500000,200000*7.5%+300000*4%+300000*1.75%+(NFK-800000)*0.75%,IF(NFK>1500000,NFK*2.5%))))) -> 0 | D27: =IF(NFK=0,"",C27/NFK) ->  | E27: =NFK*2.5% -> 0 | F27: =IF(NFK=0,"",E27/NFK) -> 
A28: Fertigungsgemeinkosten (FGK) | C28: =ROUND(IF(NFK<=800000,NFK*9%,IF(NFK<=1200000,72000+(NFK-800000)*30000/400000,IF(NFK<=1600000,102000+(NFK-1200000)*26000/400000,IF(NFK<=2500000,128000+(NFK-1600000)*59500/900000,NFK*7.5%)))),-1) -> 0
F29: NEU ab 2019
B30: Nettofertigungskosten | C30: FGK | D30: %Satz | F30: FGK | G30: %Satz
B31: 0 | C31: 0 | D31: 0.09
B32: 100000 | C32: 9000 | D32: 0.09 | F32: =ROUND(IF(B32>6000000,350000,IF(B32<=800000,B32*9%,IF(B32<=1200000,72000+(B32-800000)*30000/400000,IF(B32<=1600000,102000+(B32-1200000)*26000/400000,IF(B32<=2500000,128000+(B32-1600000)*59500/900000,B32*7.5%))))),-1) -> 9000 | G32: =F32/B32 -> 0.09
B33: 200000 | C33: 18000 | D33: 0.09 | F33: 18000 | G33: =F33/B33 -> 0.09
B34: 300000 | C34: 27000 | D34: 0.09 | F34: 27000 | G34: 0.09
B35: 400000 | C35: 36000 | D35: 0.09 | F35: 36000 | G35: 0.09
B36: 500000 | C36: 45000 | D36: 0.09 | F36: 45000 | G36: 0.09
B37: 600000 | C37: 54000 | D37: 0.09 | F37: 54000 | G37: 0.09
B38: 700000 | C38: 63000 | D38: 0.09 | F38: 63000 | G38: 0.09
B39: 800000 | C39: 72000 | D39: 0.09 | F39: 72000 | G39: 0.09
B40: 900000 | C40: 79875 | D40: 0.08875 | F40: 79500 | G40: 0.08833333333
B41: 1000000 | C41: 87500 | D41: 0.0875 | F41: 87000 | G41: 0.087
B42: 1100000 | C42: 94875 | D42: 0.08625 | F42: 94500 | G42: 0.08590909091
B43: 1200000 | C43: 102000 | D43: 0.085 | F43: 102000 | G43: 0.085
B44: 1300000 | C44: 108875 | D44: 0.08375 | F44: 108500 | G44: 0.08346153846
B45: 1400000 | C45: 115500 | D45: 0.0825 | F45: 115000 | G45: 0.08214285714
B46: 1500000 | C46: 121875 | D46: 0.08125 | F46: 121500 | G46: 0.081
B47: 1600000 | C47: 128000 | D47: 0.08 | F47: 128000 | G47: 0.08
B48: 1700000 | C48: 133875 | D48: 0.07875 | F48: =ROUND(IF(B48>6000000,350000,IF(B48<=800000,B48*9%,IF(B48<=1200000,72000+(B48-800000)*30000/400000,IF(B48<=1600000,102000+(B48-1200000)*26000/400000,IF(B48<=2500000,128000+(B48-1600000)*59500/900000,B48*7.5%))))),-1) -> 134610 | G48: 0.07918235294
B49: 1800000 | C49: 139500 | D49: 0.0775 | F49: =ROUND(IF(B49>6000000,350000,IF(B49<=800000,B49*9%,IF(B49<=1200000,72000+(B49-800000)*30000/400000,IF(B49<=1600000,102000+(B49-1200000)*26000/400000,IF(B49<=2500000,128000+(B49-1600000)*59500/900000,B49*7.5%))))),-1) -> 141220 | G49: 0.07845555556
B50: 1900000 | C50: 144875 | D50: 0.07625 | F50: 147830 | G50: 0.07780526316
B51: 2000000 | C51: 150000 | D51: 0.075 | F51: =ROUND(IF(B51>6000000,350000,IF(B51<=800000,B51*9%,IF(B51<=1200000,72000+(B51-800000)*30000/400000,IF(B51<=1600000,102000+(B51-1200000)*26000/400000,IF(B51<=2500000,128000+(B51-1600000)*59500/900000,B51*7.5%))))),-1) -> 154440 | G51: 0.07722
B52: 2100000 | C52: 155000 | D52: 0.07380952381 | F52: =ROUND(IF(B52>6000000,350000,IF(B52<=800000,B52*9%,IF(B52<=1200000,72000+(B52-800000)*30000/400000,IF(B52<=1600000,102000+(B52-1200000)*26000/400000,IF(B52<=2500000,128000+(B52-1600000)*59500/900000,B52*7.5%))))),-1) -> 161060 | G52: 0.0766952381
B53: 2200000 | C53: 160000 | D53: 0.07272727273 | F53: =ROUND(IF(B53>6000000,350000,IF(B53<=800000,B53*9%,IF(B53<=1200000,72000+(B53-800000)*30000/400000,IF(B53<=1600000,102000+(B53-1200000)*26000/400000,IF(B53<=2500000,128000+(B53-1600000)*59500/900000,B53*7.5%))))),-1) -> 167670 | G53: 0.07621363636
B54: 2300000 | C54: 165000 | D54: 0.07173913043 | F54: =ROUND(IF(B54>6000000,350000,IF(B54<=800000,B54*9%,IF(B54<=1200000,72000+(B54-800000)*30000/400000,IF(B54<=1600000,102000+(B54-1200000)*26000/400000,IF(B54<=2500000,128000+(B54-1600000)*59500/900000,B54*7.5%))))),-1) -> 174280 | G54: 0.07577391304
B55: 2500000 | C55: 175000 | D55: 0.07 | F55: =ROUND(IF(B55>6000000,350000,IF(B55<=800000,B55*9%,IF(B55<=1200000,72000+(B55-800000)*30000/400000,IF(B55<=1600000,102000+(B55-1200000)*26000/400000,IF(B55<=2500000,128000+(B55-1600000)*59500/900000,B55*7.5%))))),-1) -> 187500 | G55: 0.075
B56: 3000000 | C56: 200000 | D56: 0.06666666667 | F56: 225000 | G56: 0.075
B57: 4000000 | C57: 250000 | D57: 0.0625 | F57: 300000 | G57: 0.075
B58: 5000000 | C58: 300000 | D58: 0.06 | F58: 375000 | G58: 0.075
B59: 6000000 | C59: 350000 | D59: 0.05833333333 | F59: 450000 | G59: 0.075

Sheet Darsteller
A1: =Stammblatt!A1 -> Projekttitel
A2: zu 3. Gagen, Löhne, Honorare
G3: =IF(Stammblatt!$L$5=1,"L O H N N E B E N K O S T E N","N O N - W A G E L A B O U R C O S T S") -> L O H N N E B E N K O S T E N
A4: =IF(Stammblatt!L5=1,"DARSTELLER","CAST") -> DARSTELLER | G4: =IF(Stammblatt!$L$5=1,"SV-DGA","social security") -> SV-DGA | K4: =IF(Stammblatt!$L$5=1,"Kommunal-steuer","municipal tax") -> Kommunal-steuer | L4: =IF(Stammblatt!$L$5=1,"U-Bahn Abgabe","subway toll") -> U-Bahn Abgabe | M4: =IF(Stammblatt!$L$5=1,"SUMME Lohnneben-kosten","T O T A L non-wage labour costs") -> SUMME Lohnneben-kosten | P4: =IF(Stammblatt!$L$5=1,"FLUGTICKETS","FLIGHTS") -> FLUGTICKETS | S4: =IF(Stammblatt!$L$5=1,"BAHNFAHRTEN","TRAIN") -> BAHNFAHRTEN | V4: =IF(Stammblatt!$L$5=1,"D I Ä T E N (Angabe in Tagen)","P E R D I E M (Nr. of days)") -> D I Ä T E N (Angabe in Tagen) | AB4: CATERING | AC4: =IF(Stammblatt!$L$5=1,"NÄCHTIGUNGEN","HOTELS / LODGING") -> NÄCHTIGUNGEN | AF4: weiblich | AG4: =IF(Stammblatt!$L$5=1,"KOSTÜME","COSTUMES") -> KOSTÜME | AI4: CAST | AN4: =IF(Stammblatt!$L$5=1,"K O S T Ü M E","C O S T U M E S") -> K O S T Ü M E | AR4: =IF(Stammblatt!$L$5=1,"R E I S E K O S T E N - D A R S T E L L E R","T R A V E L L I N G E X P E N S E S - C A S T") -> R E I S E K O S T E N - D A R S T E L L E R
D5: =IF(Stammblatt!L5=1,"Dreh-tage","shooting days") -> Dreh-tage | E5: =IF(Stammblatt!L5=1,"Tages-gage","daily rate") -> Tages-gage | F5: =IF(Stammblatt!L5=1,"Summe/ Pauschale","Total/ allowance") -> Summe/ Pauschale | G5: laufende | H5: UEL-laufend | I5: DB | J5: DZ | O5: km | P5: =IF(Stammblatt!$L$5=1,"Anzahl","quant.") -> Anzahl | Q5: =IF(Stammblatt!$L$5=1,"Preis","price") -> Preis | R5: Total | S5: =IF(Stammblatt!$L$5=1,"Anzahl","quant.") -> Anzahl | T5: =IF(Stammblatt!$L$5=1,"Preis","price") -> Preis | U5: Total | V5: ORTS- | W5: ÖSTER- | X5: AUSLAND | AB5: =IF(Stammblatt!$L$5=1,"Tage","days") -> Tage | AC5: =IF(Stammblatt!$L$5=1,"Anzahl","quant.") -> Anzahl | AD5: =IF(Stammblatt!$L$5=1,"Preis","price") -> Preis | AE5: Total | AG5: =IF(Stammblatt!$L$5=1,"Österreich","Austria") -> Österreich | AI5: =IF(Stammblatt!L5=1,"Dreh-tage","shooting days") -> Dreh-tage | AJ5: =Stammblatt!B31 -> A | AK5: =Stammblatt!B32 -> B | AL5: =Stammblatt!B33 -> C | AN5: =Stammblatt!B31 -> A | AO5: =Stammblatt!B32 -> B | AP5: =Stammblatt!B33 -> C | AR5: =Stammblatt!B31 -> A | AV5: =Stammblatt!B32 -> B | AZ5: =Stammblatt!B33 -> C
B6: =IF(Stammblatt!L5=1,"Rolle","role") -> Rolle | C6: NAME | G6: Bezüge | K6: steuer | V6: GEBIET | W6: REICH | X6: I | Y6: II | Z6: III | AA6: IV | AR6: =IF(Stammblatt!$L$5=1,"Fahrtkosten","Travelling") -> Fahrtkosten | AS6: =IF(Stammblatt!$L$5=1,"Diäten","Per diem") -> Diäten | AT6: Catering | AU6: =IF(Stammblatt!$L$5=1,"Nächtigung","Lodging") -> Nächtigung | AV6: =IF(Stammblatt!$L$5=1,"Fahrtkosten","Travelling") -> Fahrtkosten | AW6: =IF(Stammblatt!$L$5=1,"Diäten","Per diem") -> Diäten | AX6: Catering | AY6: =IF(Stammblatt!$L$5=1,"Nächtigung","Lodging") -> Nächtigung | AZ6: =IF(Stammblatt!$L$5=1,"Fahrtkosten","Travelling") -> Fahrtkosten | BA6: =IF(Stammblatt!$L$5=1,"Diäten","Per diem") -> Diäten | BB6: Catering | BC6: =IF(Stammblatt!$L$5=1,"Nächtigung","Lodging") -> Nächtigung
A7: 1 | F7: =D7*E7 -> 0 | G7: =IF(F7=0,0,IF(F7/D7>SVGrund_lfd_tä,D7*Höchst_Tag,F7*SV_lfd)) -> 0 | H7: =IF((F7-F7/1.1041)>(0.5833*D7/7*SVGrund_lfd_tä),(0.5833*D7/7*Höchst_Tag),(F7-F7/1.1041)*SV_lfd) -> 0 | I7: =F7*DB -> 0 | J7: =F7*DZ -> 0 | K7: =F7*KommSt -> 0 | L7: =D7/5*U_Bahn -> 0 | M7: =SUM(G7:L7) -> 0 | R7: =P7*Q7 -> 0 | U7: =S7*T7 -> 0 | AE7: =AC7*AD7 -> 0
A8: 2 | F8: 0 | G8: 0 | H8: =IF((F8-F8/1.1041)>(0.5833*D8/7*SVGrund_lfd_tä),(0.5833*D8/7*Höchst_Tag),(F8-F8/1.1041)*SV_lfd) -> 0 | I8: =F8*DB -> 0 | J8: =F8*DZ -> 0 | K8: =F8*KommSt -> 0 | L8: =D8/5*U_Bahn -> 0 | M8: =SUM(G8:L8) -> 0 | R8: =P8*Q8 -> 0 | U8: =S8*T8 -> 0 | AE8: =AC8*AD8 -> 0
A9: 3 | F9: 0 | G9: 0 | H9: 0 | I9: 0 | J9: 0 | K9: 0 | L9: 0 | M9: 0 | R9: 0 | U9: 0 | AE9: 0
A10: 4 | F10: 0 | G10: 0 | H10: 0 | I10: 0 | J10: 0 | K10: 0 | L10: 0 | M10: 0 | R10: 0 | U10: 0 | AE10: 0
A11: 5 | F11: 0 | G11: 0 | H11: 0 | I11: 0 | J11: 0 | K11: 0 | L11: 0 | M11: 0 | R11: 0 | U11: 0 | AE11: 0
A12: 6 | F12: 0 | G12: 0 | H12: 0 | I12: 0 | J12: 0 | K12: 0 | L12: 0 | M12: 0 | R12: 0 | U12: 0 | AE12: 0
A13: 7 | F13: 0 | G13: 0 | H13: 0 | I13: 0 | J13: 0 | K13: 0 | L13: 0 | M13: 0 | R13: 0 | U13: 0 | AE13: 0
A14: 8 | F14: 0 | G14: 0 | H14: 0 | I14: 0 | J14: 0 | K14: 0 | L14: 0 | M14: 0 | R14: 0 | U14: 0 | AE14: 0
A15: 9 | F15: 0 | G15: 0 | H15: 0 | I15: 0 | J15: 0 | K15: 0 | L15: 0 | M15: 0 | R15: 0 | U15: 0 | AE15: 0
A16: 10 | F16: 0 | G16: 0 | H16: 0 | I16: 0 | J16: 0 | K16: 0 | L16: 0 | M16: 0 | R16: 0 | U16: 0 | AE16: 0
A17: 11 | F17: 0 | G17: 0 | H17: 0 | I17: 0 | J17: 0 | K17: 0 | L17: 0 | M17: 0 | R17: 0 | U17: 0 | AE17: 0
A18: 12 | F18: 0 | G18: 0 | H18: 0 | I18: 0 | J18: 0 | K18: 0 | L18: 0 | M18: 0 | R18: 0 | U18: 0 | AE18: 0
A19: 13 | F19: 0 | G19: 0 | H19: 0 | I19: 0 | J19: 0 | K19: 0 | L19: 0 | M19: 0 | R19: 0 | U19: 0 | AE19: 0
A20: 14 | F20: 0 | G20: 0 | H20: 0 | I20: 0 | J20: 0 | K20: 0 | L20: 0 | M20: 0 | R20: 0 | U20: 0 | AE20: 0
A21: 15 | F21: 0 | G21: 0 | H21: 0 | I21: 0 | J21: 0 | K21: 0 | L21: 0 | M21: 0 | R21: 0 | U21: 0 | AE21: 0
A22: 16 | F22: 0 | G22: 0 | H22: 0 | I22: 0 | J22: 0 | K22: 0 | L22: 0 | M22: 0 | R22: 0 | U22: 0 | AE22: 0
A23: 17 | F23: 0 | G23: 0 | H23: 0 | I23: 0 | J23: 0 | K23: 0 | L23: 0 | M23: 0 | R23: 0 | U23: 0 | AE23: 0
A24: 18 | F24: 0 | G24: 0 | H24: 0 | I24: 0 | J24: 0 | K24: 0 | L24: 0 | M24: 0 | R24: 0 | U24: 0 | AE24: 0
A25: 19 | F25: 0 | G25: 0 | H25: 0 | I25: 0 | J25: 0 | K25: 0 | L25: 0 | M25: 0 | R25: 0 | U25: 0 | AE25: 0
A26: 20 | F26: 0 | G26: 0 | H26: 0 | I26: 0 | J26: 0 | K26: 0 | L26: 0 | M26: 0 | R26: 0 | U26: 0 | AE26: 0
A27: 21 | F27: 0 | G27: 0 | H27: 0 | I27: 0 | J27: 0 | K27: 0 | L27: 0 | M27: 0 | R27: 0 | U27: 0 | AE27: 0
A28: 22 | F28: 0 | G28: 0 | H28: 0 | I28: 0 | J28: 0 | K28: 0 | L28: 0 | M28: 0 | R28: 0 | U28: 0 | AE28: 0
A29: 23 | F29: 0 | G29: 0 | H29: 0 | I29: 0 | J29: 0 | K29: 0 | L29: 0 | M29: 0 | R29: 0 | U29: 0 | AE29: 0
A30: 24 | F30: 0 | G30: 0 | H30: 0 | I30: 0 | J30: 0 | K30: 0 | L30: 0 | M30: 0 | R30: 0 | U30: 0 | AE30: 0
A31: 25 | F31: 0 | G31: 0 | H31: 0 | I31: 0 | J31: 0 | K31: 0 | L31: 0 | M31: 0 | R31: 0 | U31: 0 | AE31: 0
A32: 26 | F32: 0 | G32: 0 | H32: 0 | I32: 0 | J32: 0 | K32: 0 | L32: 0 | M32: 0 | R32: 0 | U32: 0 | AE32: 0
A33: 27 | F33: 0 | G33: 0 | H33: 0 | I33: 0 | J33: 0 | K33: 0 | L33: 0 | M33: 0 | R33: 0 | U33: 0 | AE33: 0
A34: 28 | F34: 0 | G34: 0 | H34: 0 | I34: 0 | J34: 0 | K34: 0 | L34: 0 | M34: 0 | R34: 0 | U34: 0 | AE34: 0
A35: 29 | F35: 0 | G35: 0 | H35: 0 | I35: 0 | J35: 0 | K35: 0 | L35: 0 | M35: 0 | R35: 0 | U35: 0 | AE35: 0
A36: 30 | F36: 0 | G36: 0 | H36: 0 | I36: 0 | J36: 0 | K36: 0 | L36: 0 | M36: 0 | R36: 0 | U36: 0 | AE36: 0
B38: =IF(Stammblatt!L5=1,"Σ Darsteller","TOTAL Cast") -> Σ Darsteller | D38: =SUM(D7:D37) -> 0 | F38: =SUM(F7:F37) -> 0 | G38: =SUM(G7:G37) -> 0 | H38: =SUM(H7:H37) -> 0 | I38: 0 | J38: 0 | K38: 0 | L38: 0 | M38: 0 | O38: =SUM(O7:O37) -> 0 | P38: =SUM(P7:P37) -> 0 | R38: 0 | S38: 0 | U38: 0 | V38: 0 | W38: 0 | X38: 0 | Y38: 0 | Z38: 0 | AA38: 0 | AB38: 0 | AC38: 0 | AE38: 0
D41: Tage | E41: Gage | F41: Summe
B42: =IF(Stammblatt!$L$5=1,"Absperrhilfen","Security") -> Absperrhilfen | F42: =D42*E42 -> 0
B43: =IF(Stammblatt!$L$5=1,"Kleindarsteller","Background actors") -> Kleindarsteller | F43: =D43*E43 -> 0
B44: =IF(Stammblatt!$L$5=1,"Komparsen","Extras") -> Komparsen | F44: =D44*E44 -> 0
B46: =IF(Stammblatt!L5=1,"Σ-Statisten","TOTAL Extras") -> Σ-Statisten | D46: =SUM(D42:D45) -> 0 | F46: =SUM(F42:F45) -> 0 | AF46: Σ | AG46: =SUM(AG7:AG45) -> 0 | AH46: =SUM(AH7:AH45) -> 0 | AI46: 0 | AJ46: 0 | AK46: 0 | AL46: 0 | AM46: 0 | AN46: 0 | AO46: 0 | AP46: 0 | AR46: =SUM(AR7:AR45) -> 0 | AS46: =SUM(AS7:AS45) -> 0 | AT46: 0 | AU46: 0 | AV46: 0 | AW46: 0 | AX46: 0 | AY46: 0 | AZ46: 0 | BA46: 0 | BB46: 0 | BC46: 0

Sheet Motivliste
A1: =Stammblatt!A1 -> Projekttitel
B3: I/A/T/N | C3: Motiv- gebühr | D3: Abgaben & HV | E3: Bau- material | F3: Requisiten | H3: Anmerkungen
B4: I/E/D/N | C4: Location rent | D4: Public charges | E4: Construction material | F4: Props | H4: Remarks
B5: =IF(Stammblatt!$L$5=1,Motivliste!B3,Motivliste!B4) -> I/A/T/N | C5: =IF(Stammblatt!$L$5=1,Motivliste!C3,Motivliste!C4) -> Motiv- gebühr | D5: =IF(Stammblatt!$L$5=1,Motivliste!D3,Motivliste!D4) -> Abgaben & HV | E5: =IF(Stammblatt!$L$5=1,Motivliste!E3,Motivliste!E4) -> Bau- material | F5: =IF(Stammblatt!$L$5=1,Motivliste!F3,Motivliste!F4) -> Requisiten | G5: Stunts, SFX etc. | H5: =IF(Stammblatt!$L$5=1,Motivliste!H3,Motivliste!H4) -> Anmerkungen
A6: Set 1
A7: Set 2
A8: Set 3
A9: Set 4
A10: Set 5
A11: Set 6
A12: Set 7
A13: Set 8
A14: Set 9
A15: Set 10
A16: Set 11
A17: Set 12
A18: Set 13
A19: Set 14
A20: Set 15
A21: Set 16
A22: Set 17
A23: Set 18
A24: Set 19
A25: Set 20
A26: Set 21
A27: Set 22
A28: Set 23
A29: Set 24
A30: Set 25
A32: TOTAL | C32: =SUM(C6:C31) -> 0 | D32: =SUM(D6:D31) -> 0 | E32: =SUM(E6:E31) -> 0 | F32: =SUM(F6:F31) -> 0 | G32: =SUM(G6:G31) -> 0

Sheet Zu 10 (Reise-, Transportkosten)
A1: =Stammblatt!A1 -> Projekttitel | Q1: je Einheit | R1: per unit
A2: =IF(Stammblatt!$L$5=1,"Anlage zu 10) Reise- und Transportkosten","Appendix to 10) Travel expenses and transportation costs") -> Anlage zu 10) Reise- und Transportkosten | Q2: Tage | R2: days
Q3: Wochen | R3: weeks
A4: 144 | B4: =IF(Stammblatt!$L$5=1,Q4,R4) -> Fahrtkosten | I4: =IF(Stammblatt!I28=1,"",Stammblatt!B8) ->  | K4: =Stammblatt!B31 -> A | L4: =Stammblatt!B32 -> B | M4: =Stammblatt!B33 -> C | Q4: Fahrtkosten | R4: Travelling costs
B6: =IF(Stammblatt!$L$5=1,Q6,R6) -> km-Gelder | Q6: km-Gelder | R6: km-allowance
B7: =IF(Stammblatt!$L$5=1,Q7,R7) -> Stab | C7: =Stab_Ö_Details!Y117 -> 0 | D7: km | G7: =km_Geld -> 0.42 | H7: =IF(Stammblatt!$L$5=1,$Q$1,$R$1) -> je Einheit | I7: =C7*G7 -> 0 | Q7: Stab | R7: Crew
B8: =IF(Stammblatt!$L$5=1,Q8,R8) -> Darsteller | C8: =Darsteller!O38 -> 0 | D8: km | G8: =km_Geld -> 0.42 | H8: =IF(Stammblatt!$L$5=1,$Q$1,$R$1) -> je Einheit | I8: =C8*G8 -> 0 | Q8: Darsteller | R8: Cast
B9: =IF(Stammblatt!$L$5=1,Q9,R9) -> Sonstige | D9: km | G9: =km_Geld -> 0.42 | H9: =IF(Stammblatt!$L$5=1,$Q$1,$R$1) -> je Einheit | I9: =C9*G9 -> 0 | Q9: Sonstige | R9: Others
B11: =IF(Stammblatt!$L$5=1,Q11,R11) -> Flüge | Q11: Flüge | R11: Flights
B12: =IF(Stammblatt!$L$5=1,Q12,R12) -> Stab | I12: =Stab_Ö_Details!AB117 -> 0 | Q12: Stab | R12: Crew
B13: =IF(Stammblatt!$L$5=1,Q13,R13) -> Darsteller | I13: =Darsteller!R38 -> 0 | Q13: Darsteller | R13: Cast
B14: =IF(Stammblatt!$L$5=1,Q14,R14) -> Sonstige | C14: 0 | D14: =IF(Stammblatt!$L$5=1,"x Flüge für:","x flights for") -> x Flüge für: | G14: 0 | H14: =IF(Stammblatt!$L$5=1,$Q$1,$R$1) -> je Einheit | I14: =C14*G14 -> 0 | Q14: Sonstige | R14: Others
B16: =IF(Stammblatt!$L$5=1,Q16,R16) -> Bahnfahrten | Q16: Bahnfahrten | R16: Trains
B17: =IF(Stammblatt!$L$5=1,Q17,R17) -> Stab | I17: =Stab_Ö_Details!AE117 -> 0 | Q17: Stab | R17: Crew
B18: =IF(Stammblatt!$L$5=1,Q18,R18) -> Darsteller | I18: =Darsteller!U38 -> 0 | Q18: Darsteller | R18: Cast
B19: =IF(Stammblatt!$L$5=1,Q19,R19) -> Sonstige | C19: 0 | D19: =IF(Stammblatt!$L$5=1,"x Bahn für:","x train for") -> x Bahn für: | G19: 0 | H19: =IF(Stammblatt!$L$5=1,$Q$1,$R$1) -> je Einheit | I19: =C19*G19 -> 0 | Q19: Sonstige | R19: Others
B21: =IF(Stammblatt!$L$5=1,Q21,R21) -> Σ-Fahrtkosten | I21: =SUM(I6:I20) -> 0 | K21: =SUM(K6:K20) -> 0 | L21: =SUM(L6:L20) -> 0 | M21: =SUM(M6:M20) -> 0 | Q21: Σ-Fahrtkosten | R21: TOTAL Travelling costs
A23: 145 | B23: =IF(Stammblatt!$L$5=1,Q23,R23) -> Tag- und Übernachtungsgelder (jeweils von der Mehrwertsteuer entlastet) | Q23: Tag- und Übernachtungsgelder (jeweils von der Mehrwertsteuer entlastet) | R23: Per diem and hotel costs (VAT deducted)
B25: =IF(Stammblatt!$L$5=1,Q25,R25) -> Diäten | C25: Ortsgebiet | D25: ÖSTERR. | E25: Ausland I | F25: Ausland II | G25: Ausland III | H25: Ausland IV | Q25: Diäten | R25: Per diem
C26: =Diäten_W/1.1 -> 14 | D26: =Diäten_Ö/1.1 -> 24
B27: =IF(Stammblatt!$L$5=1,Q27,R27) -> Stab | C27: =Stab_Ö_Details!AF117*C26 -> 0 | D27: =Stab_Ö_Details!AG117*D26 -> 0 | E27: =Stab_Ö_Details!AH117*E26 -> 0 | F27: =Stab_Ö_Details!AI117*F26 -> 0 | G27: =Stab_Ö_Details!AJ117*G26 -> 0 | H27: =Stab_Ö_Details!AK117*H26 -> 0 | I27: =SUM(C27:H27) -> 0 | Q27: Stab | R27: Crew
B28: =IF(Stammblatt!$L$5=1,Q28,R28) -> Darsteller | C28: =Darsteller!V38*C26 -> 0 | D28: =Darsteller!W38*D26 -> 0 | E28: =Darsteller!X38*E26 -> 0 | F28: =Darsteller!Y38*F26 -> 0 | G28: =Darsteller!Z38*G26 -> 0 | H28: =Darsteller!AA38*H26 -> 0 | I28: =SUM(C28:H28) -> 0 | Q28: Darsteller | R28: Cast
B30: Catering | Q30: Catering
B31: =IF(Stammblatt!$L$5=1,Q31,R31) -> Stab | C31: =Stab_Ö_Details!AL117 -> 0 | D31: =IF(Stammblatt!$L$5=1,$Q$2,$R$2) -> Tage | H31: =IF(Stammblatt!$L$5=1,$Q$1,$R$1) -> je Einheit | I31: =C31*G31 -> 0 | Q31: Stab | R31: Crew
B32: =IF(Stammblatt!$L$5=1,Q32,R32) -> Darsteller | C32: =Darsteller!AB38 -> 0 | D32: =IF(Stammblatt!$L$5=1,$Q$2,$R$2) -> Tage | H32: =IF(Stammblatt!$L$5=1,$Q$1,$R$1) -> je Einheit | I32: =C32*G32 -> 0 | Q32: Darsteller | R32: Cast
B33: =IF(Stammblatt!$L$5=1,Q33,R33) -> Komparsen u.a. | C33: =Darsteller!D46 -> 0 | D33: =IF(Stammblatt!$L$5=1,$Q$2,$R$2) -> Tage | H33: =IF(Stammblatt!$L$5=1,$Q$1,$R$1) -> je Einheit | I33: =C33*G33 -> 0 | Q33: Komparsen u.a. | R33: Extras
B35: =IF(Stammblatt!$L$5=1,Q35,R35) -> Nächtigung | Q35: Nächtigung | R35: Hotels / Lodging
B36: =IF(Stammblatt!$L$5=1,Q36,R36) -> Stab | I36: =Stab_Ö_Details!AO117 -> 0 | Q36: Stab | R36: Crew
B37: =IF(Stammblatt!$L$5=1,Q37,R37) -> Darsteller | I37: =Darsteller!AE38 -> 0 | Q37: Darsteller | R37: Cast
B38: =IF(Stammblatt!$L$5=1,Q38,R38) -> Sonstige | I38: 0 | Q38: Sonstige | R38: Others
B40: =IF(Stammblatt!$L$5=1,Q40,R40) -> Σ-Tag- und Übernachtungsgelder | I40: =SUM(I27:I39) -> 0 | K40: =SUM(K27:K39) -> 0 | L40: =SUM(L27:L39) -> 0 | M40: =SUM(M27:M39) -> 0 | Q40: Σ-Tag- und Übernachtungsgelder | R40: TOTAL Per diem and hotel costs
A42: 146 | B42: =IF(Stammblatt!$L$5=1,Q42,R42) -> Beförderungs- und Transportkosten, Frachten, Rollgelder und Taxis | Q42: Beförderungs- und Transportkosten, Frachten, Rollgelder und Taxis | R42: Transportation costs, freight charge and taxis
B44: =IF(Stammblatt!$L$5=1,Q44,R44) -> Produktion | C44: 0 | D44: Bus/LKW | E44: 0 | F44: =IF(Stammblatt!$L$5=1,$Q$3,$R$3) -> Wochen | G44: 0 | H44: =IF(Stammblatt!$L$5=1,$Q$1,$R$1) -> je Einheit | I44: =C44*E44*G44 -> 0 | Q44: Produktion | R44: Production
B45: =IF(Stammblatt!$L$5=1,Q45,R45) -> Kamera | C45: 0 | D45: Bus/LKW | E45: 0 | F45: =IF(Stammblatt!$L$5=1,$Q$3,$R$3) -> Wochen | G45: 0 | H45: =IF(Stammblatt!$L$5=1,$Q$1,$R$1) -> je Einheit | I45: 0 | Q45: Kamera | R45: Camera
B46: =IF(Stammblatt!$L$5=1,Q46,R46) -> Bühne | C46: 0 | D46: Bus/LKW | E46: 0 | F46: =IF(Stammblatt!$L$5=1,$Q$3,$R$3) -> Wochen | G46: 0 | H46: =IF(Stammblatt!$L$5=1,$Q$1,$R$1) -> je Einheit | I46: 0 | Q46: Bühne | R46: Grip
B47: =IF(Stammblatt!$L$5=1,Q47,R47) -> Licht | C47: 0 | D47: Bus/LKW | E47: 0 | F47: =IF(Stammblatt!$L$5=1,$Q$3,$R$3) -> Wochen | G47: 0 | H47: =IF(Stammblatt!$L$5=1,$Q$1,$R$1) -> je Einheit | I47: 0 | Q47: Licht | R47: Lights
B48: =IF(Stammblatt!$L$5=1,Q48,R48) -> Requisite | C48: 0 | D48: Bus/LKW | E48: 0 | F48: =IF(Stammblatt!$L$5=1,$Q$3,$R$3) -> Wochen | G48: 0 | H48: =IF(Stammblatt!$L$5=1,$Q$1,$R$1) -> je Einheit | I48: 0 | Q48: Requisite | R48: Props
B49: =IF(Stammblatt!$L$5=1,Q49,R49) -> Sonstige | C49: 0 | D49: Bus/LKW | E49: 0 | F49: =IF(Stammblatt!$L$5=1,$Q$3,$R$3) -> Wochen | G49: 0 | H49: =IF(Stammblatt!$L$5=1,$Q$1,$R$1) -> je Einheit | I49: 0 | Q49: Sonstige | R49: Others
C50: 0 | D50: Bus/LKW | E50: 0 | F50: =IF(Stammblatt!$L$5=1,$Q$3,$R$3) -> Wochen | G50: 0 | H50: =IF(Stammblatt!$L$5=1,$Q$1,$R$1) -> je Einheit | I50: =C50*E50*G50 -> 0
C51: 0 | D51: Bus/LKW | E51: 0 | F51: =IF(Stammblatt!$L$5=1,$Q$3,$R$3) -> Wochen | G51: 0 | H51: =IF(Stammblatt!$L$5=1,$Q$1,$R$1) -> je Einheit | I51: =C51*E51*G51 -> 0
B53: =IF(Stammblatt!$L$5=1,Q53,R53) -> Frachten u. Rollgelder | I53: 0 | Q53: Frachten u. Rollgelder | R53: Freight charge
B54: =IF(Stammblatt!$L$5=1,Q54,R54) -> Taxis | I54: 0 | Q54: Taxis | R54: Taxis
B56: =IF(Stammblatt!$L$5=1,Q56,R56) -> Σ-Beförderungs- und Transportkosten, Frachten, Rollgelder und Taxis | I56: =SUM(I44:I55) -> 0 | K56: =SUM(K44:K55) -> 0 | L56: =SUM(L44:L55) -> 0 | M56: =SUM(M44:M55) -> 0 | Q56: Σ-Beförderungs- und Transportkosten, Frachten, Rollgelder und Taxis | R56: TOTAL Transportation costs, freight charge and taxis

Sheet Finanzierungsplan
A1: =Stammblatt!A1 -> Projekttitel
A2: =IF(Stammblatt!$L$5=1,O2,R2) -> FINANZIERUNGSPLAN | F2: =IF(Stammblatt!$L$5=1,T3,U3) -> Datum | I2: Investments, | K2: Lizenzen, | O2: FINANZIERUNGSPLAN | R2: FINANCING PLAN
F3: =IF(Stammblatt!$L$5=1,O3,R3) -> Zusage | G3: =IF(Stammblatt!$L$5=1,O4,R4) -> Antrag | I3: Förderungen etc. | J3: % | K3: Garantien u.ä. | L3: % | O3: Zusage | R3: Commit-ment | T3: Datum | U3: Date of
A4: =IF(Stammblatt!I28=2,Stammblatt!B8,"Herstellungskosten") -> Herstellungskosten | D4: =GHSTK -> 0 | E4: =IF(D4=0,0,D4/$D$59) -> 0 | I4: =SUM(I5:I24) -> 0 | J4: =IF($I$59=0,,I4/$I$59) -> 0 | K4: =SUM(K5:K24) -> 0 | L4: =IF($K$59=0,,K4/$K$59) -> 0 | O4: Antrag | R4: Appli-cation
A5: =IF(Stammblatt!$L$5=1,O5,R5) -> Eigenanteil | D5: =SUM(C6:C11) -> 0 | E5: =IF($D$4=0,0,D5/$D$4) -> 0 | O5: Eigenanteil | R5: Producer's own investment
A6: =IF(Stammblatt!$L$5=1,O6,R6) -> Barmittel (min. 2,5% v. HSTK) | B6: =IF(D4=0,"",C6/D4) ->  | C6: =D4*2.5% -> 0 | I6: =C6 -> 0 | O6: Barmittel (min. 2,5% v. HSTK) | R6: Cash (min. 2,5% of TPC)
A7: =IF(Stammblatt!$L$5=1,O7,R7) -> bewertete Eigenleistungen | I7: =C7 -> 0 | O7: bewertete Eigenleistungen | R7: Deferrals
A8: =IF(Stammblatt!$L$5=1,O8,R8) -> Lizenzen, Garantien etc. | C8: =SUM(B9:B11) -> 0 | K8: =C8 -> 0 | O8: Lizenzen, Garantien etc. | R8: Licences, guarantees etc.
A9: =IF(Stammblatt!$L$5=1,O9,R9) -> ORF (Lizenzanteil) | O9: ORF (Lizenzanteil) | R9: ORF (licence share)
A10: =IF(Stammblatt!$L$5=1,O10,R10) -> Verleihgarantie | O10: Verleihgarantie | R10: MG (national)
A11: =IF(Stammblatt!$L$5=1,O11,R11) -> MG (Weltvertrieb) | O11: MG (Weltvertrieb) | R11: MG (ROW)
A12: =IF(Stammblatt!$L$5=1,O12,R12) -> Österreichisches Filminstitut | E12: =IF($D$4=0,0,D12/$D$4) -> 0 | I12: =D12 -> 0 | O12: Österreichisches Filminstitut | R12: Austrian Filminstitut
A13: =IF(Stammblatt!$L$5=1,O13,R13) -> Buch-/Projektentwicklung (selektiv) | O13: Buch-/Projektentwicklung (selektiv) | R13: Script/Project development (selective)
A14: =IF(Stammblatt!$L$5=1,O14,R14) -> Buch-/Projektentw. (Referenzmittel) | O14: Buch-/Projektentw. (Referenzmittel) | R14: Script/Project development (automatique)
A15: =IF(Stammblatt!$L$5=1,O15,R15) -> Projektförderung | C15: =D12-C13-C14-C16 -> 0 | O15: Projektförderung | R15: Production support
A16: =IF(Stammblatt!$L$5=1,O16,R16) -> Referenzfilmförderung | O16: Referenzfilmförderung | R16: Reference funding
A17: =IF(Stammblatt!$L$5=1,O17,R17) -> Filmfonds Wien | E17: =IF($D$4=0,0,D17/$D$4) -> 0 | I17: =D17 -> 0 | O17: Filmfonds Wien | R17: Film Funds Vienna
A18: =IF(Stammblatt!$L$5=1,O18,R18) -> Projektentwicklung | O18: Projektentwicklung | R18: Project development
A19: =IF(Stammblatt!$L$5=1,O19,R19) -> Herstellungsförderung | C19: =D17-C18-C20 -> 0 | O19: Herstellungsförderung | R19: Production support
A20: =IF(Stammblatt!$L$5=1,O20,R20) -> Referenzfilmförderung | O20: Referenzfilmförderung | R20: Reference funding
A21: =IF(Stammblatt!$L$5=1,O21,R21) -> Filmstandort Österreich | E21: =IF($D$4=0,0,D21/$D$4) -> 0 | I21: =D21 -> 0 | O21: Filmstandort Österreich | R21: Film Industry Support Austria
A22: =IF(Stammblatt!$L$5=1,O22,R22) -> Sonstige | E22: =IF($D$4=0,0,D22/$D$4) -> 0 | I22: =D22-K22 -> 0 | O22: Sonstige | R22: Others
A23: EURIMAGES | E23: =IF($D$4=0,0,D23/$D$4) -> 0 | I23: =D23 -> 0 | O23: EURIMAGES
A24: =IF(Stammblatt!$L$5=1,O24,R24) -> ORF Film/Fernseh-Abkommen | E24: =IF($D$4=0,0,D24/$D$4) -> 0 | I24: =D24-K24 -> 0 | O24: ORF Film/Fernseh-Abkommen | R24: ORF Film/Television-Agreement
C25: Kontrollsumme | D25: =SUM(D5:D24) -> 0 | E25: =SUM(E5:E24) -> 0
A27: =Stammblatt!B31 -> A | D27: =GHSTK_A -> 0 | E27: =IF(D27=0,0,D27/$D$59) -> 0 | I27: =SUM(I28:I35) -> 0 | J27: =IF($I$59=0,,I27/$I$59) -> 0 | K27: =SUM(K28:K35) -> 0 | L27: =IF($K$59=0,,K27/$K$59) -> 0 | O27: A
A28: =IF(Stammblatt!$L$5=1,O28,R28) -> Eigenanteil | I28: =D28-K28 -> 0 | O28: Eigenanteil | R28: Producer's own investment
A29: =IF(Stammblatt!$L$5=1,O29,R29) -> Lizenzen, Garantien etc. | K29: =D29 -> 0 | O29: Lizenzen, Garantien etc. | R29: Licences, guarantees etc.
A30: =IF(Stammblatt!$L$5=1,O30,R30) -> Förderung 1 | I30: =D30 -> 0 | O30: Förderung 1 | R30: Funding entity 1
A31: =IF(Stammblatt!$L$5=1,O31,R31) -> Förderung 2 | I31: =D31 -> 0 | O31: Förderung 2 | R31: Funding entity 2
A32: =IF(Stammblatt!$L$5=1,O32,R32) -> Förderung 3 | I32: =D32 -> 0 | O32: Förderung 3 | R32: Funding entity 3
A33: =IF(Stammblatt!$L$5=1,O33,R33) -> Sonstige | I33: =D33-K33 -> 0 | K33: =D33 -> 0 | O33: Sonstige | R33: Others
A34: EURIMAGES | E34: =IF($D$27=0,0,D34/$D$36) -> 0 | I34: =D34 -> 0 | O34: EURIMAGES
A35: =IF(Stammblatt!$L$5=1,O35,R35) -> TV-Anstalt | I35: =D35-K35 -> 0 | O35: TV-Anstalt | R35: Broadcasting Company
C36: Kontrollsumme | D36: =SUM(D28:D35) -> 0
A38: =Stammblatt!B32 -> B | D38: =GHSTK_B -> 0 | E38: =IF(D38=0,0,D38/$D$59) -> 0 | I38: =SUM(I39:I46) -> 0 | J38: =IF($I$59=0,,I38/$I$59) -> 0 | K38: =SUM(K39:K46) -> 0 | L38: =IF($K$59=0,,K38/$K$59) -> 0 | O38: B
A39: =IF(Stammblatt!$L$5=1,O39,R39) -> Eigenanteil | I39: =D39-K39 -> 0 | O39: Eigenanteil | R39: Producer's own investment
A40: =IF(Stammblatt!$L$5=1,O40,R40) -> Lizenzen, Garantien etc. | K40: =D40 -> 0 | O40: Lizenzen, Garantien etc. | R40: Licences, guarantees etc.
A41: =IF(Stammblatt!$L$5=1,O41,R41) -> Förderung 1 | I41: =D41 -> 0 | O41: Förderung 1 | R41: Funding entity 1
A42: =IF(Stammblatt!$L$5=1,O42,R42) -> Förderung 2 | I42: =D42 -> 0 | O42: Förderung 2 | R42: Funding entity 2
A43: =IF(Stammblatt!$L$5=1,O43,R43) -> Förderung 3 | I43: =D43 -> 0 | O43: Förderung 3 | R43: Funding entity 3
A44: =IF(Stammblatt!$L$5=1,O44,R44) -> Sonstige | I44: =D44-K44 -> 0 | K44: =D44 -> 0 | O44: Sonstige | R44: Others
A45: EURIMAGES | E45: =IF($D$45=0,0,D45/$D$47) -> 0 | I45: =D45 -> 0 | O45: EURIMAGES
A46: =IF(Stammblatt!$L$5=1,O46,R46) -> TV-Anstalt | I46: =D46-K46 -> 0 | O46: TV-Anstalt | R46: Broadcasting Company
C47: Kontrollsumme | D47: =SUM(D39:D46) -> 0
A49: =Stammblatt!B33 -> C | D49: =GHSTK_C -> 0 | E49: =IF(D49=0,0,D49/$D$59) -> 0 | I49: =SUM(I50:I57) -> 0 | J49: =IF($I$59=0,,I49/$I$59) -> 0 | K49: =SUM(K50:K57) -> 0 | L49: =IF($K$59=0,,K49/$K$59) -> 0 | O49: C
A50: =IF(Stammblatt!$L$5=1,O50,R50) -> Eigenanteil | I50: =D50-K50 -> 0 | O50: Eigenanteil | R50: Producer's own investment
A51: =IF(Stammblatt!$L$5=1,O51,R51) -> Lizenzen, Garantien etc. | K51: =D51 -> 0 | O51: Lizenzen, Garantien etc. | R51: Licences, guarantees etc.
A52: =IF(Stammblatt!$L$5=1,O52,R52) -> Förderung 1 | D52: 0 | I52: =D52 -> 0 | O52: Förderung 1 | R52: Funding entity 1
A53: =IF(Stammblatt!$L$5=1,O53,R53) -> Förderung 2 | I53: =D53 -> 0 | O53: Förderung 2 | R53: Funding entity 2
A54: =IF(Stammblatt!$L$5=1,O54,R54) -> Förderung 3 | I54: =D54 -> 0 | O54: Förderung 3 | R54: Funding entity 3
A55: =IF(Stammblatt!$L$5=1,O55,R55) -> Sonstige | I55: =D55-K55 -> 0 | O55: Sonstige | R55: Others
A56: EURIMAGES | E56: =IF($D$56=0,0,D56/$D$58) -> 0 | I56: =D56 -> 0 | O56: EURIMAGES
A57: =IF(Stammblatt!$L$5=1,O57,R57) -> TV-Anstalt | I57: =D57-K57 -> 0 | O57: TV-Anstalt | R57: Broadcasting Company
D58: =SUM(D50:D57) -> 0
A59: =IF(Stammblatt!$L$5=1,O59,R59) -> GESAMTSUMME | D59: =GHSTK_ges -> 0 | E59: =SUM(E49,E38,E27,E4) -> 0 | I59: =SUM(I49,I38,I27,I4) -> 0 | J59: =IF($I$59=0,,I59/$I$59) -> 0 | K59: =SUM(K49,K38,K27,K4) -> 0 | L59: =SUM(L49,L38,L27,L4) -> 0 | O59: GESAMTSUMME | R59: TOTAL
C60: Kontrollsumme | D60: =SUM(D58,D47,D36,D25) -> 0 | K60: =SUM(I59,K59) -> 0
A62: =IF(Stammblatt!$L$5=1,O62,R62) -> Gemeinsame Rechtevorverkäufe | O62: Gemeinsame Rechtevorverkäufe | R62: Common presales
A63: =IF(Stammblatt!$L$5=1,O63,R63) -> Lizenzen | B63: Vertragspartner | O63: Lizenzen | R63: Licences
A64: =IF(Stammblatt!$L$5=1,O64,R64) -> Garantien | B64: Vertragspartner | O64: Garantien | R64: Guarantees
A65: =IF(Stammblatt!$L$5=1,O65,R65) -> Sonstiges | B65: Vertragspartner | O65: Sonstiges | R65: Others
A66: =IF(Stammblatt!$L$5=1,O66,R66) -> GESAMTSUMME | D66: =SUM(D63:D65) -> 0 | O66: GESAMTSUMME | R66: TOTAL
A69: ÖFI - Zahlungsplan | C69: Beteiligungs-quote (1/2) | D69: =(D12-C14-C16)/D4/2 ->  | E69: Termin | F69: Nachweise
A70: 1. Rate | C70: =(($D$12-$C$13-$C$14)-C76)*0.25 -> 0 | D70: Vertrag | F70: Unterschriften
A71: 2. Rate | C71: =(($D$12-$C$13-$C$14)-$C$76)*0.25 -> 0 | D71: Drehbeginn | E71: =Stammblatt!B46 -> 00:00:00 | F71: Verträge Crew & Cast, Kosten- und Finanzierungsstand
A72: 3. Rate | C72: 0 | D72: Drehmitte | E72: =Stammblatt!B47 -> 00:00:00 | F72: Kosten- und Finanzierungsstand
A73: 4. Rate | C73: =(($D$12-$C$13-$C$14)-$C$76)*0.1 -> 0 | D73: Drehende | E73: =Stammblatt!B48 -> 00:00:00 | F73: Kosten- und Finanzierungsstand
A74: 5. Rate | C74: =(($D$12-$C$13-$C$14)-$C$76)*0.1 -> 0 | D74: Rohschnitt | E74: =Stammblatt!B49 -> 00:00:00 | F74: Rohschnittvorführung, Kosten- und Finanzierungsstand
A75: 6. Rate | C75: =(($D$12-$C$13-$C$14)-$C$76)*0.05 -> 0 | D75: Fertigstellung | E75: =Stammblatt!B50 -> 00:00:00 | F75: Endabnahme, Einlage-rung Archivkopie, vor-läufiger Endkosten- u. Finanzierungsstand
A76: anteilige Überschreitungsreserve | C76: =ROUND(Zusammenfassung!D21*Finanzierungsplan!E12,-2) -> 0 | D76: gegen Nachweis | F76: Endkostenstand, Schlussfinanzierung, Abschlussprüfung
A77: Auszahlungssumme VERTRAG | C77: =SUM(C70:C76) -> 0

Sheet Kollektivvertrag
A1: Mindestgagentarife in EURO
A2: wirksam ab 1. Jänner 2019
C5: Wochengage | E5: Wochenpauschalgage § 7 | G5: Tagesgage | K5: Monatsgage
C7: 40 Stunden | D7: 40 Stunden | E7: 60 Stunden | F7: 60 Stunden | G7: (1/4 d. Wochengage) | I7: (1/5 d. Wochengage) | K7: 1. Berufsjahr | L7: 2. Berufsjahr | M7: 3. Berufsjahr
E8: WG mal 1,385 | F8: WG mal 1,385 | G8: 8 Stunden | H8: 8 Stunden | I8: 8 Stunden | J8: 8 Stunden | K8: WG mal 4,33 | L8: WG mal 4,33 | M8: WG mal 4,33
D9: inkl. SZ/UEL | F9: inkl. SZ/UEL | H9: inkl. SZ/UEL | J9: inkl. SZ/UEL | K9: reduziert um | L9: reduziert um | M9: reduziert um
K10: 0.4 | L10: 0.35 | M10: 0.3
A11: Regie (freie Vereinbarung) | C11: 0 | D11: 0 | E11: 0 | F11: 0 | G11: 0 | H11: 0 | I11: 0 | J11: 0 | K11: 0 | L11: 0 | M11: 0
A12: Regieassistenz | B12: 919.2330505 | C12: 963.884 | D12: =(C12+C12/6)*1.1041 -> 1241.595045 | E12: 1334.98 | F12: =(E12+E12/6)*1.1041 -> 1719.609988 | G12: =C12/4 -> 240.971 | H12: =(G12+G12/6)*1.1041 -> 310.3987613 | I12: =C12/5 -> 192.7768 | J12: =(I12+I12/6)*1.1041 -> 248.319009 | K12: =C12*4.33*0.6 -> 2504.170632 | L12: =C12*4.33*0.65 -> 2712.851518 | M12: =C12*4.33*0.7 -> 2921.532404
A13: Herstellungsleitung I *) | B13: 1600 | C13: 1677.72 | D13: =(C13+C13/6)*1.1041 -> 2161.099094 | E13: 2323.64 | F13: =(E13+E13/6)*1.1041 -> 2993.119411 | G13: =C13/4 -> 419.43 | H13: =(G13+G13/6)*1.1041 -> 540.2747735 | I13: =C13/5 -> 335.544 | J13: =(I13+I13/6)*1.1041 -> 432.2198188 | K13: =C13*4.33*0.6 -> 4358.71656 | L13: =C13*4.33*0.65 -> 4721.94294 | M13: =C13*4.33*0.7 -> 5085.16932
A14: Herstellungsleitung II **) | B14: 978.11 | C14: 1025.62 | D14: =(C14+C14/6)*1.1041 -> 1321.118216 | E14: 1420.486 | F14: 1829.751691 | G14: 256.405 | H14: 330.2795539 | I14: 205.124 | J14: 264.2236431 | K14: 2664.56076 | L14: 2886.60749 | M14: 3108.65422
A15: Produktionsleitung *) | B15: 1521.796999 | C15: 1595.72 | D15: 2055.473527 | E15: 2210.07 | F15: 2846.828002 | G15: 398.93 | H15: 513.8683818 | I15: 319.144 | J15: 411.0947055 | K15: 4145.68056 | L15: 4491.15394 | M15: 4836.62732
A16: Produktionsleitung **) | B16: 962.9099715 | C16: 1009.68 | D16: 1300.585636 | E16: 1398.41 | F16: 1801.315228 | G16: 252.42 | H16: 325.146409 | I16: 201.936 | J16: 260.1171272 | K16: 2623.14864 | L16: 2841.74436 | M16: 3060.34008
A17: 1. Aufnahmeleitung *) | B17: 897.3899622 | C17: 940.98 | D17: 1212.092021 | E17: 1303.26 | F17: 1678.750927 | G17: 235.245 | H17: 303.0230052 | I17: 188.196 | J17: 242.4184042 | K17: 2444.66604 | L17: 2648.38821 | M17: 2852.11038
A18: 1. Aufnahmeleitung **) | B18: 881.2482902 | C18: 854.21 | D18: 1100.322138 | E18: 1183.074 | F18: 1523.937337 | G18: 213.5525 | H18: 275.0805345 | I18: 170.842 | J18: 220.0644276 | K18: 2219.23758 | L18: 2404.174045 | M18: 2589.11051
A19: 2. Aufnahmeleitung (Set Aufnahmeleitung) | B19: 725.3614698 | C19: 760.6 | D19: 979.7415367 | E19: 1053.425 | F19: 1356.9343 | G19: 190.15 | H19: 244.9353842 | I19: 152.12 | J19: 195.9483073 | K19: 1976.0388 | L19: 2140.7087 | M19: 2305.3786
A20: Musikaufnahmeleitung | B20: 879.3509033 | C20: 922.07 | D20: 1187.733735 | E20: 1277.06 | F20: 1645.00227 | G20: 230.5175 | H20: 296.9334337 | I20: 184.414 | J20: 237.546747 | K20: 2395.53786 | L20: 2595.166015 | M20: 2794.79417
A21: TV-Producer (freie Vereinbarung) | C21: 0 | D21: 0 | E21: 0 | F21: 0 | G21: 0 | H21: 0 | I21: 0 | J21: 0 | K21: 0 | L21: 0 | M21: 0
A22: Filmgeschäftsführung | B22: 937.2721094 | C22: 982.8 | D22: 1265.96106 | E22: 1361.18 | F22: 1753.358644 | G22: 245.7 | H22: 316.490265 | I22: 196.56 | J22: 253.192212 | K22: 2553.3144 | L22: 2766.0906 | M22: 2978.8668
A23: Produktionsassistenz | B23: 567.6100586 | C23: 595.18 | D23: 766.6612777 | E23: 824.33 | F23: 1061.833212 | G23: 148.795 | H23: 191.6653194 | I23: 119.036 | J23: 153.3322555 | K23: 1546.27764 | L23: 1675.13411 | M23: 1803.99058
A24: Continuity/Script | B24: =460.24*1.025 -> 471.746 | C24: 679.73 | D24: 875.5715418 | E24: 941.42 | F24: 1212.658792 | G24: 169.9325 | H24: 218.8928855 | I24: 135.946 | J24: 175.1143084 | K24: 1765.93854 | L24: 1913.100085 | M24: 2060.26163
A25: Synchronregie | B25: 1585.046103 | C25: 1662.04 | D25: 2140.901425 | E25: 2301.93 | F25: 2965.154399 | G25: 415.51 | H25: 535.2253562 | I25: 332.408 | J25: 428.1802849 | K25: 4317.97992 | L25: 4677.81158 | M25: 5037.64324
A26: Kamera I *) | B26: 2231.716205 | C26: 2340.12 | D26: 3014.347574 | E26: 3241.067 | F26: 4174.87242 | G26: 585.03 | H26: 753.5868935 | I26: 468.024 | J26: 602.8695148 | K26: 6079.63176 | L26: 6586.26774 | M26: 7092.90372
A27: Kamera II **) | B27: 1627.528081 | C27: 1706.585 | D27: 2198.280582 | E27: 2363.62 | F27: 3044.618316 | G27: 426.64625 | H27: 549.5701454 | I27: 341.317 | J27: 439.6561163 | K27: 4433.70783 | L27: 4803.183483 | M27: 5172.659135
A28: 1. Kameraassistenz | B28: 897.3899622 | C28: 919.82 | D28: 1184.835472 | E28: 1303.26 | F28: 1678.750927 | G28: 229.955 | H28: 296.2088681 | I28: 183.964 | J28: 236.9670945 | K28: 2389.69236 | L28: 2588.83339 | M28: 2787.97442
A29: 2. Kameraassistenz | B29: 683.3150394 | C29: 700.4 | D29: 902.1969133 | E29: 992.36 | F29: 1278.275455 | G29: 175.1 | H29: 225.5492283 | I29: 140.08 | J29: 180.4393827 | K29: 1819.6392 | L29: 1971.2758 | M29: 2122.9124
A30: Kamera im Verbund, Schwenker | B30: 919.2330505 | C30: 963.884 | D30: 1241.595045 | E30: 1334.98 | F30: 1719.609988 | G30: 240.971 | H30: 310.3987613 | I30: 192.7768 | J30: 248.319009 | K30: 2504.170632 | L30: 2712.851518 | M30: 2921.532404
A31: Elektronische Berichterstattung - Team:
A32: Kamera II | B32: 1627.528081 | C32: 1706.59 | D32: 2198.287022 | E32: 2363.62 | F32: 3044.618316 | G32: 426.6475 | H32: 549.5717555 | I32: 341.318 | J32: 439.6574044 | K32: 4433.72082 | L32: 4803.197555 | M32: 5172.67429
A33: Teamassistenz | B33: 829.536764 | C33: 869.83 | D33: 1120.44252 | E33: 1204.72 | F33: 1551.819911 | G33: 217.4575 | H33: 280.11063 | I33: 173.966 | J33: 224.088504 | K33: 2259.81834 | L33: 2448.136535 | M33: 2636.45473
A34: Produktionskoordination | B34: 667.0702511 | C34: 699.47 | D34: 900.9989648 | E34: 968.77 | F34: 1247.888783 | G34: 174.8675 | H34: 225.2497412 | I34: 139.894 | J34: 180.199793 | K34: 1817.22306 | L34: 1968.658315 | M34: 2120.09357
A35: Postproduktionskoordination | B35: 800.9389126 | C35: 839.843 | D35: 1081.815766 | E35: 1163.183 | F35: 1498.315409 | G35: 209.96075 | H35: 270.4539414 | I35: 167.9686 | J35: 216.3631531 | K35: 2181.912114 | L35: 2363.738123 | M35: 2545.564133
A36: Digital Image Technican (DIT) | B36: =B35 -> 800.9389126 | C36: 839.843 | D36: 1081.815766 | E36: 1163.183 | F36: 1498.315409 | G36: 209.96075 | H36: 270.4539414 | I36: 167.9686 | J36: 216.3631531 | K36: 2181.912114 | L36: 2363.738123 | M36: 2545.564133
A37: Data Wrangler | B37: =DIT*0.7 -> 587.8901 | C37: 587.89 | D37: 757.2709072 | E37: 814.23 | F37: 1048.823234 | G37: 146.9725 | H37: 189.3177268 | I37: 117.578 | J37: 151.4541814 | K37: 1527.33822 | L37: 1654.616405 | M37: 1781.89459
A38: Schnitt (Editor) | B38: 978.1075779 | C38: 1025.62 | D38: 1321.118216 | E38: 1420.483 | F38: 1829.747827 | G38: 256.405 | H38: 330.2795539 | I38: 205.124 | J38: 264.2236431 | K38: 2664.56076 | L38: 2886.60749 | M38: 3108.65422
A39: Schnittassistenz | B39: 638.4223113 | C39: 669.433 | D39: 862.3078045 | E39: 927.17 | F39: 1194.30313 | G39: 167.35825 | H39: 215.5769511 | I39: 133.8866 | J39: 172.4615609 | K39: 1739.186934 | L39: 1884.119179 | M39: 2029.051423
A40: Tonschnitt | C40: 769.213 | D40: 990.8360855 | E40: 1065.36 | F40: 1372.307972 | G40: 192.30325 | H40: 247.7090214 | I40: 153.8426 | J40: 198.1672171 | K40: 1998.415374 | L40: 2164.949989 | M40: 2331.484603
A41: Sound Design | C41: 1025.62 | D41: 1321.118216 | E41: 1420.483 | F41: 1829.747827 | G41: 256.405 | H41: 330.2795539 | I41: 205.124 | J41: 264.2236431 | K41: 2664.56076 | L41: 2886.60749 | M41: 3108.65422
A42: Außenrequisite | B42: 805.6446297 | C42: 844.777 | D42: 1088.171333 | E42: 1170.02 | F42: 1507.122262 | G42: 211.19425 | H42: 272.0428333 | I42: 168.9554 | J42: 217.6342667 | K42: 2194.730646 | L42: 2377.624867 | M42: 2560.519087
A43: Innenrequisite | B43: 745.4345885 | C43: 781.644 | D43: 1006.848664 | E43: 1082.58 | F43: 1394.489341 | G43: 195.411 | H43: 251.712166 | I43: 156.3288 | J43: 201.3697328 | K43: 2030.711112 | L43: 2199.937038 | M43: 2369.162964
A44: Kostümbild | B44: 1054.495246 | C44: 1105.717 | D44: 1424.292496 | E44: 1531.42 | F44: 1972.647626 | G44: 276.42925 | H44: 356.0731241 | I44: 221.1434 | J44: 284.8584993 | K44: 2872.652766 | L44: 3112.040497 | M44: 3351.428227
A45: Kostümbildassistenz | B45: =Kostumbild*0.7 -> 774.0019 | C45: 774.004 | D45: 997.0074525 | E45: 1071.99 | F45: 1380.848185 | G45: 193.501 | H45: 249.2518631 | I45: 154.8008 | J45: 199.4014905 | K45: 2010.862392 | L45: 2178.434258 | M45: 2346.006124
A46: Garderobe | B46: 628.703622 | C46: 659.24 | D46: 849.1780313 | E46: 913.053 | F46: 1176.118787 | G46: 164.81 | H46: 212.2945078 | I46: 131.848 | J46: 169.8356063 | K46: 1712.70552 | L46: 1855.43098 | M46: 1998.15644
A47: Maskenbild, Frisur | B47: 978.1075779 | C47: 1025.62 | D47: 1321.118216 | E47: 1420.483 | F47: 1829.747827 | G47: 256.405 | H47: 330.2795539 | I47: 205.124 | J47: 264.2236431 | K47: 2664.56076 | L47: 2886.60749 | M47: 3108.65422
A48: Garderobe-, Maskenbild- und Requisitehilfe | B48: 491.3224374 | C48: 515.19 | D48: 663.6248255 | E48: 713.54 | F48: 919.1227663 | G48: 128.7975 | H48: 165.9062064 | I48: 103.038 | J48: 132.7249651 | K48: 1338.46362 | L48: 1450.002255 | M48: 1561.54089
A49: Ton I ***) | B49: 1365.091225 | C49: 1431.4 | D49: 1843.810197 | E49: 1982.49 | F49: 2553.678411 | G49: 357.85 | H49: 460.9525492 | I49: 286.28 | J49: 368.7620393 | K49: 3718.7772 | L49: 4028.6753 | M49: 4338.5734
A50: Ton II | B50: 1087.536784 | C50: 1140.36 | D50: 1468.916722 | E50: 1579.403 | F50: 2034.455328 | G50: 285.09 | H50: 367.2291805 | I50: 228.072 | J50: 293.7833444 | K50: 2962.65528 | L50: 3209.54322 | M50: 3456.43116
A51: Tonassistenz, Videotechnik, Primärtontechnik | B51: 858.4518807 | C51: 900.15 | D51: 1159.498218 | E51: 1246.71 | F51: 1605.90793 | G51: 225.0375 | H51: 289.8745544 | I51: 180.03 | J51: 231.8996435 | K51: 2338.5897 | L51: 2533.472175 | M51: 2728.35465
A52: Filmarchitektur (Szenenbild) | B52: 1100 | C52: 1153.434 | D52: 1485.757559 | E52: 1597.5 | F52: 2057.766375 | G52: 288.3585 | H52: 371.4393898 | I52: 230.6868 | J52: 297.1515119 | K52: 2996.621532 | L52: 3246.339993 | M52: 3496.058454
A53: Filmarchitektassistenz (Szenenbildassistenz) | B53: 825.7084336 | C53: 865.817 | D53: 1115.273308 | E53: 1199.157 | F53: 1544.654118 | G53: 216.45425 | H53: 278.818327 | I53: 173.1634 | J53: 223.0546616 | K53: 2249.392566 | L53: 2436.841947 | M53: 2624.291327
A54: Bühnenmeister, Oberbeleuchter | B54: 819.020499 | C54: 858.804 | D54: 1106.239746 | E54: 1189.44 | F54: 1532.137488 | G54: 214.701 | H54: 276.5599365 | I54: 171.7608 | J54: 221.2479492 | K54: 2231.172792 | L54: 2417.103858 | M54: 2603.034924
A55: Bühne, Licht | B55: 571.3890995 | C55: 599.143 | D55: 771.766084 | E55: 829.813 | F55: 1068.895956 | G55: 149.78575 | H55: 192.941521 | I55: 119.8286 | J55: 154.3532168 | K55: 1556.573514 | L55: 1686.287974 | M55: 1816.002433
A56: Produktionsfahrer | B56: 420 | C56: 440.4 | D56: 567.28658 | E56: 609.956 | F56: 785.6944895 | G56: 110.1 | H56: 141.821645 | I56: 88.08 | J56: 113.457316 | K56: 1144.1592 | L56: 1239.5058 | M56: 1334.8524
A57: Filmaushilfskraft ****) | B57: 233.8337182 | C57: 403.707 | D57: 520.0217151 | E57: 559.133 | F57: 720.2285362 | G57: 100.92675 | H57: 130.0054288 | I57: 80.7414 | J57: 104.004343 | K57: 1048.830786 | L57: 1136.233352 | M57: 1223.635917
A58: Werkstattprojekt (§ 24 Abs.4 KV) | B58: 434.549584 | C58: 455.48 | D58: 586.7113793 | E58: 630.84 | F58: 812.595518 | G58: 113.87 | H58: 146.6778448 | I58: 91.096 | J58: 117.3422759 | K58: 1183.33704 | L58: 1281.94846 | M58: 1380.55988
A60: *) Filme, in denen Handlungen und Personendarstellungen entscheidend sind, insbesondere Spielfilme, Fernsehfilme, Werbungen
A61: **) Alle übrigen Filmgattungen, insbesondere Dokumentarfilme, Fernsehdokumentationen, Features, Industriefilme, Instruktions- und Nachrichtenfilme
A62: ***) Voraussetzung für die Einreihung in die Verwendungsgruppe Tonmeister I ist eine mindestens 15-jährige Praxis als Tonmeister II
A63: ****) ArbeitnehmerInnen ohne Zweckausbildung, die schematische oder mechanische Arbeiten, insbesondere einfache Hilfsarbeiten auf manueller Natur verrichten oder die in Betrieben der
A64: Filmwirtschaft zur Feststellung ihrer beruflichen Eignung in Aufgabengebieten des Filmschaffens eingesetzt werden.

Sheet Richt- und Höchstsätze
A1: =Stammblatt!A1 -> Projekttitel
A2: Bemessung von Richt- und Höchstsätzen
A4: Gesamte Netto-Fertigungskosten | B4: =NFK_ges -> 0
A5: Netto-Fertigungskosten Österreich | B5: =NFK -> 0
A7: Produzentenhonorar | B7: =ROUND(B5*2.5%,-1) -> 0
A8: Fertigungsgemeinkosten (FGK) | B8: =ROUND(IF(B5<=800000,B5*9%,IF(B5<=1200000,72000+(B5-800000)*30000/400000,IF(B5<=1600000,102000+(B5-1200000)*26000/400000,IF(B5<=2500000,128000+(B5-1600000)*59500/900000,B5*7.5%)))),0) -> 0
A10: Drehbuch - Richtsatz | B10: =IF(B4<250000,14000,ROUND(IF(B4<=750000,14000+(B4-250000)*(18500/500000),IF(B4<=2500000,30000+40000*(B4-750000)/1750000,IF(B4<=5000000,70000+30000*(B4-2500000)/2500000,B4*2%))),-1)) -> 14000
A11: Regie - Richtsatz (inkl. SZ u. UEL) | B11: =IF(B4<=3000000,B12*125%,B12*120%) -> 26250
A12: Regie - Richtsatz (inkl. SZ u. UEL) bis 2013 | B12: =IF(B4<=250000,21000,ROUND(IF(B4<=750000,(21000+(B4-250000)*(16500/500000))/((1+1/6)*1.1041*0.9*1.05),IF(B4<=872000,B4*(3.5+(872000-B4)/436000)%,IF(B4<=1308000,B4*(3+(0.5*(1308000-B4)/436000))%,IF(B4<=3634000,B4*(2+(3634000-B4)/2326000)%,B4*2%))))*(1+1/6)*1.1041*0.9*1.05,-1)) -> 21000

Sheet Tages- und Nächtigungsgelder
